Workbook

Sheet INDUK30014000
A1: 1 | B1: 2 | C1: 3 | D1: 4 | E1: 5 | F1: 6 | G1: 7 | H1: 8 | I1: 9 | J1: 10 | K1: 11 | L1: 12 | M1: 13 | N1: 14 | O1: 15 | P1: 16 | Q1: 17 | R1: 18 | S1: 19 | T1: 20 | U1: 21 | V1: 22 | W1: 23 | X1: 24 | Y1: 25 | Z1: 26 | AA1: 27 | AB1: 28 | AC1: 29 | AD1: 30 | AE1: 31 | AF1: 32 | AG1: 33 | AH1: 34 | AI1: 35 | AJ1: 36 | AK1: 37 | AL1: 38 | AM1: 39 | AN1: 40 | AO1: 41 | AP1: 42 | AQ1: 43 | AR1: 44 | AS1: 45 | AT1: 46 | AU1: 47 | AV1: 48 | AW1: 49 | AX1: 50 | AY1: 51 | AZ1: 52 | BA1: 53 | BB1: 54 | BC1: 55 | BD1: 56 | BE1: 57 | BF1: 58 | BG1: 59 | BH1: 60 | BI1: 61 | BJ1: 62 | BK1: 63 | BL1: 64 | BM1: 65 | BN1: 66 | BO1: 67 | BP1: 68 | BQ1: 69 | BR1: 70 | BS1: 71 | BT1: 72 | BU1: 73 | BV1: 74 | BW1: 75 | BX1: 76 | BY1: 77 | BZ1: 78 | CA1: 79 | CB1: 80 | CC1: 81 | CD1: 82 | CE1: 83 | CF1: 84 | CG1: 85 | CH1: 86 | CI1: 87 | CJ1: 88 | CK1: 89 | CL1: 90 | CM1: 91 | CN1: 92 | CO1: 93 | CP1: 94 | CQ1: 95 | CR1: 96 | CS1: 97 | CT1: 98 | CU1: 99 | CV1: 100 | CW1: 101 | CX1: 102 | CY1: 103 | CZ1: 104 | DA1: 105 | DB1: 106 | DC1: 107 | DD1: 108 | DE1: 109 | DF1: 110 | DG1: 111 | DH1: 112 | DI1: 113 | DJ1: 114 | DK1: 115 | DL1: 116 | DM1: 117 | DN1: 118 | DO1: 119 | DP1: 120 | DQ1: 121 | DR1: 122 | DS1: 123 | DT1: 124 | DU1: 125 | DV1: 126 | DW1: 127 | DX1: 128 | DY1: 129 | DZ1: 130 | EA1: 131 | EB1: 132 | EC1: 133 | ED1: 134 | EE1: 135 | EF1: 136 | EG1: 137 | EH1: 138 | EI1: 139 | EJ1: 140 | EK1: 141 | EL1: 142 | EM1: 143 | EN1: 144 | EO1: 145 | EP1: 146 | EQ1: 147 | ER1: 148 | ES1: 149 | ET1: 150 | EU1: 151 | EV1: 152 | EW1: 153 | EX1: 154 | EY1: 155 | EZ1: 156 | FA1: 157 | FB1: 158 | FC1: 159 | FD1: 160 | FE1: 161 | FF1: 162 | FG1: 163 | FH1: 164 | FI1: 165 | FJ1: 166 | FK1: 167 | FL1: 168 | FM1: 169 | FN1: 170 | FO1: 171 | FP1: 172 | FQ1: 173 | FR1: 174 | FS1: 175 | FT1: 176 | FU1: 177 | FV1: 178 | FW1: 179 | FX1: 180 | FY1: 181 | FZ1: 182 | GA1: 183 | GB1: 184 | GC1: 185 | GD1: 186 | GE1: 187 | GF1: 188 | GG1: 189 | GH1: 190 | GI1: 191 | GJ1: 192 | GK1: 193 | GL1: 194 | GM1: 195 | GN1: 196 | GO1: 197 | GP1: 198 | GQ1: 199 | GR1: 200 | GS1: 201 | GT1: 202 | GU1: 203 | GV1: 204 | GW1: 205 | GX1: 206 | GY1: 207 | GZ1: 208 | HA1: 209 | HB1: 210 | HC1: 211 | HD1: 212 | HE1: 213 | HF1: 214 | HG1: 215 | HH1: 216 | HI1: 217 | HJ1: 218 | HK1: 219 | HL1: 220 | HM1: 221 | HN1: 222 | HO1: 223 | HP1: 224 | HQ1: 225 | HR1: 226 | HS1: 227 | HT1: 228 | HU1: 229 | HV1: 230 | HW1: 231 | HX1: 232 | HY1: 233 | HZ1: 234 | IA1: 235 | IB1: 236 | IC1: 237 | ID1: 238 | IE1: 239 | IF1: 240 | IG1: 241 | IH1: 242 | II1: 243 | IJ1: 244 | IK1: 245 | IL1: 246 | IM1: 247 | IN1: 248 | IO1: 249 | IP1: 250 | IQ1: 251 | IR1: 252 | IS1: 253 | IT1: 254 | IU1: 255 | IV1: 256 | IW1: 257 | IX1: 258 | IY1: 259 | IZ1: 260 | JA1: 261 | JB1: 262 | JC1: 263 | JD1: 264 | JE1: 265 | JF1: 266 | JG1: 267 | JH1: 268 | JI1: 269 | JJ1: 270 | JK1: 271 | JL1: 272 | JM1: 273 | JN1: 274 | JO1: 275 | JP1: 276 | JQ1: 277 | JR1: 278 | JS1: 279 | JT1: 280 | JU1: 281 | JV1: 282 | JW1: 283 | JX1: 284 | JY1: 285 | JZ1: 286 | KA1: 287 | KB1: 288 | KC1: 289 | KD1: 290 | KE1: 291 | KF1: 292 | KG1: 293 | KH1: 294 | KI1: 295 | KJ1: 296 | KK1: 297 | KL1: 298 | KM1: 299 | KN1: 300 | KO1: 301 | KP1: 302 | KQ1: 303 | KR1: 304 | KS1: 305 | KT1: 306 | KU1: 307 | KV1: 308 | KW1: 309 | KX1: 310 | KY1: 311 | KZ1: 312 | LA1: 313 | LB1: 314 | LC1: 315 | LD1: 316 | LE1: 317 | LF1: 318 | LG1: 319 | LH1: 320 | LI1: 321 | LJ1: 322 | LK1: 323 | LL1: 324 | LM1: 325 | LN1: 326 | LO1: 327 | LP1: 328 | LQ1: 329 | LR1: 330 | LS1: 331 | LT1: 332 | LU1: 333 | LV1: 334 | LW1: 335 | LX1: 336 | LY1: 337 | LZ1: 338 | MA1: 339 | MB1: 340 | MC1: 341 | MD1: 342 | ME1: 343 | MF1: 344 | MG1: 345 | MH1: 346 | MI1: 347 | MJ1: 348 | MK1: 349 | ML1: 350 | MM1: 351 | MN1: 352 | MO1: 353 | MP1: 354 | MQ1: 355 | MR1: 356 | MS1: 357 | MT1: 358 | MU1: 359 | MV1: 360 | MW1: 361 | MX1: 362 | MY1: 363 | MZ1: 364 | NA1: 365 | NB1: 366 | NC1: 367 | ND1: 368 | NE1: 369 | NF1: 370 | NG1: 371 | NH1: 372 | NI1: 373 | NJ1: 374 | NK1: 375 | NL1: 376 | NM1: 377 | NN1: 378 | NO1: 379 | NP1: 380 | NQ1: 381 | NR1: 382 | NS1: 383 | NT1: 384 | NU1: 385 | NV1: 386 | NW1: 387 | NX1: 388 | NY1: 389 | NZ1: 390 | OA1: 391 | OB1: 392 | OC1: 393 | OD1: 394 | OE1: 395 | OF1: 396 | OG1: 397 | OH1: 398 | OI1: 399 | OJ1: 400 | OK1: 401 | OL1: 402 | OM1: 403 | ON1: 404 | OO1: 405 | OP1: 406 | OQ1: 407 | OR1: 408 | OS1: 409 | OT1: 410 | OU1: 411 | OV1: 412 | OW1: 413 | OX1: 414 | OY1: 415 | OZ1: 416 | PA1: 417 | PB1: 418 | PC1: 419 | PD1: 420 | PE1: 421 | PF1: 422 | PG1: 423 | PH1: 424 | PI1: 425 | PJ1: 426 | PK1: 427 | PL1: 428 | PM1: 429 | PN1: 430 | PO1: 431 | PP1: 432 | PQ1: 433 | PR1: 434 | PS1: 435 | PT1: 436 | PU1: 437 | PV1: 438 | PW1: 439 | PX1: 440 | PY1: 441 | PZ1: 442 | QA1: 443 | QB1: 444 | QC1: 445 | QD1: 446 | QE1: 447 | QF1: 448 | QG1: 449 | QH1: 450 | QI1: 451 | QJ1: 452 | QK1: 453 | QL1: 454 | QM1: 455 | QN1: 456 | QO1: 457 | QP1: 458 | QQ1: 459 | QR1: 460 | QS1: 461 | QT1: 462 | QU1: 463 | QV1: 464 | QW1: 465 | QX1: 466 | QY1: 467 | QZ1: 468 | RA1: 469 | RB1: 470 | RC1: 471 | RD1: 472 | RE1: 473 | RF1: 474 | RG1: 475 | RH1: 476 | RI1: 477 | RJ1: 478 | RK1: 479 | RL1: 480
A2: Induk | B2: Nama Murid | C2: Nama Orang Tua | D2: Kls. | E2: Tgl Masuk | F2: Tgl Keluar | G2: Nama Panggilan | H2: ="L/P" -> L/P | I2: Tanggal Lahir | J2: Tempat Lahir | K2: Agama | L2: Kewarganegaraan | M2: Jumlah saudara | P2: Bahasa Sehari-hari keluarga | Q2: Keadaan Jasmani | U2: alamat dan no. telp | V2: tempat tinggal pada (ortu/numpang/asramah) | W2: Jarak Tempat Tinggal | X2: tahun masuk sekolah ini | Z2: Nama Orang tua | AB2: pendidikan Tertinggi | AD2: Pekerjaan | AF2: Wali (jika ada) | AK2: Masuk menjadi murid tingkat 1 | AO2: pindahan jika dari sekolah lain | AR2: Prestasi Belajar | AS2: MASUKKAN TAHUN | AX2: 2018 | BC2: 2019 | BH2: 2020 | BM2: 2021 | BR2: 2022 | BW2: 2023 | CB2: Beasiswa | CC2: Tahun Tamat | CE2: Melanjutkan Ke | CF2: Mutasi Masuk Madrasah | CJ2: Mutasi Keluar Madrasah | CN2: KELAS 1 | ES2: KELAS 2 | GX2: KELAS 3 | JC2: KELAS 4 | LH2: KELAS 5 | NM2: KELAS 6 | PR2: LULUSAN | PU2: PENGHARGAAN 1 | PX2: PENGHARGAAN 2 | QA2: KETERANGAN | QE2: KETERANGAN | QI2: NILAI IJAZAH
M3: Kandung | N3: Tiri | O3: Angkat | Q3: Berat badan | R3: tinggi badan | S3: gol.darah | T3: penyakit berat | Z3: Ayah | AA3: Ibu | AB3: Ayah | AC3: Ibu | AD3: Ayah | AE3: Ibu | AF3: Nama | AG3: hub.keluarga | AH3: Pendidikan | AI3: Pekerjaan | AK3: asal TK/RA | AL3: nama RA/TK | AM3: Alamat | AN3: Tanggal dan No.STTB | AO3: Nama Sekolah | AP3: dari Tingkat | AQ3: diterima Tanggal | AT3: Kg | AU3: Cm | AV3: Penyakit | AW3: Kelainan | AY3: Kg | AZ3: Cm | BA3: Penyakit | BB3: Kelainan | BD3: Kg | BE3: Cm | BF3: Penyakit | BG3: Kelainan | BI3: Kg | BJ3: Cm | BK3: Penyakit | BL3: Kelainan | BN3: Kg | BO3: Cm | BP3: Penyakit | BQ3: Kelainan | BS3: Kg | BT3: Cm | BU3: Penyakit | BV3: Kelainan | BX3: Kg | BY3: Cm | BZ3: Penyakit | CA3: Kelainan | CC3: Tahun | CD3: No. STTB | CF3: Dari Tingkat | CG3: Ke Sekolah | CH3: Ke Tingkat | CI3: Tanggal | CJ3: Tanggal | CK3: Alasan | CN3: QH 1 | CP3: AA 1 | CR3: FQ 1 | CT3: SKI 1 | CV3: AWJ 1 | CX3: BA1 | CZ3: PKN 1 | DB3: BID 1 | DD3: MTK 1 | DF3: IPA 1 | DH3: IPS 1 | DJ3: SBK 1 | DL3: PJO 1 | DN3: BD 1 | DP3: BIG 1 | DR3: JML NILAI | DT3: RATA - RATA | DV3: PE RINGKAT | DX3: SAKIT | DZ3: IJIN | EB3: ALPA | ED3: EKSKUL PRAMUKA | EF3: EKSKUL 1 | EH3: EKSKUL 2 | EJ3: KE-LAKU-AN | EL3: KE-RAJINAN | EN3: KE-BERSIHAN | EP3: NAIK/ TIDAK NAIK | EQ3: TAHUN PLJARAN | ES3: QH 2 | EU3: AA 2 | EW3: FQ 2 | EY3: SKI 2 | FA3: AWJ 2 | FC3: BA2 | FE3: PKN 2 | FG3: BID 2 | FI3: MTK 2 | FK3: IPA 2 | FM3: IPS 2 | FO3: SBK 2 | FQ3: PJO 2 | FS3: BD 2 | FU3: BIG 2 | FW3: JML NILAI | FY3: RATA - RATA | GA3: PE RINGKAT | GC3: SAKIT | GE3: IJIN | GG3: ALPA | GI3: EKSKUL PRAMUKA | GK3: EKSKUL 1 | GM3: EKSKUL 2 | GO3: KE-LAKU-AN | GQ3: KE-RAJINAN | GS3: KE-BERSIHAN | GU3: NAIK/ TIDAK NAIK | GV3: TAHUN PLJARAN | GX3: QH 3 | GZ3: AA 3 | HB3: FQ 3 | HD3: SKI 3 | HF3: AWJ 3 | HH3: BA3 | HJ3: PKN 3 | HL3: BID 3 | HN3: MTK 3 | HP3: IPA 3 | HR3: IPS 3 | HT3: SBK 3 | HV3: PJO 3 | HX3: BD 3 | HZ3: BIG 3 | IB3: JML NILAI | ID3: RATA - RATA | IF3: PE RINGKAT | IH3: SAKIT | IJ3: IJIN | IL3: ALPA | IN3: EKSKUL PRAMUKA | IP3: EKSKUL 1 | IR3: EKSKUL 2 | IT3: KE-LAKU-AN | IV3: KE-RAJINAN | IX3: KE-BERSIHAN | IZ3: NAIK/ TIDAK NAIK | JA3: TAHUN PLJARAN | JC3: QH 4 | JE3: AA 4 | JG3: FQ 4 | JI3: SKI 4 | JK3: AWJ 4 | JM3: BA4 | JO3: PKN 4 | JQ3: BID 4 | JS3: MTK 4 | JU3: IPA 4 | JW3: IPS 4 | JY3: SBK 4 | KA3: PJO 4 | KC3: BD 4 | KE3: BIG 4 | KG3: JML NILAI | KI3: RATA - RATA | KK3: PE RINGKAT | KM3: SAKIT | KO3: IJIN | KQ3: ALPA | KS3: EKSKUL PRAMUKA | KU3: EKSKUL 1 | KW3: EKSKUL 2 | KY3: KE-LAKU-AN | LA3: KE-RAJINAN | LC3: KE-BERSIHAN | LE3: NAIK/ TIDAK NAIK | LF3: TAHUN PLJARAN | LH3: QH 5 | LJ3: AA 5 | LL3: FQ 5 | LN3: SKI 5 | LP3: AWJ 5 | LR3: BA5 | LT3: PKN 5 | LV3: BID 5 | LX3: MTK 5 | LZ3: IPA 5 | MB3: IPS 5 | MD3: SBK 5 | MF3: PJO 5 | MH3: BD 5 | MJ3: BIG 5 | ML3: JML NILAI | MN3: RATA - RATA | MP3: PE RINGKAT | MR3: SAKIT | MT3: IJIN | MV3: ALPA | MX3: EKSKUL PRAMUKA | MZ3: EKSKUL 1 | NB3: EKSKUL 2 | ND3: KE-LAKU-AN | NF3: KE-RAJINAN | NH3: KE-BERSIHAN | NJ3: NAIK/ TIDAK NAIK | NK3: TAHUN PLJARAN | NM3: QH 6 | NO3: AA 6 | NQ3: FQ 6 | NS3: SKI 6 | NU3: AWJ 6 | NW3: BA6 | NY3: PKN 6 | OA3: BID 6 | OC3: MTK 6 | OE3: IPA 6 | OG3: IPS 6 | OI3: SBK 6 | OK3: PJO 6 | OM3: BD 6 | OO3: BIG 6 | OQ3: JML NILAI | OS3: RATA - RATA | OU3: PE RINGKAT | OW3: SAKIT | OY3: IJIN | PA3: ALPA | PC3: EKSKUL PRAMUKA | PE3: EKSKUL 1 | PG3: EKSKUL 2 | PI3: KE-LAKU-AN | PK3: KE-RAJINAN | PM3: KE-BERSIHAN | PO3: NAIK/ TIDAK NAIK | PP3: TAHUN PLJARAN | PR3: NOMOR IJAZAH | PS3: Tempat IJAZAH | PT3: TANGGALIJAZAH | PU3: BIDANG | PV3: NOMOR | PW3: TANGGAL | PX3: NOMOR IJAZAH | PY3: NOMOR IJAZAH | PZ3: NOMOR IJAZAH | QA3: TENTANG | QB3: NOMOR SRT KET | QC3: TANGGAL SRT KET | QD3: NOMOR IJAZAH | QE3: TENTANG | QF3: NOMOR SRT KET | QG3: TANGGAL SRT KET | QI3: QH (NILAI AKHIR) | QK3: AA (NILAI AKHIR) | QM3: FQ (NILAI AKHIR) | QO3: SKI (NILAI AKHIR) | QQ3: AWJ (NILAI AKHIR) | QS3: BA(NILAI AKHIR) | QU3: PKN (NILAI AKHIR) | QW3: BID (NILAI AKHIR) | QY3: MTK (NILAI AKHIR) | RA3: IPA (NILAI AKHIR) | RC3: IPS (NILAI AKHIR) | RE3: SBK (NILAI AKHIR) | RG3: PJO (NILAI AKHIR) | RI3: BD (NILAI AKHIR) | RK3: BIG (NILAI AKHIR)
CN4: SMT1 | CO4: SMT2 | CP4: SMT1 | CQ4: SMT2 | CR4: SMT1 | CS4: SMT2 | CT4: SMT1 | CU4: SMT2 | CV4: SMT1 | CW4: SMT2 | CX4: SMT1 | CY4: SMT2 | CZ4: SMT1 | DA4: SMT2 | DB4: SMT1 | DC4: SMT2 | DD4: SMT1 | DE4: SMT2 | DF4: SMT1 | DG4: SMT2 | DH4: SMT1 | DI4: SMT2 | DJ4: SMT1 | DK4: SMT2 | DL4: SMT1 | DM4: SMT2 | DN4: SMT1 | DO4: SMT2 | DP4: SMT1 | DQ4: SMT2 | DR4: SMT1 | DS4: SMT2 | DT4: SMT1 | DU4: SMT2 | DV4: SMT1 | DW4: SMT2 | DX4: SMT1 | DY4: SMT2 | DZ4: SMT1 | EA4: SMT2 | EB4: SMT1 | EC4: SMT2 | ED4: SMT1 | EE4: SMT2 | EF4: SMT1 | EG4: SMT2 | EH4: SMT1 | EI4: SMT2 | EJ4: SMT1 | EK4: SMT2 | EL4: SMT1 | EM4: SMT2 | EN4: SMT1 | EO4: SMT2 | ES4: SMT1 | ET4: SMT2 | EU4: SMT1 | EV4: SMT2 | EW4: SMT1 | EX4: SMT2 | EY4: SMT1 | EZ4: SMT2 | FA4: SMT1 | FB4: SMT2 | FC4: SMT1 | FD4: SMT2 | FE4: SMT1 | FF4: SMT2 | FG4: SMT1 | FH4: SMT2 | FI4: SMT1 | FJ4: SMT2 | FK4: SMT1 | FL4: SMT2 | FM4: SMT1 | FN4: SMT2 | FO4: SMT1 | FP4: SMT2 | FQ4: SMT1 | FR4: SMT2 | FS4: SMT1 | FT4: SMT2 | FU4: SMT1 | FV4: SMT2 | FW4: SMT1 | FX4: SMT2 | FY4: SMT1 | FZ4: SMT2 | GA4: SMT1 | GB4: SMT2 | GC4: SMT1 | GD4: SMT2 | GE4: SMT1 | GF4: SMT2 | GG4: SMT1 | GH4: SMT2 | GI4: SMT1 | GJ4: SMT2 | GK4: SMT1 | GL4: SMT2 | GM4: SMT1 | GN4: SMT2 | GO4: SMT1 | GP4: SMT2 | GQ4: SMT1 | GR4: SMT2 | GS4: SMT1 | GT4: SMT2 | GX4: SMT1 | GY4: SMT2 | GZ4: SMT1 | HA4: SMT2 | HB4: SMT1 | HC4: SMT2 | HD4: SMT1 | HE4: SMT2 | HF4: SMT1 | HG4: SMT2 | HH4: SMT1 | HI4: SMT2 | HJ4: SMT1 | HK4: SMT2 | HL4: SMT1 | HM4: SMT2 | HN4: SMT1 | HO4: SMT2 | HP4: SMT1 | HQ4: SMT2 | HR4: SMT1 | HS4: SMT2 | HT4: SMT1 | HU4: SMT2 | HV4: SMT1 | HW4: SMT2 | HX4: SMT1 | HY4: SMT2 | HZ4: SMT1 | IA4: SMT2 | IB4: SMT1 | IC4: SMT2 | ID4: SMT1 | IE4: SMT2 | IF4: SMT1 | IG4: SMT2 | IH4: SMT1 | II4: SMT2 | IJ4: SMT1 | IK4: SMT2 | IL4: SMT1 | IM4: SMT2 | IN4: SMT1 | IO4: SMT2 | IP4: SMT1 | IQ4: SMT2 | IR4: SMT1 | IS4: SMT2 | IT4: SMT1 | IU4: SMT2 | IV4: SMT1 | IW4: SMT2 | IX4: SMT1 | IY4: SMT2 | JC4: SMT1 | JD4: SMT2 | JE4: SMT1 | JF4: SMT2 | JG4: SMT1 | JH4: SMT2 | JI4: SMT1 | JJ4: SMT2 | JK4: SMT1 | JL4: SMT2 | JM4: SMT1 | JN4: SMT2 | JO4: SMT1 | JP4: SMT2 | JQ4: SMT1 | JR4: SMT2 | JS4: SMT1 | JT4: SMT2 | JU4: SMT1 | JV4: SMT2 | JW4: SMT1 | JX4: SMT2 | JY4: SMT1 | JZ4: SMT2 | KA4: SMT1 | KB4: SMT2 | KC4: SMT1 | KD4: SMT2 | KE4: SMT1 | KF4: SMT2 | KG4: SMT1 | KH4: SMT2 | KI4: SMT1 | KJ4: SMT2 | KK4: SMT1 | KL4: SMT2 | KM4: SMT1 | KN4: SMT2 | KO4: SMT1 | KP4: SMT2 | KQ4: SMT1 | KR4: SMT2 | KS4: SMT1 | KT4: SMT2 | KU4: SMT1 | KV4: SMT2 | KW4: SMT1 | KX4: SMT2 | KY4: SMT1 | KZ4: SMT2 | LA4: SMT1 | LB4: SMT2 | LC4: SMT1 | LD4: SMT2 | LH4: SMT1 | LI4: SMT2 | LJ4: SMT1 | LK4: SMT2 | LL4: SMT1 | LM4: SMT2 | LN4: SMT1 | LO4: SMT2 | LP4: SMT1 | LQ4: SMT2 | LR4: SMT1 | LS4: SMT2 | LT4: SMT1 | LU4: SMT2 | LV4: SMT1 | LW4: SMT2 | LX4: SMT1 | LY4: SMT2 | LZ4: SMT1 | MA4: SMT2 | MB4: SMT1 | MC4: SMT2 | MD4: SMT1 | ME4: SMT2 | MF4: SMT1 | MG4: SMT2 | MH4: SMT1 | MI4: SMT2 | MJ4: SMT1 | MK4: SMT2 | ML4: SMT1 | MM4: SMT2 | MN4: SMT1 | MO4: SMT2 | MP4: SMT1 | MQ4: SMT2 | MR4: SMT1 | MS4: SMT2 | MT4: SMT1 | MU4: SMT2 | MV4: SMT1 | MW4: SMT2 | MX4: SMT1 | MY4: SMT2 | MZ4: SMT1 | NA4: SMT2 | NB4: SMT1 | NC4: SMT2 | ND4: SMT1 | NE4: SMT2 | NF4: SMT1 | NG4: SMT2 | NH4: SMT1 | NI4: SMT2 | NM4: SMT1 | NN4: SMT2 | NO4: SMT1 | NP4: SMT2 | NQ4: SMT1 | NR4: SMT2 | NS4: SMT1 | NT4: SMT2 | NU4: SMT1 | NV4: SMT2 | NW4: SMT1 | NX4: SMT2 | NY4: SMT1 | NZ4: SMT2 | OA4: SMT1 | OB4: SMT2 | OC4: SMT1 | OD4: SMT2 | OE4: SMT1 | OF4: SMT2 | OG4: SMT1 | OH4: SMT2 | OI4: SMT1 | OJ4: SMT2 | OK4: SMT1 | OL4: SMT2 | OM4: SMT1 | ON4: SMT2 | OO4: SMT1 | OP4: SMT2 | OQ4: SMT1 | OR4: SMT2 | OS4: SMT1 | OT4: SMT2 | OU4: SMT1 | OV4: SMT2 | OW4: SMT1 | OX4: SMT2 | OY4: SMT1 | OZ4: SMT2 | PA4: SMT1 | PB4: SMT2 | PC4: SMT1 | PD4: SMT2 | PE4: SMT1 | PF4: SMT2 | PG4: SMT1 | PH4: SMT2 | PI4: SMT1 | PJ4: SMT2 | PK4: SMT1 | PL4: SMT2 | PM4: SMT1 | PN4: SMT2 | QI4: IJAZAH | QJ4: SKHU | QK4: IJAZAH | QL4: SKHU | QM4: IJAZAH | QN4: SKHU | QO4: IJAZAH | QP4: SKHU | QQ4: IJAZAH | QR4: SKHU | QS4: IJAZAH | QT4: SKHU | QU4: IJAZAH | QV4: SKHU | QW4: IJAZAH | QX4: SKHU | QY4: IJAZAH | QZ4: SKHU | RA4: IJAZAH | RB4: SKHU | RC4: IJAZAH | RD4: SKHU | RE4: IJAZAH | RF4: SKHU | RG4: IJAZAH | RH4: SKHU | RI4: IJAZAH | RJ4: SKHU | RK4: IJAZAH | RL4: SKHU
A6: 3001 | B6: Nama Murid | C6: Nama Orang Tua | D6: Kls. | E6: Tgl Masuk | F6: Tgl Keluar | G6: Nama Panggilan | H6: L | I6: Tanggal Lahir | J6: Tempat Lahir | K6: Agama | L6: WNI | M6: 21 | N6: 22 | O6: 23 | P6: Bahasa Sehari-hari keluarga | Q6: Berat badan | R6: tinggi badan | S6: gol.darah | T6: penyakit berat | U6: alamat dan no. telp | V6: tempat tinggal pada (ortu/numpang/asramah) | W6: Jarak Tempat Tinggal | X6: tahun masuk sekolah ini | Z6: no1 | AA6: no2 | AB6: pt1 | AC6: pt2 | AD6: pk1 | AE6: pk2 | AF6: Nama | AG6: hub.keluarga | AH6: Pendidikan | AI6: Pekerjaan | AK6: Langsung Orang Tua | AL6: nama RA/TK | AM6: Alamat | AN6: Tanggal dan No.STTB | AO6: Nama Sekolah | AP6: dari Tingkat | AQ6: diterima Tanggal | AR6: Prestasi Belajar | AS6: 2017 | AT6: 20171 | AU6: 20172 | AV6: 20173 | AW6: 20174 | AX6: 2018 | AY6: 20181 | AZ6: 20182 | BA6: 20183 | BB6: 20184 | BC6: 2019 | BD6: 20191 | BE6: 20192 | BF6: 20193 | BG6: 20194 | BH6: 2020 | BI6: 20201 | BJ6: 20202 | BK6: 20203 | BL6: 20204 | BM6: 2021 | BN6: 20211 | BO6: 20212 | BP6: 20213 | BQ6: 20214 | BR6: 2022 | BS6: 20221 | BT6: 20222 | BU6: 20223 | BV6: 20224 | BW6: 2023 | BX6: 20231 | BY6: 20232 | BZ6: 20233 | CA6: 20234 | CB6: KIP | CC6: Tahun | CD6: No. STTB | CE6: Melanjutkan Ke | CF6: Dari Tingkat | CG6: Ke Sekolah | CH6: Ke Tingkat | CI6: Tanggal | CJ6: Tanggal | CK6: Alasan | CN6: A1 | CO6: A2 | CP6: A3 | CQ6: A4 | CR6: A5 | CS6: A6 | CT6: A7 | CU6: A8 | CV6: A9 | CW6: A10 | CX6: A11 | CY6: A12 | CZ6: A13 | DA6: A14 | DB6: A15 | DC6: A16 | DD6: A17 | DE6: A18 | DF6: A19 | DG6: A20 | DH6: A21 | DI6: A22 | DJ6: A23 | DK6: A24 | DL6: A25 | DM6: A26 | DN6: A27 | DO6: A28 | DP6: A29 | DQ6: A30 | DR6: A31 | DS6: A32 | DT6: A33 | DU6: A34 | DV6: A35 | DW6: A36 | DX6: A37 | DY6: A38 | DZ6: A39 | EA6: A40 | EB6: A41 | EC6: A42 | ED6: A43 | EE6: A44 | EF6: A45 | EG6: A46 | EH6: A47 | EI6: A48 | EJ6: A49 | EK6: A50 | EL6: A51 | EM6: A52 | EN6: A53 | EO6: A54 | EP6: A55 | EQ6: A56 | ES6: A56 | ET6: A57 | EU6: A58 | EV6: A59 | EW6: A60 | EX6: A61 | EY6: A62 | EZ6: A63 | FA6: A64 | FB6: A65 | FC6: A66 | FD6: A67 | FE6: A68 | FF6: A69 | FG6: A70 | FH6: A71 | FI6: A72 | FJ6: A73 | FK6: A74 | FL6: A75 | FM6: A76 | FN6: A77 | FO6: A78 | FP6: A79 | FQ6: A80 | FR6: A81 | FS6: A82 | FT6: A83 | FU6: A84 | FV6: A85 | FW6: A86 | FX6: A87 | FY6: A88 | FZ6: A89 | GA6: A90 | GB6: A91 | GC6: A92 | GD6: A93 | GE6: A94 | GF6: A95 | GG6: A96 | GH6: A97 | GI6: A98 | GJ6: A99 | GK6: A100 | GL6: A101 | GM6: A102 | GN6: A103 | GO6: A104 | GP6: A105 | GQ6: A106 | GR6: A107 | GS6: A108 | GT6: A109 | GU6: A110 | GV6: A111 | GX6: A112 | GY6: A113 | GZ6: A114 | HA6: A115 | HB6: A116 | HC6: A117 | HD6: A118 | HE6: A119 | HF6: A120 | HG6: A121 | HH6: A122 | HI6: A123 | HJ6: A124 | HK6: A125 | HL6: A126 | HM6: A127 | HN6: A128 | HO6: A129 | HP6: A130 | HQ6: A131 | HR6: A132 | HS6: A133 | HT6: A134 | HU6: A135 | HV6: A136 | HW6: A137 | HX6: A138 | HY6: A139 | HZ6: A140 | IA6: A141 | IB6: A142 | IC6: A143 | ID6: A144 | IE6: A145 | IF6: A146 | IG6: A147 | IH6: A148 | II6: A149 | IJ6: A150 | IK6: A151 | IL6: A152 | IM6: A153 | IN6: A154 | IO6: A155 | IP6: A156 | IQ6: A157 | IR6: A158 | IS6: A159 | IT6: A160 | IU6: A161 | IV6: A162 | IW6: A163 | IX6: A164 | IY6: A165 | IZ6: A166 | JA6: A167 | JC6: A168 | JD6: A169 | JE6: A170 | JF6: A171 | JG6: A172 | JH6: A173 | JI6: A174 | JJ6: A175 | JK6: A176 | JL6: A177 | JM6: A178 | JN6: A179 | JO6: A180 | JP6: A181 | JQ6: A182 | JR6: A183 | JS6: A184 | JT6: A185 | JU6: A186 | JV6: A187 | JW6: A188 | JX6: A189 | JY6: A190 | JZ6: A191 | KA6: A192 | KB6: A193 | KC6: A194 | KD6: A195 | KE6: A196 | KF6: A197 | KG6: A198 | KH6: A199 | KI6: A200 | KJ6: A201 | KK6: A202 | KL6: A203 | KM6: A204 | KN6: A205 | KO6: A206 | KP6: A207 | KQ6: A208 | KR6: A209 | KS6: A210 | KT6: A211 | KU6: A212 | KV6: A213 | KW6: A214 | KX6: A215 | KY6: A216 | KZ6: A217 | LA6: A218 | LB6: A219 | LC6: A220 | LD6: A221 | LE6: A222 | LF6: A223 | LH6: A224 | LI6: A225 | LJ6: A226 | LK6: A227 | LL6: A228 | LM6: A229 | LN6: A230 | LO6: A231 | LP6: A232 | LQ6: A233 | LR6: A234 | LS6: A235 | LT6: A236 | LU6: A237 | LV6: A238 | LW6: A239 | LX6: A240 | LY6: A241 | LZ6: A242 | MA6: A243 | MB6: A244 | MC6: A245 | MD6: A246 | ME6: A247 | MF6: A248 | MG6: A249 | MH6: A250 | MI6: A251 | MJ6: A252 | MK6: A253 | ML6: A254 | MM6: A255 | MN6: A256 | MO6: A257 | MP6: A258 | MQ6: A259 | MR6: A260 | MS6: A261 | MT6: A262 | MU6: A263 | MV6: A264 | MW6: A265 | MX6: A266 | MY6: A267 | MZ6: A268 | NA6: A269 | NB6: A270 | NC6: A271 | ND6: A272 | NE6: A273 | NF6: A274 | NG6: A275 | NH6: A276 | NI6: A277 | NJ6: A278 | NK6: A279 | NM6: A280 | NN6: A281 | NO6: A282 | NP6: A283 | NQ6: A284 | NR6: A285 | NS6: A286 | NT6: A287 | NU6: A288 | NV6: A289 | NW6: A290 | NX6: A291 | NY6: A292 | NZ6: A293 | OA6: A294 | OB6: A295 | OC6: A296 | OD6: A297 | OE6: A298 | OF6: A299 | OG6: A300 | OH6: A301 | OI6: A302 | OJ6: A303 | OK6: A304 | OL6: A305 | OM6: A306 | ON6: A307 | OO6: A308 | OP6: A309 | OQ6: A310 | OR6: A311 | OS6: A312 | OT6: A313 | OU6: A314 | OV6: A315 | OW6: A316 | OX6: A317 | OY6: A318 | OZ6: A319 | PA6: A320 | PB6: A321 | PC6: A322 | PD6: A323 | PE6: A324 | PF6: A325 | PG6: A326 | PH6: A327 | PI6: A328 | PJ6: A329 | PK6: A330 | PL6: A331 | PM6: A332 | PN6: A333 | PO6: LULUS | PP6: A335 | PR6: A336 | PS6: A337 | PT6: A338 | PU6: A339 | PV6: A340 | PW6: A341 | PX6: A342 | PY6: A343 | PZ6: A344 | QA6: A345 | QB6: A346 | QC6: A347 | QD6: A348 | QE6: A349 | QF6: A350 | QG6: A351 | QI6: A352 | QJ6: A353 | QK6: A354 | QL6: A355 | QM6: A356 | QN6: A357 | QO6: A358 | QP6: A359 | QQ6: A360 | QR6: A361 | QS6: A362 | QT6: A363 | QU6: A364 | QV6: A365 | QW6: A366 | QX6: A367 | QY6: A368 | QZ6: A369 | RA6: A370 | RB6: A371 | RC6: A372 | RD6: A373 | RE6: A374 | RF6: A375 | RG6: A376 | RH6: A377 | RI6: A378 | RJ6: A379 | RK6: A380 | RL6: A381
A7: 3002 | B7: Nama Murid | C7: Nama Orang Tua | D7: Kls. | E7: Tgl Masuk | F7: Tgl Keluar | G7: Nama Panggilan | H7: L | I7: Tanggal Lahir | J7: Tempat Lahir | K7: Agama | L7: WNI | M7: 21 | N7: 22 | O7: 23 | P7: Bahasa Sehari-hari keluarga | Q7: Berat badan | R7: tinggi badan | S7: gol.darah | T7: penyakit berat | U7: alamat dan no. telp | V7: tempat tinggal pada (ortu/numpang/asramah) | W7: Jarak Tempat Tinggal | X7: tahun masuk sekolah ini | Z7: no1 | AA7: no2 | AB7: pt1 | AC7: pt2 | AD7: pk1 | AE7: pk2 | AF7: Nama | AG7: hub.keluarga | AH7: Pendidikan | AI7: Pekerjaan | AK7: Langsung Orang Tua | AL7: nama RA/TK | AM7: Alamat | AN7: Tanggal dan No.STTB | AO7: Nama Sekolah | AP7: dari Tingkat | AQ7: diterima Tanggal | AR7: Prestasi Belajar | AS7: 2017 | AT7: 20171 | AU7: 20172 | AV7: 20173 | AW7: 20174 | AX7: 2018 | AY7: 20181 | AZ7: 20182 | BA7: 20183 | BB7: 20184 | BC7: 2019 | BD7: 20191 | BE7: 20192 | BF7: 20193 | BG7: 20194 | BH7: 2020 | BI7: 20201 | BJ7: 20202 | BK7: 20203 | BL7: 20204 | BM7: 2021 | BN7: 20211 | BO7: 20212 | BP7: 20213 | BQ7: 20214 | BR7: 2022 | BS7: 20221 | BT7: 20222 | BU7: 20223 | BV7: 20224 | BW7: 2023 | BX7: 20231 | BY7: 20232 | BZ7: 20233 | CA7: 20234 | CB7: KIP | CC7: Tahun | CD7: No. STTB | CE7: Melanjutkan Ke | CF7: Dari Tingkat | CG7: Ke Sekolah | CH7: Ke Tingkat | CI7: Tanggal | CJ7: Tanggal | CK7: Alasan | CN7: B1 | CO7: B2 | CP7: B3 | CQ7: B4 | CR7: B5 | CS7: B6 | CT7: B7 | CU7: B8 | CV7: B9 | CW7: B10 | CX7: B11 | CY7: B12 | CZ7: B13 | DA7: B14 | DB7: B15 | DC7: B16 | DD7: B17 | DE7: B18 | DF7: B19 | DG7: B20 | DH7: B21 | DI7: B22 | DJ7: B23 | DK7: B24 | DL7: B25 | DM7: B26 | DN7: B27 | DO7: B28 | DP7: B29 | DQ7: B30 | DR7: B31 | DS7: B32 | DT7: B33 | DU7: B34 | DV7: B35 | DW7: B36 | DX7: B37 | DY7: B38 | DZ7: B39 | EA7: B40 | EB7: B41 | EC7: B42 | ED7: B43 | EE7: B44 | EF7: B45 | EG7: B46 | EH7: B47 | EI7: B48 | EJ7: B49 | EK7: B50 | EL7: B51 | EM7: B52 | EN7: B53 | EO7: B54 | EP7: B55 | EQ7: B56 | ES7: B56 | ET7: B57 | EU7: B58 | EV7: B59 | EW7: B60 | EX7: B61 | EY7: B62 | EZ7: B63 | FA7: B64 | FB7: B65 | FC7: B66 | FD7: B67 | FE7: B68 | FF7: B69 | FG7: B70 | FH7: B71 | FI7: B72 | FJ7: B73 | FK7: B74 | FL7: B75 | FM7: B76 | FN7: B77 | FO7: B78 | FP7: B79 | FQ7: B80 | FR7: B81 | FS7: B82 | FT7: B83 | FU7: B84 | FV7: B85 | FW7: B86 | FX7: B87 | FY7: B88 | FZ7: B89 | GA7: B90 | GB7: B91 | GC7: B92 | GD7: B93 | GE7: B94 | GF7: B95 | GG7: B96 | GH7: B97 | GI7: B98 | GJ7: B99 | GK7: B100 | GL7: B101 | GM7: B102 | GN7: B103 | GO7: B104 | GP7: B105 | GQ7: B106 | GR7: B107 | GS7: B108 | GT7: B109 | GU7: B110 | GV7: B111 | GX7: B112 | GY7: B113 | GZ7: B114 | HA7: B115 | HB7: B116 | HC7: B117 | HD7: B118 | HE7: B119 | HF7: B120 | HG7: B121 | HH7: B122 | HI7: B123 | HJ7: B124 | HK7: B125 | HL7: B126 | HM7: B127 | HN7: B128 | HO7: B129 | HP7: B130 | HQ7: B131 | HR7: B132 | HS7: B133 | HT7: B134 | HU7: B135 | HV7: B136 | HW7: B137 | HX7: B138 | HY7: B139 | HZ7: B140 | IA7: B141 | IB7: B142 | IC7: B143 | ID7: B144 | IE7: B145 | IF7: B146 | IG7: B147 | IH7: B148 | II7: B149 | IJ7: B150 | IK7: B151 | IL7: B152 | IM7: B153 | IN7: B154 | IO7: B155 | IP7: B156 | IQ7: B157 | IR7: B158 | IS7: B159 | IT7: B160 | IU7: B161 | IV7: B162 | IW7: B163 | IX7: B164 | IY7: B165 | IZ7: B166 | JA7: B167 | JC7: B168 | JD7: B169 | JE7: B170 | JF7: B171 | JG7: B172 | JH7: B173 | JI7: B174 | JJ7: B175 | JK7: B176 | JL7: B177 | JM7: B178 | JN7: B179 | JO7: B180 | JP7: B181 | JQ7: B182 | JR7: B183 | JS7: B184 | JT7: B185 | JU7: B186 | JV7: B187 | JW7: B188 | JX7: B189 | JY7: B190 | JZ7: B191 | KA7: B192 | KB7: B193 | KC7: B194 | KD7: B195 | KE7: B196 | KF7: B197 | KG7: B198 | KH7: B199 | KI7: B200 | KJ7: B201 | KK7: B202 | KL7: B203 | KM7: B204 | KN7: B205 | KO7: B206 | KP7: B207 | KQ7: B208 | KR7: B209 | KS7: B210 | KT7: B211 | KU7: B212 | KV7: B213 | KW7: B214 | KX7: B215 | KY7: B216 | KZ7: B217 | LA7: B218 | LB7: B219 | LC7: B220 | LD7: B221 | LE7: B222 | LF7: B223 | LH7: B224 | LI7: B225 | LJ7: B226 | LK7: B227 | LL7: B228 | LM7: B229 | LN7: B230 | LO7: B231 | LP7: B232 | LQ7: B233 | LR7: B234 | LS7: B235 | LT7: B236 | LU7: B237 | LV7: B238 | LW7: B239 | LX7: B240 | LY7: B241 | LZ7: B242 | MA7: B243 | MB7: B244 | MC7: B245 | MD7: B246 | ME7: B247 | MF7: B248 | MG7: B249 | MH7: B250 | MI7: B251 | MJ7: B252 | MK7: B253 | ML7: B254 | MM7: B255 | MN7: B256 | MO7: B257 | MP7: B258 | MQ7: B259 | MR7: B260 | MS7: B261 | MT7: B262 | MU7: B263 | MV7: B264 | MW7: B265 | MX7: B266 | MY7: B267 | MZ7: B268 | NA7: B269 | NB7: B270 | NC7: B271 | ND7: B272 | NE7: B273 | NF7: B274 | NG7: B275 | NH7: B276 | NI7: B277 | NJ7: B278 | NK7: B279 | NM7: B280 | NN7: B281 | NO7: B282 | NP7: B283 | NQ7: B284 | NR7: B285 | NS7: B286 | NT7: B287 | NU7: B288 | NV7: B289 | NW7: B290 | NX7: B291 | NY7: B292 | NZ7: B293 | OA7: B294 | OB7: B295 | OC7: B296 | OD7: B297 | OE7: B298 | OF7: B299 | OG7: B300 | OH7: B301 | OI7: B302 | OJ7: B303 | OK7: B304 | OL7: B305 | OM7: B306 | ON7: B307 | OO7: B308 | OP7: B309 | OQ7: B310 | OR7: B311 | OS7: B312 | OT7: B313 | OU7: B314 | OV7: B315 | OW7: B316 | OX7: B317 | OY7: B318 | OZ7: B319 | PA7: B320 | PB7: B321 | PC7: B322 | PD7: B323 | PE7: B324 | PF7: B325 | PG7: B326 | PH7: B327 | PI7: B328 | PJ7: B329 | PK7: B330 | PL7: B331 | PM7: B332 | PN7: B333 | PO7: LOELOES | PP7: LOELOES | PR7: B336 | PS7: B337 | PT7: B338 | PU7: B339 | PV7: B340 | PW7: B341 | PX7: B342 | PY7: B343 | PZ7: B344 | QA7: B345 | QB7: B346 | QC7: B347 | QD7: B348 | QE7: B349 | QF7: B350 | QG7: B351 | QI7: B352 | QJ7: B353 | QK7: B354 | QL7: B355 | QM7: B356 | QN7: B357 | QO7: B358 | QP7: B359 | QQ7: B360 | QR7: B361 | QS7: B362 | QT7: B363 | QU7: B364 | QV7: B365 | QW7: B366 | QX7: B367 | QY7: B368 | QZ7: B369 | RA7: B370 | RB7: B371 | RC7: B372 | RD7: B373 | RE7: B374 | RF7: B375 | RG7: B376 | RH7: B377 | RI7: B378 | RJ7: B379 | RK7: B380 | RL7: B381
A8: 3003
A9: 3004
A10: 3005
A11: 3006
A12: 3007
A13: 3008
A14: 3009
A15: 3010
A16: 3011
A17: 3012
A18: 3013
A19: 3014
A20: 3015
A21: 3016
A22: 3017
A23: 3018
A24: 3019
A25: 3020
A26: 3021
A27: 3022
A28: 3023
A29: 3024
A30: 3025
A31: 3026
A32: 3027
A33: 3028
A34: 3029
A35: 3030
A36: 3031
A37: 3032
A38: 3033
A39: 3034
A40: 3035
A41: 3036
A42: 3037
A43: 3038
A44: 3039
A45: 3040
A46: 3041
A47: 3042
A48: 3043
A49: 3044
A50: 3045
A51: 3046
A52: 3047
A53: 3048
A54: 3049
A55: 3050
A56: 3051
A57: 3052
A58: 3053
A59: 3054
A60: 3055
A61: 3056
A62: 3057
A63: 3058
A64: 3059
A65: 3060
A66: 3061
A67: 3062
A68: 3063
A69: 3064
A70: 3065
A71: 3066
A72: 3067
A73: 3068
A74: 3069
A75: 3070
A76: 3071
A77: 3072
A78: 3073
A79: 3074
A80: 3075
A81: 3076
A82: 3077
A83: 3078
A84: 3079
A85: 3080
A86: 3081
A87: 3082
A88: 3083
A89: 3084
A90: 3085
A91: 3086
A92: 3087
A93: 3088
A94: 3089
A95: 3090
A96: 3091
A97: 3092
A98: 3093
A99: 3094
A100: 3095
A101: 3096
A102: 3097
A103: 3098
A104: 3099
A105: 3100
A106: 3101
A107: 3102
A108: 3103
A109: 3104
A110: 3105
A111: 3106
A112: 3107
A113: 3108
A114: 3109
A115: 3110
A116: 3111
A117: 3112
A118: 3113
A119: 3114
A120: 3115
A121: 3116
A122: 3117
A123: 3118
A124: 3119
A125: 3120
A126: 3121
A127: 3122
A128: 3123
A129: 3124
A130: 3125
A131: 3126
A132: 3127
A133: 3128
A134: 3129
A135: 3130
A136: 3131
A137: 3132
A138: 3133
A139: 3134
A140: 3135
A141: 3136
A142: 3137
A143: 3138
A144: 3139
A145: 3140
A146: 3141
A147: 3142
A148: 3143
A149: 3144
A150: 3145
A151: 3146
A152: 3147
A153: 3148
A154: 3149
A155: 3150
A156: 3151
A157: 3152
A158: 3153
A159: 3154
A160: 3155
A161: 3156
A162: 3157
A163: 3158
A164: 3159
A165: 3160
A166: 3161
A167: 3162
A168: 3163
A169: 3164
A170: 3165
A171: 3166
A172: 3167
A173: 3168
A174: 3169
A175: 3170
A176: 3171
A177: 3172
A178: 3173
A179: 3174
A180: 3175
A181: 3176
A182: 3177
A183: 3178
A184: 3179
A185: 3180
A186: 3181
A187: 3182
A188: 3183
A189: 3184
A190: 3185
A191: 3186
A192: 3187
A193: 3188
A194: 3189
A195: 3190
A196: 3191
A197: 3192
A198: 3193
A199: 3194
A200: 3195
A201: 3196
... 804 more rows

Sheet INDUK30014000HAL1
E1: Nomor Induk Murid : | K1: 3001
D2: A. | E2: KETERANGAN MURID
E3: 1. | F3: Nama Murid :
I4: a. Lengkap | L4: =": "&VLOOKUP($K$1,INDUK30014000!$A$6:$CK$1005,2) -> : Nama Murid
I5: b. Panggilan | L5: =": "&VLOOKUP($K$1,INDUK30014000!$A$6:$CK$1005,7) -> : Nama Panggilan
E6: 2. | F6: Jenis Kelamin | L6: =": "&IF(VLOOKUP($K$1,INDUK30014000!$A$6:$CK$1005,8)="L","Laki-Laki","Perempuan") -> : Laki-Laki
B7: PAS FOTO 3X4cm | E7: 3. | F7: Kelahiran :
I8: a. Tanggal | L8: =": "&VLOOKUP($K$1,INDUK30014000!$A$6:$CK$1005,9) -> : Tanggal Lahir
I9: b. Tempat | L9: =": "&VLOOKUP($K$1,INDUK30014000!$A$6:$CK$1005,10) -> : Tempat Lahir
E10: 4. | F10: Agama | L10: =": "&VLOOKUP($K$1,INDUK30014000!$A$6:$CK$1005,11) -> : Agama
E11: 5. | F11: Kewarganegaraan | L11: =": "&VLOOKUP($K$1,INDUK30014000!$A$6:$CK$1005,12) -> : WNI
E12: 6. | F12: Jumlah Saudara
H13: a. | I13: Kandung | L13: =": "&VLOOKUP($K$1,INDUK30014000!$A$6:$CK$1005,13) -> : 21
H14: b. | I14: Tiri | L14: =": "&VLOOKUP($K$1,INDUK30014000!$A$6:$CK$1005,14) -> : 22
H15: c. | I15: Angkat | L15: =": "&VLOOKUP($K$1,INDUK30014000!$A$6:$CK$1005,15) -> : 23
E16: 7. | F16: Bahasa Sehari-hari Keluarga | L16: =": "&VLOOKUP($K$1,INDUK30014000!$A$6:$CK$1005,16) -> : Bahasa Sehari-hari keluarga
E17: 8. | F17: Keadaan Jasmani
H18: a. | I18: Berat Badan | L18: =": "&VLOOKUP($K$1,INDUK30014000!$A$6:$CK$1005,17) -> : Berat badan
H19: b. | I19: Tinggi Badan | L19: =": "&VLOOKUP($K$1,INDUK30014000!$A$6:$CK$1005,18) -> : tinggi badan
H20: c. | I20: Gol. Darah | L20: =": "&VLOOKUP($K$1,INDUK30014000!$A$6:$CK$1005,19) -> : gol.darah
H21: d. | I21: Penyakit Berat | L21: =": "&VLOOKUP($K$1,INDUK30014000!$A$6:$CK$1005,20) -> : penyakit berat
E22: 9. | F22: Alamat dan No. Telepon | L22: =": "&VLOOKUP($K$1,INDUK30014000!$A$6:$CK$1005,21) -> : alamat dan no. telp
E23: 10. | F23: Bertempat Tinggal Pada | L23: =": "&VLOOKUP($K$1,INDUK30014000!$A$6:$CK$1005,22) -> : tempat tinggal pada (ortu/numpang/asramah)
E24: 11. | F24: Jarak Tempat Tinggal ke Sekolah | L24: =": "&VLOOKUP($K$1,INDUK30014000!$A$6:$CK$1005,23) -> : Jarak Tempat Tinggal
E25: 12 | F25: Tahun Masuk Sekolah ini | L25: =": "&VLOOKUP($K$1,INDUK30014000!$A$6:$CK$1005,24) -> : tahun masuk sekolah ini
D26: B. | E26: KETERANGAN ORANG TUA / WALI MURID
E27: 1. | F27: Nama Orang Tua kandung
F28: a. | H28: Nama
H29: a) | I29: Ayah | L29: =": "&VLOOKUP($K$1,INDUK30014000!$A$6:$CK$1005,26) -> : no1
B30: PAS FOTO 3X4cm | H30: b) | I30: Ibu | L30: =": "&VLOOKUP($K$1,INDUK30014000!$A$6:$CK$1005,27) -> : no2
F31: b. | H31: Pendidikan Tertinggi
H32: a) | I32: Ayah | L32: =": "&VLOOKUP($K$1,INDUK30014000!$A$6:$CK$1005,28) -> : pt1
H33: b) | I33: Ibu | L33: =": "&VLOOKUP($K$1,INDUK30014000!$A$6:$CK$1005,29) -> : pt2
F34: c. | H34: Pekerjaan
H35: a) | I35: Ayah | L35: =": "&VLOOKUP($K$1,INDUK30014000!$A$6:$CK$1005,30) -> : pk1
H36: b) | I36: Ibu | L36: =": "&VLOOKUP($K$1,INDUK30014000!$A$6:$CK$1005,31) -> : pk2
F37: d. | H37: Wali Murid (jika mempunyai)
H38: a) | I38: Nama | L38: =": "&VLOOKUP($K$1,INDUK30014000!$A$6:$CK$1005,32) -> : Nama
H39: b) | I39: Hubungan Keluarga | L39: =": "&VLOOKUP($K$1,INDUK30014000!$A$6:$CK$1005,33) -> : hub.keluarga
H40: c) | I40: Pendidikan | L40: =": "&VLOOKUP($K$1,INDUK30014000!$A$6:$CK$1005,34) -> : Pendidikan
H41: d) | I41: Pekerjaan | L41: =": "&VLOOKUP($K$1,INDUK30014000!$A$6:$CK$1005,35) -> : Pekerjaan
D43: C. | E43: PERKEMBANGAN MURID
E44: 1. | F44: Pendidikan Sebelumnya :
F45: a. | H45: Masuk menjadi murid baru tingkat I
H46: a) | I46: Asal Murid | L46: =": "&VLOOKUP($K$1,INDUK30014000!$A$6:$CK$1005,37) -> : Langsung Orang Tua
H47: b) | I47: Nama TK | L47: =": "&VLOOKUP($K$1,INDUK30014000!$A$6:$CK$1005,38) -> : nama RA/TK
H48: c) | I48: Alamat | L48: =": "&VLOOKUP($K$1,INDUK30014000!$A$6:$CK$1005,39) -> : Alamat
H49: d) | I49: Tanggal dan No. STTB | L49: =": "&VLOOKUP($K$1,INDUK30014000!$A$6:$CK$1005,40) -> : Tanggal dan No.STTB
F50: b. | H50: Pindahan dari sekolah lain
H51: a) | I51: Nama Sekolah Asal | L51: =": "&VLOOKUP($K$1,INDUK30014000!$A$6:$CK$1005,41) -> : Nama Sekolah
H52: b) | I52: Dari Tingkat | L52: =": "&VLOOKUP($K$1,INDUK30014000!$A$6:$CK$1005,42) -> : dari Tingkat
H53: c) | I53: Diterima Tanggal | L53: =": "&VLOOKUP($K$1,INDUK30014000!$A$6:$CK$1005,43) -> : diterima Tanggal
E54: 2. | F54: Prestasi Belajar (hal. Berikut)
E55: 3. | F55: Keadaan Jasmani
D56: a. | E56: Tahun | I56: =VLOOKUP($K$1,INDUK30014000!$A$6:$CA$1005,45) -> 2017 | J56: =VLOOKUP($K$1,INDUK30014000!$A$6:$CA$1005,50) -> 2018 | K56: =VLOOKUP($K$1,INDUK30014000!$A$6:$CA$1005,55) -> 2019 | L56: =VLOOKUP($K$1,INDUK30014000!$A$6:$CK$1005,60) -> 2020 | M56: =VLOOKUP($K$1,INDUK30014000!$A$6:$CA$1005,65) -> 2021 | N56: =VLOOKUP($K$1,INDUK30014000!$A$6:$CA$1005,70) -> 2022 | O56: =VLOOKUP($K$1,INDUK30014000!$A$6:$CA$1005,75) -> 2023
B57: PAS FOTO 3X4cm | D57: b. | E57: Berat Badan | I57: =VLOOKUP($K$1,INDUK30014000!$A$6:$CK$1005,46)&" Kg" -> 20171 Kg | J57: =VLOOKUP($K$1,INDUK30014000!$A$6:$CK$1005,51)&" Kg" -> 20181 Kg | K57: =VLOOKUP($K$1,INDUK30014000!$A$6:$CK$1005,56)&" Kg" -> 20191 Kg | L57: =VLOOKUP($K$1,INDUK30014000!$A$6:$CK$1005,61)&" Kg" -> 20201 Kg | M57: =VLOOKUP($K$1,INDUK30014000!$A$6:$CK$1005,66)&" Kg" -> 20211 Kg | N57: =VLOOKUP($K$1,INDUK30014000!$A$6:$CK$1005,71)&" Kg" -> 20221 Kg | O57: =VLOOKUP($K$1,INDUK30014000!$A$6:$CK$1005,76)&" Kg" -> 20231 Kg
D58: c. | E58: Tinggi Badan | I58: =VLOOKUP($K$1,INDUK30014000!$A$6:$CK$1005,47)&" Cm" -> 20172 Cm | J58: =VLOOKUP($K$1,INDUK30014000!$A$6:$CK$1005,52)&" Cm" -> 20182 Cm | K58: =VLOOKUP($K$1,INDUK30014000!$A$6:$CK$1005,57)&" Cm" -> 20192 Cm | L58: =VLOOKUP($K$1,INDUK30014000!$A$6:$CK$1005,62)&" Cm" -> 20202 Cm | M58: =VLOOKUP($K$1,INDUK30014000!$A$6:$CK$1005,67)&" Cm" -> 20212 Cm | N58: =VLOOKUP($K$1,INDUK30014000!$A$6:$CK$1005,72)&" Cm" -> 20222 Cm | O58: =VLOOKUP($K$1,INDUK30014000!$A$6:$CK$1005,77)&" Cm" -> 20232 Cm
D59: d. | E59: Penyakit | I59: =VLOOKUP($K$1,INDUK30014000!$A$6:$CK$1005,48) -> 20173 | J59: =VLOOKUP($K$1,INDUK30014000!$A$6:$CK$1005,53) -> 20183 | K59: =VLOOKUP($K$1,INDUK30014000!$A$6:$CK$1005,58) -> 20193 | L59: =VLOOKUP($K$1,INDUK30014000!$A$6:$CK$1005,63) -> 20203 | M59: =VLOOKUP($K$1,INDUK30014000!$A$6:$CK$1005,68) -> 20213 | N59: =VLOOKUP($K$1,INDUK30014000!$A$6:$CK$1005,73) -> 20223 | O59: =VLOOKUP($K$1,INDUK30014000!$A$6:$CK$1005,78) -> 20233
D60: e. | E60: Kelainan Jasmani | I60: =VLOOKUP($K$1,INDUK30014000!$A$6:$CK$1005,49) -> 20174 | J60: =VLOOKUP($K$1,INDUK30014000!$A$6:$CK$1005,54) -> 20184 | K60: =VLOOKUP($K$1,INDUK30014000!$A$6:$CK$1005,59) -> 20194 | L60: =VLOOKUP($K$1,INDUK30014000!$A$6:$CK$1005,64) -> 20204 | M60: =VLOOKUP($K$1,INDUK30014000!$A$6:$CK$1005,69) -> 20214 | N60: =VLOOKUP($K$1,INDUK30014000!$A$6:$CK$1005,74) -> 20224 | O60: =VLOOKUP($K$1,INDUK30014000!$A$6:$CK$1005,79) -> 20234
D62: D. | E62: BEA SISWA ( Jenis Beasiswa ) | L62: =": "&VLOOKUP($K$1,INDUK30014000!$A$6:$CK$1005,80) -> : KIP
D63: E. | E63: MENINGGALKAN MADRASAH
E64: 1. | F64: Tamat Belajar
F65: a) | H65: Tahun Tamat | L65: =": Tahun: "&VLOOKUP($K$1,INDUK30014000!$A$6:$CK$1005,81) -> : Tahun: Tahun | N65: ="No.STTB : "&VLOOKUP($K$1,INDUK30014000!$A$6:$CK$1005,82) -> No.STTB : No. STTB
F66: b) | H66: Melanjutkan Madrasah | L66: =": "&VLOOKUP($K$1,INDUK30014000!$A$6:$CK$1005,83) -> : Melanjutkan Ke
E67: 2. | F67: Pindah Madrasah
F68: a) | H68: Dari Tingkat | L68: =": "&VLOOKUP($K$1,INDUK30014000!$A$6:$CK$1005,84) -> : Dari Tingkat
F69: b) | H69: Ke Sekolah | L69: =": "&VLOOKUP($K$1,INDUK30014000!$A$6:$CK$1005,85) -> : Ke Sekolah
F70: c) | H70: Ke Tingkat | L70: =": "&VLOOKUP($K$1,INDUK30014000!$A$6:$CK$1005,86) -> : Ke Tingkat
F71: d) | H71: Tanggal | L71: =": "&VLOOKUP($K$1,INDUK30014000!$A$6:$CK$1005,87) -> : Tanggal
E72: 3. | F72: Keluar Madrasah
F73: a. | H73: Tanggal | L73: =": "&VLOOKUP($K$1,INDUK30014000!$A$6:$CK$1005,88) -> : Tanggal
F74: b. | H74: Alasan | L74: =": "&VLOOKUP($K$1,INDUK30014000!$A$6:$CK$1005,89) -> : Alasan

Sheet INDUK30014000HAL2
A1: V. | B1: PENILAIAN HASIL BELAJAR | V1: NO.INDUK | Z1: : | AA1: 3002
A2: NO | B2: Mata Pelajaran | F2: ="TP. "&IF(VLOOKUP($AA$1,INDUK30014000!$A$6:$RL$1005,147,)=0,"-",VLOOKUP($AA$1,INDUK30014000!$A$6:$RL$1005,147,)) -> TP. B56 | J2: ="TP. "&IF(VLOOKUP($AA$1,INDUK30014000!$A$6:$RL$1005,204,)=0,"-",VLOOKUP($AA$1,INDUK30014000!$A$6:$RL$1005,204,)) -> TP. B111 | N2: ="TP. "&IF(VLOOKUP($AA$1,INDUK30014000!$A$6:$RL$1005,261,)=0,"-",VLOOKUP($AA$1,INDUK30014000!$A$6:$RL$1005,261,)) -> TP. B167 | R2: ="TP. "&IF(VLOOKUP($AA$1,INDUK30014000!$A$6:$RL$1005,318,)=0,"-",VLOOKUP($AA$1,INDUK30014000!$A$6:$RL$1005,318,)) -> TP. B223 | V2: ="TP. "&IF(VLOOKUP($AA$1,INDUK30014000!$A$6:$RL$1005,375,)=0,"-",VLOOKUP($AA$1,INDUK30014000!$A$6:$RL$1005,375,)) -> TP. B279 | Z2: ="TP. "&IF(VLOOKUP($AA$1,INDUK30014000!$A$6:$RL$1005,432,)=0,"-",VLOOKUP($AA$1,INDUK30014000!$A$6:$RL$1005,432,)) -> TP. LOELOES | AD2: NILAI | AF2: 15
F3: KELAS 1 | J3: KELAS 2 | N3: KELAS 3 | R3: KELAS 4 | V3: KELAS 5 | Z3: KELAS 6 | AD3: NEM | AE3: STTB/ IJAZAH
F4: Smt I | H4: Smt II | J4: Smt I | L4: Smt II | N4: Smt I | P4: Smt II | R4: Smt I | T4: Smt II | V4: Smt I | X4: Smt II | Z4: Smt I | AB4: Smt II
F5: KKM | G5: Nilai | H5: KKM | I5: Nilai | J5: KKM | K5: Nilai | L5: KKM | M5: Nilai | N5: KKM | O5: Nilai | P5: KKM | Q5: Nilai | R5: KKM | S5: Nilai | T5: KKM | U5: Nilai | V5: KKM | W5: Nilai | X5: KKM | Y5: Nilai | Z5: KKM | AA5: Nilai | AB5: KKM | AC5: Nilai
A6: 1 | B6: Pendidikan Agama Islam
B7: a. | C7: Al-qur'an Hadits | G7: =IF(VLOOKUP($AA$1,INDUK30014000!$A$6:$RL$1005,92,)=0,"-",VLOOKUP($AA$1,INDUK30014000!$A$6:$RL$1005,92,)) -> B1 | I7: =IF(VLOOKUP($AA$1,INDUK30014000!$A$6:$RL$1005,93,)=0,"-",VLOOKUP($AA$1,INDUK30014000!$A$6:$RL$1005,93,)) -> B2 | K7: =IF(VLOOKUP($AA$1,INDUK30014000!$A$6:$RL$1005,149,)=0,"-",VLOOKUP($AA$1,INDUK30014000!$A$6:$RL$1005,149,)) -> B56 | M7: =IF(VLOOKUP($AA$1,INDUK30014000!$A$6:$RL$1005,150,)=0,"-",VLOOKUP($AA$1,INDUK30014000!$A$6:$RL$1005,150,)) -> B57 | O7: =IF(VLOOKUP($AA$1,INDUK30014000!$A$6:$RL$1005,206,)=0,"-",VLOOKUP($AA$1,INDUK30014000!$A$6:$RL$1005,206,)) -> B112 | Q7: =IF(VLOOKUP($AA$1,INDUK30014000!$A$6:$RL$1005,207,)=0,"-",VLOOKUP($AA$1,INDUK30014000!$A$6:$RL$1005,207,)) -> B113 | S7: =IF(VLOOKUP($AA$1,INDUK30014000!$A$6:$RL$1005,263,)=0,"-",VLOOKUP($AA$1,INDUK30014000!$A$6:$RL$1005,263,)) -> B168 | U7: =IF(VLOOKUP($AA$1,INDUK30014000!$A$6:$RL$1005,264,)=0,"-",VLOOKUP($AA$1,INDUK30014000!$A$6:$RL$1005,264,)) -> B169 | W7: =IF(VLOOKUP($AA$1,INDUK30014000!$A$6:$RL$1005,320,)=0,"-",VLOOKUP($AA$1,INDUK30014000!$A$6:$RL$1005,320,)) -> B224 | Y7: =IF(VLOOKUP($AA$1,INDUK30014000!$A$6:$RL$1005,321,)=0,"-",VLOOKUP($AA$1,INDUK30014000!$A$6:$RL$1005,321,)) -> B225 | AA7: =IF(VLOOKUP($AA$1,INDUK30014000!$A$6:$RL$1005,377,)=0,"-",VLOOKUP($AA$1,INDUK30014000!$A$6:$RL$1005,377,)) -> B280 | AC7: =IF(VLOOKUP($AA$1,INDUK30014000!$A$6:$RL$1005,378,)=0,"-",VLOOKUP($AA$1,INDUK30014000!$A$6:$RL$1005,378,)) -> B281 | AD7: =IF(VLOOKUP($AA$1,INDUK30014000!$A$6:$RL$1005,451,)=0,"-",VLOOKUP($AA$1,INDUK30014000!$A$6:$RL$1005,451,)) -> B352 | AE7: =IF(VLOOKUP($AA$1,INDUK30014000!$A$6:$RL$1005,452,)=0,"-",VLOOKUP($AA$1,INDUK30014000!$A$6:$RL$1005,452,)) -> B353 | AF7: 1
B8: b. | C8: Aqidah Akhlaq | G8: =IF(VLOOKUP($AA$1,INDUK30014000!$A$6:$RL$1005,94,)=0,"-",VLOOKUP($AA$1,INDUK30014000!$A$6:$RL$1005,94,)) -> B3 | I8: =IF(VLOOKUP($AA$1,INDUK30014000!$A$6:$RL$1005,95,)=0,"-",VLOOKUP($AA$1,INDUK30014000!$A$6:$RL$1005,95,)) -> B4 | K8: =IF(VLOOKUP($AA$1,INDUK30014000!$A$6:$RL$1005,151,)=0,"-",VLOOKUP($AA$1,INDUK30014000!$A$6:$RL$1005,151,)) -> B58 | M8: =IF(VLOOKUP($AA$1,INDUK30014000!$A$6:$RL$1005,152,)=0,"-",VLOOKUP($AA$1,INDUK30014000!$A$6:$RL$1005,152,)) -> B59 | O8: =IF(VLOOKUP($AA$1,INDUK30014000!$A$6:$RL$1005,208,)=0,"-",VLOOKUP($AA$1,INDUK30014000!$A$6:$RL$1005,208,)) -> B114 | Q8: =IF(VLOOKUP($AA$1,INDUK30014000!$A$6:$RL$1005,209,)=0,"-",VLOOKUP($AA$1,INDUK30014000!$A$6:$RL$1005,209,)) -> B115 | S8: =IF(VLOOKUP($AA$1,INDUK30014000!$A$6:$RL$1005,265,)=0,"-",VLOOKUP($AA$1,INDUK30014000!$A$6:$RL$1005,265,)) -> B170 | U8: =IF(VLOOKUP($AA$1,INDUK30014000!$A$6:$RL$1005,266,)=0,"-",VLOOKUP($AA$1,INDUK30014000!$A$6:$RL$1005,266,)) -> B171 | W8: =IF(VLOOKUP($AA$1,INDUK30014000!$A$6:$RL$1005,322,)=0,"-",VLOOKUP($AA$1,INDUK30014000!$A$6:$RL$1005,322,)) -> B226 | Y8: =IF(VLOOKUP($AA$1,INDUK30014000!$A$6:$RL$1005,323,)=0,"-",VLOOKUP($AA$1,INDUK30014000!$A$6:$RL$1005,323,)) -> B227 | AA8: =IF(VLOOKUP($AA$1,INDUK30014000!$A$6:$RL$1005,379,)=0,"-",VLOOKUP($AA$1,INDUK30014000!$A$6:$RL$1005,379,)) -> B282 | AC8: =IF(VLOOKUP($AA$1,INDUK30014000!$A$6:$RL$1005,380,)=0,"-",VLOOKUP($AA$1,INDUK30014000!$A$6:$RL$1005,380,)) -> B283 | AD8: =IF(VLOOKUP($AA$1,INDUK30014000!$A$6:$RL$1005,453,)=0,"-",VLOOKUP($AA$1,INDUK30014000!$A$6:$RL$1005,453,)) -> B354 | AE8: =IF(VLOOKUP($AA$1,INDUK30014000!$A$6:$RL$1005,454,)=0,"-",VLOOKUP($AA$1,INDUK30014000!$A$6:$RL$1005,454,)) -> B355 | AF8: 2
B9: c. | C9: Fiqih | G9: =IF(VLOOKUP($AA$1,INDUK30014000!$A$6:$RL$1005,96,)=0,"-",VLOOKUP($AA$1,INDUK30014000!$A$6:$RL$1005,96,)) -> B5 | I9: =IF(VLOOKUP($AA$1,INDUK30014000!$A$6:$RL$1005,97,)=0,"-",VLOOKUP($AA$1,INDUK30014000!$A$6:$RL$1005,97,)) -> B6 | K9: =IF(VLOOKUP($AA$1,INDUK30014000!$A$6:$RL$1005,153,)=0,"-",VLOOKUP($AA$1,INDUK30014000!$A$6:$RL$1005,153,)) -> B60 | M9: =IF(VLOOKUP($AA$1,INDUK30014000!$A$6:$RL$1005,154,)=0,"-",VLOOKUP($AA$1,INDUK30014000!$A$6:$RL$1005,154,)) -> B61 | O9: =IF(VLOOKUP($AA$1,INDUK30014000!$A$6:$RL$1005,210,)=0,"-",VLOOKUP($AA$1,INDUK30014000!$A$6:$RL$1005,210,)) -> B116 | Q9: =IF(VLOOKUP($AA$1,INDUK30014000!$A$6:$RL$1005,211,)=0,"-",VLOOKUP($AA$1,INDUK30014000!$A$6:$RL$1005,211,)) -> B117 | S9: =IF(VLOOKUP($AA$1,INDUK30014000!$A$6:$RL$1005,267,)=0,"-",VLOOKUP($AA$1,INDUK30014000!$A$6:$RL$1005,267,)) -> B172 | U9: =IF(VLOOKUP($AA$1,INDUK30014000!$A$6:$RL$1005,268,)=0,"-",VLOOKUP($AA$1,INDUK30014000!$A$6:$RL$1005,268,)) -> B173 | W9: =IF(VLOOKUP($AA$1,INDUK30014000!$A$6:$RL$1005,324,)=0,"-",VLOOKUP($AA$1,INDUK30014000!$A$6:$RL$1005,324,)) -> B228 | Y9: =IF(VLOOKUP($AA$1,INDUK30014000!$A$6:$RL$1005,325,)=0,"-",VLOOKUP($AA$1,INDUK30014000!$A$6:$RL$1005,325,)) -> B229 | AA9: =IF(VLOOKUP($AA$1,INDUK30014000!$A$6:$RL$1005,381,)=0,"-",VLOOKUP($AA$1,INDUK30014000!$A$6:$RL$1005,381,)) -> B284 | AC9: =IF(VLOOKUP($AA$1,INDUK30014000!$A$6:$RL$1005,382,)=0,"-",VLOOKUP($AA$1,INDUK30014000!$A$6:$RL$1005,382,)) -> B285 | AD9: =IF(VLOOKUP($AA$1,INDUK30014000!$A$6:$RL$1005,455,)=0,"-",VLOOKUP($AA$1,INDUK30014000!$A$6:$RL$1005,455,)) -> B356 | AE9: =IF(VLOOKUP($AA$1,INDUK30014000!$A$6:$RL$1005,456,)=0,"-",VLOOKUP($AA$1,INDUK30014000!$A$6:$RL$1005,456,)) -> B357 | AF9: 3
B10: d. | C10: Sejarah Kebudayaan Islam | G10: =IF(VLOOKUP($AA$1,INDUK30014000!$A$6:$RL$1005,98,)=0,"-",VLOOKUP($AA$1,INDUK30014000!$A$6:$RL$1005,98,)) -> B7 | I10: =IF(VLOOKUP($AA$1,INDUK30014000!$A$6:$RL$1005,99,)=0,"-",VLOOKUP($AA$1,INDUK30014000!$A$6:$RL$1005,99,)) -> B8 | K10: =IF(VLOOKUP($AA$1,INDUK30014000!$A$6:$RL$1005,155,)=0,"-",VLOOKUP($AA$1,INDUK30014000!$A$6:$RL$1005,155,)) -> B62 | M10: =IF(VLOOKUP($AA$1,INDUK30014000!$A$6:$RL$1005,156,)=0,"-",VLOOKUP($AA$1,INDUK30014000!$A$6:$RL$1005,156,)) -> B63 | O10: =IF(VLOOKUP($AA$1,INDUK30014000!$A$6:$RL$1005,212,)=0,"-",VLOOKUP($AA$1,INDUK30014000!$A$6:$RL$1005,212,)) -> B118 | Q10: =IF(VLOOKUP($AA$1,INDUK30014000!$A$6:$RL$1005,213,)=0,"-",VLOOKUP($AA$1,INDUK30014000!$A$6:$RL$1005,213,)) -> B119 | S10: =IF(VLOOKUP($AA$1,INDUK30014000!$A$6:$RL$1005,269,)=0,"-",VLOOKUP($AA$1,INDUK30014000!$A$6:$RL$1005,269,)) -> B174 | U10: =IF(VLOOKUP($AA$1,INDUK30014000!$A$6:$RL$1005,270,)=0,"-",VLOOKUP($AA$1,INDUK30014000!$A$6:$RL$1005,270,)) -> B175 | W10: =IF(VLOOKUP($AA$1,INDUK30014000!$A$6:$RL$1005,326,)=0,"-",VLOOKUP($AA$1,INDUK30014000!$A$6:$RL$1005,326,)) -> B230 | Y10: =IF(VLOOKUP($AA$1,INDUK30014000!$A$6:$RL$1005,327,)=0,"-",VLOOKUP($AA$1,INDUK30014000!$A$6:$RL$1005,327,)) -> B231 | AA10: =IF(VLOOKUP($AA$1,INDUK30014000!$A$6:$RL$1005,383,)=0,"-",VLOOKUP($AA$1,INDUK30014000!$A$6:$RL$1005,383,)) -> B286 | AC10: =IF(VLOOKUP($AA$1,INDUK30014000!$A$6:$RL$1005,384,)=0,"-",VLOOKUP($AA$1,INDUK30014000!$A$6:$RL$1005,384,)) -> B287 | AD10: =IF(VLOOKUP($AA$1,INDUK30014000!$A$6:$RL$1005,457,)=0,"-",VLOOKUP($AA$1,INDUK30014000!$A$6:$RL$1005,457,)) -> B358 | AE10: =IF(VLOOKUP($AA$1,INDUK30014000!$A$6:$RL$1005,458,)=0,"-",VLOOKUP($AA$1,INDUK30014000!$A$6:$RL$1005,458,)) -> B359 | AF10: 4
A11: 2 | B11: Pendidikan Kewarganegaraan | G11: =IF(VLOOKUP($AA$1,INDUK30014000!$A$6:$RL$1005,104,)=0,"-",VLOOKUP($AA$1,INDUK30014000!$A$6:$RL$1005,104,)) -> B13 | I11: =IF(VLOOKUP($AA$1,INDUK30014000!$A$6:$RL$1005,105,)=0,"-",VLOOKUP($AA$1,INDUK30014000!$A$6:$RL$1005,105,)) -> B14 | K11: =IF(VLOOKUP($AA$1,INDUK30014000!$A$6:$RL$1005,161,)=0,"-",VLOOKUP($AA$1,INDUK30014000!$A$6:$RL$1005,161,)) -> B68 | M11: =IF(VLOOKUP($AA$1,INDUK30014000!$A$6:$RL$1005,162,)=0,"-",VLOOKUP($AA$1,INDUK30014000!$A$6:$RL$1005,162,)) -> B69 | O11: =IF(VLOOKUP($AA$1,INDUK30014000!$A$6:$RL$1005,218,)=0,"-",VLOOKUP($AA$1,INDUK30014000!$A$6:$RL$1005,218,)) -> B124 | Q11: =IF(VLOOKUP($AA$1,INDUK30014000!$A$6:$RL$1005,219,)=0,"-",VLOOKUP($AA$1,INDUK30014000!$A$6:$RL$1005,219,)) -> B125 | S11: =IF(VLOOKUP($AA$1,INDUK30014000!$A$6:$RL$1005,275,)=0,"-",VLOOKUP($AA$1,INDUK30014000!$A$6:$RL$1005,275,)) -> B180 | U11: =IF(VLOOKUP($AA$1,INDUK30014000!$A$6:$RL$1005,276,)=0,"-",VLOOKUP($AA$1,INDUK30014000!$A$6:$RL$1005,276,)) -> B181 | W11: =IF(VLOOKUP($AA$1,INDUK30014000!$A$6:$RL$1005,332,)=0,"-",VLOOKUP($AA$1,INDUK30014000!$A$6:$RL$1005,332,)) -> B236 | Y11: =IF(VLOOKUP($AA$1,INDUK30014000!$A$6:$RL$1005,333,)=0,"-",VLOOKUP($AA$1,INDUK30014000!$A$6:$RL$1005,333,)) -> B237 | AA11: =IF(VLOOKUP($AA$1,INDUK30014000!$A$6:$RL$1005,389,)=0,"-",VLOOKUP($AA$1,INDUK30014000!$A$6:$RL$1005,389,)) -> B292 | AC11: =IF(VLOOKUP($AA$1,INDUK30014000!$A$6:$RL$1005,390,)=0,"-",VLOOKUP($AA$1,INDUK30014000!$A$6:$RL$1005,390,)) -> B293 | AD11: =IF(VLOOKUP($AA$1,INDUK30014000!$A$6:$RL$1005,463,)=0,"-",VLOOKUP($AA$1,INDUK30014000!$A$6:$RL$1005,463,)) -> B364 | AE11: =IF(VLOOKUP($AA$1,INDUK30014000!$A$6:$RL$1005,464,)=0,"-",VLOOKUP($AA$1,INDUK30014000!$A$6:$RL$1005,464,)) -> B365 | AF11: 7
A12: 3 | B12: Bahasa Indonesia | G12: =IF(VLOOKUP($AA$1,INDUK30014000!$A$6:$RL$1005,106,)=0,"-",VLOOKUP($AA$1,INDUK30014000!$A$6:$RL$1005,106,)) -> B15 | I12: =IF(VLOOKUP($AA$1,INDUK30014000!$A$6:$RL$1005,107,)=0,"-",VLOOKUP($AA$1,INDUK30014000!$A$6:$RL$1005,107,)) -> B16 | K12: =IF(VLOOKUP($AA$1,INDUK30014000!$A$6:$RL$1005,163,)=0,"-",VLOOKUP($AA$1,INDUK30014000!$A$6:$RL$1005,163,)) -> B70 | M12: =IF(VLOOKUP($AA$1,INDUK30014000!$A$6:$RL$1005,164,)=0,"-",VLOOKUP($AA$1,INDUK30014000!$A$6:$RL$1005,164,)) -> B71 | O12: =IF(VLOOKUP($AA$1,INDUK30014000!$A$6:$RL$1005,220,)=0,"-",VLOOKUP($AA$1,INDUK30014000!$A$6:$RL$1005,220,)) -> B126 | Q12: =IF(VLOOKUP($AA$1,INDUK30014000!$A$6:$RL$1005,221,)=0,"-",VLOOKUP($AA$1,INDUK30014000!$A$6:$RL$1005,221,)) -> B127 | S12: =IF(VLOOKUP($AA$1,INDUK30014000!$A$6:$RL$1005,277,)=0,"-",VLOOKUP($AA$1,INDUK30014000!$A$6:$RL$1005,277,)) -> B182 | U12: =IF(VLOOKUP($AA$1,INDUK30014000!$A$6:$RL$1005,278,)=0,"-",VLOOKUP($AA$1,INDUK30014000!$A$6:$RL$1005,278,)) -> B183 | W12: =IF(VLOOKUP($AA$1,INDUK30014000!$A$6:$RL$1005,334,)=0,"-",VLOOKUP($AA$1,INDUK30014000!$A$6:$RL$1005,334,)) -> B238 | Y12: =IF(VLOOKUP($AA$1,INDUK30014000!$A$6:$RL$1005,335,)=0,"-",VLOOKUP($AA$1,INDUK30014000!$A$6:$RL$1005,335,)) -> B239 | AA12: =IF(VLOOKUP($AA$1,INDUK30014000!$A$6:$RL$1005,391,)=0,"-",VLOOKUP($AA$1,INDUK30014000!$A$6:$RL$1005,391,)) -> B294 | AC12: =IF(VLOOKUP($AA$1,INDUK30014000!$A$6:$RL$1005,392,)=0,"-",VLOOKUP($AA$1,INDUK30014000!$A$6:$RL$1005,392,)) -> B295 | AD12: =IF(VLOOKUP($AA$1,INDUK30014000!$A$6:$RL$1005,465,)=0,"-",VLOOKUP($AA$1,INDUK30014000!$A$6:$RL$1005,465,)) -> B366 | AE12: =IF(VLOOKUP($AA$1,INDUK30014000!$A$6:$RL$1005,466,)=0,"-",VLOOKUP($AA$1,INDUK30014000!$A$6:$RL$1005,466,)) -> B367 | AF12: 8
A13: 4 | B13: Bahasa Arab | G13: =IF(VLOOKUP($AA$1,INDUK30014000!$A$6:$RL$1005,102,)=0,"-",VLOOKUP($AA$1,INDUK30014000!$A$6:$RL$1005,102,)) -> B11 | I13: =IF(VLOOKUP($AA$1,INDUK30014000!$A$6:$RL$1005,103,)=0,"-",VLOOKUP($AA$1,INDUK30014000!$A$6:$RL$1005,103,)) -> B12 | K13: =IF(VLOOKUP($AA$1,INDUK30014000!$A$6:$RL$1005,159,)=0,"-",VLOOKUP($AA$1,INDUK30014000!$A$6:$RL$1005,159,)) -> B66 | M13: =IF(VLOOKUP($AA$1,INDUK30014000!$A$6:$RL$1005,160,)=0,"-",VLOOKUP($AA$1,INDUK30014000!$A$6:$RL$1005,160,)) -> B67 | O13: =IF(VLOOKUP($AA$1,INDUK30014000!$A$6:$RL$1005,216,)=0,"-",VLOOKUP($AA$1,INDUK30014000!$A$6:$RL$1005,216,)) -> B122 | Q13: =IF(VLOOKUP($AA$1,INDUK30014000!$A$6:$RL$1005,217,)=0,"-",VLOOKUP($AA$1,INDUK30014000!$A$6:$RL$1005,217,)) -> B123 | S13: =IF(VLOOKUP($AA$1,INDUK30014000!$A$6:$RL$1005,273,)=0,"-",VLOOKUP($AA$1,INDUK30014000!$A$6:$RL$1005,273,)) -> B178 | U13: =IF(VLOOKUP($AA$1,INDUK30014000!$A$6:$RL$1005,274,)=0,"-",VLOOKUP($AA$1,INDUK30014000!$A$6:$RL$1005,274,)) -> B179 | W13: =IF(VLOOKUP($AA$1,INDUK30014000!$A$6:$RL$1005,330,)=0,"-",VLOOKUP($AA$1,INDUK30014000!$A$6:$RL$1005,330,)) -> B234 | Y13: =IF(VLOOKUP($AA$1,INDUK30014000!$A$6:$RL$1005,331,)=0,"-",VLOOKUP($AA$1,INDUK30014000!$A$6:$RL$1005,331,)) -> B235 | AA13: =IF(VLOOKUP($AA$1,INDUK30014000!$A$6:$RL$1005,387,)=0,"-",VLOOKUP($AA$1,INDUK30014000!$A$6:$RL$1005,387,)) -> B290 | AC13: =IF(VLOOKUP($AA$1,INDUK30014000!$A$6:$RL$1005,388,)=0,"-",VLOOKUP($AA$1,INDUK30014000!$A$6:$RL$1005,388,)) -> B291 | AD13: =IF(VLOOKUP($AA$1,INDUK30014000!$A$6:$RL$1005,461,)=0,"-",VLOOKUP($AA$1,INDUK30014000!$A$6:$RL$1005,461,)) -> B362 | AE13: =IF(VLOOKUP($AA$1,INDUK30014000!$A$6:$RL$1005,462,)=0,"-",VLOOKUP($AA$1,INDUK30014000!$A$6:$RL$1005,462,)) -> B363 | AF13: 6
A14: 5 | B14: Matematika | G14: =IF(VLOOKUP($AA$1,INDUK30014000!$A$6:$RL$1005,108,)=0,"-",VLOOKUP($AA$1,INDUK30014000!$A$6:$RL$1005,108,)) -> B17 | I14: =IF(VLOOKUP($AA$1,INDUK30014000!$A$6:$RL$1005,109,)=0,"-",VLOOKUP($AA$1,INDUK30014000!$A$6:$RL$1005,109,)) -> B18 | K14: =IF(VLOOKUP($AA$1,INDUK30014000!$A$6:$RL$1005,165,)=0,"-",VLOOKUP($AA$1,INDUK30014000!$A$6:$RL$1005,165,)) -> B72 | M14: =IF(VLOOKUP($AA$1,INDUK30014000!$A$6:$RL$1005,166,)=0,"-",VLOOKUP($AA$1,INDUK30014000!$A$6:$RL$1005,166,)) -> B73 | O14: =IF(VLOOKUP($AA$1,INDUK30014000!$A$6:$RL$1005,222,)=0,"-",VLOOKUP($AA$1,INDUK30014000!$A$6:$RL$1005,222,)) -> B128 | Q14: =IF(VLOOKUP($AA$1,INDUK30014000!$A$6:$RL$1005,223,)=0,"-",VLOOKUP($AA$1,INDUK30014000!$A$6:$RL$1005,223,)) -> B129 | S14: =IF(VLOOKUP($AA$1,INDUK30014000!$A$6:$RL$1005,279,)=0,"-",VLOOKUP($AA$1,INDUK30014000!$A$6:$RL$1005,279,)) -> B184 | U14: =IF(VLOOKUP($AA$1,INDUK30014000!$A$6:$RL$1005,280,)=0,"-",VLOOKUP($AA$1,INDUK30014000!$A$6:$RL$1005,280,)) -> B185 | W14: =IF(VLOOKUP($AA$1,INDUK30014000!$A$6:$RL$1005,336,)=0,"-",VLOOKUP($AA$1,INDUK30014000!$A$6:$RL$1005,336,)) -> B240 | Y14: =IF(VLOOKUP($AA$1,INDUK30014000!$A$6:$RL$1005,337,)=0,"-",VLOOKUP($AA$1,INDUK30014000!$A$6:$RL$1005,337,)) -> B241 | AA14: =IF(VLOOKUP($AA$1,INDUK30014000!$A$6:$RL$1005,393,)=0,"-",VLOOKUP($AA$1,INDUK30014000!$A$6:$RL$1005,393,)) -> B296 | AC14: =IF(VLOOKUP($AA$1,INDUK30014000!$A$6:$RL$1005,394,)=0,"-",VLOOKUP($AA$1,INDUK30014000!$A$6:$RL$1005,394,)) -> B297 | AD14: =IF(VLOOKUP($AA$1,INDUK30014000!$A$6:$RL$1005,467,)=0,"-",VLOOKUP($AA$1,INDUK30014000!$A$6:$RL$1005,467,)) -> B368 | AE14: =IF(VLOOKUP($AA$1,INDUK30014000!$A$6:$RL$1005,468,)=0,"-",VLOOKUP($AA$1,INDUK30014000!$A$6:$RL$1005,468,)) -> B369 | AF14: 9
A15: 6 | B15: Ilmu Pengetahuan Alam | G15: =IF(VLOOKUP($AA$1,INDUK30014000!$A$6:$RL$1005,110,)=0,"-",VLOOKUP($AA$1,INDUK30014000!$A$6:$RL$1005,110,)) -> B19 | I15: =IF(VLOOKUP($AA$1,INDUK30014000!$A$6:$RL$1005,111,)=0,"-",VLOOKUP($AA$1,INDUK30014000!$A$6:$RL$1005,111,)) -> B20 | K15: =IF(VLOOKUP($AA$1,INDUK30014000!$A$6:$RL$1005,167,)=0,"-",VLOOKUP($AA$1,INDUK30014000!$A$6:$RL$1005,167,)) -> B74 | M15: =IF(VLOOKUP($AA$1,INDUK30014000!$A$6:$RL$1005,168,)=0,"-",VLOOKUP($AA$1,INDUK30014000!$A$6:$RL$1005,168,)) -> B75 | O15: =IF(VLOOKUP($AA$1,INDUK30014000!$A$6:$RL$1005,224,)=0,"-",VLOOKUP($AA$1,INDUK30014000!$A$6:$RL$1005,224,)) -> B130 | Q15: =IF(VLOOKUP($AA$1,INDUK30014000!$A$6:$RL$1005,225,)=0,"-",VLOOKUP($AA$1,INDUK30014000!$A$6:$RL$1005,225,)) -> B131 | S15: =IF(VLOOKUP($AA$1,INDUK30014000!$A$6:$RL$1005,281,)=0,"-",VLOOKUP($AA$1,INDUK30014000!$A$6:$RL$1005,281,)) -> B186 | U15: =IF(VLOOKUP($AA$1,INDUK30014000!$A$6:$RL$1005,282,)=0,"-",VLOOKUP($AA$1,INDUK30014000!$A$6:$RL$1005,282,)) -> B187 | W15: =IF(VLOOKUP($AA$1,INDUK30014000!$A$6:$RL$1005,338,)=0,"-",VLOOKUP($AA$1,INDUK30014000!$A$6:$RL$1005,338,)) -> B242 | Y15: =IF(VLOOKUP($AA$1,INDUK30014000!$A$6:$RL$1005,339,)=0,"-",VLOOKUP($AA$1,INDUK30014000!$A$6:$RL$1005,339,)) -> B243 | AA15: =IF(VLOOKUP($AA$1,INDUK30014000!$A$6:$RL$1005,395,)=0,"-",VLOOKUP($AA$1,INDUK30014000!$A$6:$RL$1005,395,)) -> B298 | AC15: =IF(VLOOKUP($AA$1,INDUK30014000!$A$6:$RL$1005,396,)=0,"-",VLOOKUP($AA$1,INDUK30014000!$A$6:$RL$1005,396,)) -> B299 | AD15: =IF(VLOOKUP($AA$1,INDUK30014000!$A$6:$RL$1005,469,)=0,"-",VLOOKUP($AA$1,INDUK30014000!$A$6:$RL$1005,469,)) -> B370 | AE15: =IF(VLOOKUP($AA$1,INDUK30014000!$A$6:$RL$1005,470,)=0,"-",VLOOKUP($AA$1,INDUK30014000!$A$6:$RL$1005,470,)) -> B371 | AF15: 10
A16: 7 | B16: Ilmu Pengetahuan Sosial | G16: =IF(VLOOKUP($AA$1,INDUK30014000!$A$6:$RL$1005,112,)=0,"-",VLOOKUP($AA$1,INDUK30014000!$A$6:$RL$1005,112,)) -> B21 | I16: =IF(VLOOKUP($AA$1,INDUK30014000!$A$6:$RL$1005,113,)=0,"-",VLOOKUP($AA$1,INDUK30014000!$A$6:$RL$1005,113,)) -> B22 | K16: =IF(VLOOKUP($AA$1,INDUK30014000!$A$6:$RL$1005,169,)=0,"-",VLOOKUP($AA$1,INDUK30014000!$A$6:$RL$1005,169,)) -> B76 | M16: =IF(VLOOKUP($AA$1,INDUK30014000!$A$6:$RL$1005,170,)=0,"-",VLOOKUP($AA$1,INDUK30014000!$A$6:$RL$1005,170,)) -> B77 | O16: =IF(VLOOKUP($AA$1,INDUK30014000!$A$6:$RL$1005,226,)=0,"-",VLOOKUP($AA$1,INDUK30014000!$A$6:$RL$1005,226,)) -> B132 | Q16: =IF(VLOOKUP($AA$1,INDUK30014000!$A$6:$RL$1005,227,)=0,"-",VLOOKUP($AA$1,INDUK30014000!$A$6:$RL$1005,227,)) -> B133 | S16: =IF(VLOOKUP($AA$1,INDUK30014000!$A$6:$RL$1005,283,)=0,"-",VLOOKUP($AA$1,INDUK30014000!$A$6:$RL$1005,283,)) -> B188 | U16: =IF(VLOOKUP($AA$1,INDUK30014000!$A$6:$RL$1005,284,)=0,"-",VLOOKUP($AA$1,INDUK30014000!$A$6:$RL$1005,284,)) -> B189 | W16: =IF(VLOOKUP($AA$1,INDUK30014000!$A$6:$RL$1005,340,)=0,"-",VLOOKUP($AA$1,INDUK30014000!$A$6:$RL$1005,340,)) -> B244 | Y16: =IF(VLOOKUP($AA$1,INDUK30014000!$A$6:$RL$1005,341,)=0,"-",VLOOKUP($AA$1,INDUK30014000!$A$6:$RL$1005,341,)) -> B245 | AA16: =IF(VLOOKUP($AA$1,INDUK30014000!$A$6:$RL$1005,397,)=0,"-",VLOOKUP($AA$1,INDUK30014000!$A$6:$RL$1005,397,)) -> B300 | AC16: =IF(VLOOKUP($AA$1,INDUK30014000!$A$6:$RL$1005,398,)=0,"-",VLOOKUP($AA$1,INDUK30014000!$A$6:$RL$1005,398,)) -> B301 | AD16: =IF(VLOOKUP($AA$1,INDUK30014000!$A$6:$RL$1005,471,)=0,"-",VLOOKUP($AA$1,INDUK30014000!$A$6:$RL$1005,471,)) -> B372 | AE16: =IF(VLOOKUP($AA$1,INDUK30014000!$A$6:$RL$1005,472,)=0,"-",VLOOKUP($AA$1,INDUK30014000!$A$6:$RL$1005,472,)) -> B373 | AF16: 11
A17: 8 | B17: Seni Budaya dan Keterampilan | G17: =IF(VLOOKUP($AA$1,INDUK30014000!$A$6:$RL$1005,114,)=0,"-",VLOOKUP($AA$1,INDUK30014000!$A$6:$RL$1005,114,)) -> B23 | I17: =IF(VLOOKUP($AA$1,INDUK30014000!$A$6:$RL$1005,115,)=0,"-",VLOOKUP($AA$1,INDUK30014000!$A$6:$RL$1005,115,)) -> B24 | K17: =IF(VLOOKUP($AA$1,INDUK30014000!$A$6:$RL$1005,171,)=0,"-",VLOOKUP($AA$1,INDUK30014000!$A$6:$RL$1005,171,)) -> B78 | M17: =IF(VLOOKUP($AA$1,INDUK30014000!$A$6:$RL$1005,172,)=0,"-",VLOOKUP($AA$1,INDUK30014000!$A$6:$RL$1005,172,)) -> B79 | O17: =IF(VLOOKUP($AA$1,INDUK30014000!$A$6:$RL$1005,228,)=0,"-",VLOOKUP($AA$1,INDUK30014000!$A$6:$RL$1005,228,)) -> B134 | Q17: =IF(VLOOKUP($AA$1,INDUK30014000!$A$6:$RL$1005,229,)=0,"-",VLOOKUP($AA$1,INDUK30014000!$A$6:$RL$1005,229,)) -> B135 | S17: =IF(VLOOKUP($AA$1,INDUK30014000!$A$6:$RL$1005,285,)=0,"-",VLOOKUP($AA$1,INDUK30014000!$A$6:$RL$1005,285,)) -> B190 | U17: =IF(VLOOKUP($AA$1,INDUK30014000!$A$6:$RL$1005,286,)=0,"-",VLOOKUP($AA$1,INDUK30014000!$A$6:$RL$1005,286,)) -> B191 | W17: =IF(VLOOKUP($AA$1,INDUK30014000!$A$6:$RL$1005,342,)=0,"-",VLOOKUP($AA$1,INDUK30014000!$A$6:$RL$1005,342,)) -> B246 | Y17: =IF(VLOOKUP($AA$1,INDUK30014000!$A$6:$RL$1005,343,)=0,"-",VLOOKUP($AA$1,INDUK30014000!$A$6:$RL$1005,343,)) -> B247 | AA17: =IF(VLOOKUP($AA$1,INDUK30014000!$A$6:$RL$1005,399,)=0,"-",VLOOKUP($AA$1,INDUK30014000!$A$6:$RL$1005,399,)) -> B302 | AC17: =IF(VLOOKUP($AA$1,INDUK30014000!$A$6:$RL$1005,400,)=0,"-",VLOOKUP($AA$1,INDUK30014000!$A$6:$RL$1005,400,)) -> B303 | AD17: =IF(VLOOKUP($AA$1,INDUK30014000!$A$6:$RL$1005,473,)=0,"-",VLOOKUP($AA$1,INDUK30014000!$A$6:$RL$1005,473,)) -> B374 | AE17: =IF(VLOOKUP($AA$1,INDUK30014000!$A$6:$RL$1005,474,)=0,"-",VLOOKUP($AA$1,INDUK30014000!$A$6:$RL$1005,474,)) -> B375 | AF17: 12
A18: 9 | B18: Pend. Jasmani, Olah Raga dan Kesehatan | G18: =IF(VLOOKUP($AA$1,INDUK30014000!$A$6:$RL$1005,116,)=0,"-",VLOOKUP($AA$1,INDUK30014000!$A$6:$RL$1005,116,)) -> B25 | I18: =IF(VLOOKUP($AA$1,INDUK30014000!$A$6:$RL$1005,117,)=0,"-",VLOOKUP($AA$1,INDUK30014000!$A$6:$RL$1005,117,)) -> B26 | K18: =IF(VLOOKUP($AA$1,INDUK30014000!$A$6:$RL$1005,173,)=0,"-",VLOOKUP($AA$1,INDUK30014000!$A$6:$RL$1005,173,)) -> B80 | M18: =IF(VLOOKUP($AA$1,INDUK30014000!$A$6:$RL$1005,174,)=0,"-",VLOOKUP($AA$1,INDUK30014000!$A$6:$RL$1005,174,)) -> B81 | O18: =IF(VLOOKUP($AA$1,INDUK30014000!$A$6:$RL$1005,230,)=0,"-",VLOOKUP($AA$1,INDUK30014000!$A$6:$RL$1005,230,)) -> B136 | Q18: =IF(VLOOKUP($AA$1,INDUK30014000!$A$6:$RL$1005,231,)=0,"-",VLOOKUP($AA$1,INDUK30014000!$A$6:$RL$1005,231,)) -> B137 | S18: =IF(VLOOKUP($AA$1,INDUK30014000!$A$6:$RL$1005,287,)=0,"-",VLOOKUP($AA$1,INDUK30014000!$A$6:$RL$1005,287,)) -> B192 | U18: =IF(VLOOKUP($AA$1,INDUK30014000!$A$6:$RL$1005,288,)=0,"-",VLOOKUP($AA$1,INDUK30014000!$A$6:$RL$1005,288,)) -> B193 | W18: =IF(VLOOKUP($AA$1,INDUK30014000!$A$6:$RL$1005,344,)=0,"-",VLOOKUP($AA$1,INDUK30014000!$A$6:$RL$1005,344,)) -> B248 | Y18: =IF(VLOOKUP($AA$1,INDUK30014000!$A$6:$RL$1005,345,)=0,"-",VLOOKUP($AA$1,INDUK30014000!$A$6:$RL$1005,345,)) -> B249 | AA18: =IF(VLOOKUP($AA$1,INDUK30014000!$A$6:$RL$1005,401,)=0,"-",VLOOKUP($AA$1,INDUK30014000!$A$6:$RL$1005,401,)) -> B304 | AC18: =IF(VLOOKUP($AA$1,INDUK30014000!$A$6:$RL$1005,402,)=0,"-",VLOOKUP($AA$1,INDUK30014000!$A$6:$RL$1005,402,)) -> B305 | AD18: =IF(VLOOKUP($AA$1,INDUK30014000!$A$6:$RL$1005,475,)=0,"-",VLOOKUP($AA$1,INDUK30014000!$A$6:$RL$1005,475,)) -> B376 | AE18: =IF(VLOOKUP($AA$1,INDUK30014000!$A$6:$RL$1005,476,)=0,"-",VLOOKUP($AA$1,INDUK30014000!$A$6:$RL$1005,476,)) -> B377 | AF18: 13
A19: 10 | B19: Muatan Lokal
B20: a. | C20: Bahasa Jawa | G20: =IF(VLOOKUP($AA$1,INDUK30014000!$A$6:$RL$1005,118,)=0,"-",VLOOKUP($AA$1,INDUK30014000!$A$6:$RL$1005,118,)) -> B27 | I20: =IF(VLOOKUP($AA$1,INDUK30014000!$A$6:$RL$1005,119,)=0,"-",VLOOKUP($AA$1,INDUK30014000!$A$6:$RL$1005,119,)) -> B28 | K20: =IF(VLOOKUP($AA$1,INDUK30014000!$A$6:$RL$1005,175,)=0,"-",VLOOKUP($AA$1,INDUK30014000!$A$6:$RL$1005,175,)) -> B82 | M20: =IF(VLOOKUP($AA$1,INDUK30014000!$A$6:$RL$1005,176,)=0,"-",VLOOKUP($AA$1,INDUK30014000!$A$6:$RL$1005,176,)) -> B83 | O20: =IF(VLOOKUP($AA$1,INDUK30014000!$A$6:$RL$1005,232,)=0,"-",VLOOKUP($AA$1,INDUK30014000!$A$6:$RL$1005,232,)) -> B138 | Q20: =IF(VLOOKUP($AA$1,INDUK30014000!$A$6:$RL$1005,233,)=0,"-",VLOOKUP($AA$1,INDUK30014000!$A$6:$RL$1005,233,)) -> B139 | S20: =IF(VLOOKUP($AA$1,INDUK30014000!$A$6:$RL$1005,289,)=0,"-",VLOOKUP($AA$1,INDUK30014000!$A$6:$RL$1005,289,)) -> B194 | U20: =IF(VLOOKUP($AA$1,INDUK30014000!$A$6:$RL$1005,290,)=0,"-",VLOOKUP($AA$1,INDUK30014000!$A$6:$RL$1005,290,)) -> B195 | W20: =IF(VLOOKUP($AA$1,INDUK30014000!$A$6:$RL$1005,346,)=0,"-",VLOOKUP($AA$1,INDUK30014000!$A$6:$RL$1005,346,)) -> B250 | Y20: =IF(VLOOKUP($AA$1,INDUK30014000!$A$6:$RL$1005,347,)=0,"-",VLOOKUP($AA$1,INDUK30014000!$A$6:$RL$1005,347,)) -> B251 | AA20: =IF(VLOOKUP($AA$1,INDUK30014000!$A$6:$RL$1005,403,)=0,"-",VLOOKUP($AA$1,INDUK30014000!$A$6:$RL$1005,403,)) -> B306 | AC20: =IF(VLOOKUP($AA$1,INDUK30014000!$A$6:$RL$1005,404,)=0,"-",VLOOKUP($AA$1,INDUK30014000!$A$6:$RL$1005,404,)) -> B307 | AD20: =IF(VLOOKUP($AA$1,INDUK30014000!$A$6:$RL$1005,477,)=0,"-",VLOOKUP($AA$1,INDUK30014000!$A$6:$RL$1005,477,)) -> B378 | AE20: =IF(VLOOKUP($AA$1,INDUK30014000!$A$6:$RL$1005,478,)=0,"-",VLOOKUP($AA$1,INDUK30014000!$A$6:$RL$1005,478,)) -> B379 | AF20: 14
B21: b. | C21: Bahasa Inggris | G21: =IF(VLOOKUP($AA$1,INDUK30014000!$A$6:$RL$1005,120,)=0,"-",VLOOKUP($AA$1,INDUK30014000!$A$6:$RL$1005,120,)) -> B29 | I21: =IF(VLOOKUP($AA$1,INDUK30014000!$A$6:$RL$1005,121,)=0,"-",VLOOKUP($AA$1,INDUK30014000!$A$6:$RL$1005,121,)) -> B30 | K21: =IF(VLOOKUP($AA$1,INDUK30014000!$A$6:$RL$1005,177,)=0,"-",VLOOKUP($AA$1,INDUK30014000!$A$6:$RL$1005,177,)) -> B84 | M21: =IF(VLOOKUP($AA$1,INDUK30014000!$A$6:$RL$1005,178,)=0,"-",VLOOKUP($AA$1,INDUK30014000!$A$6:$RL$1005,178,)) -> B85 | O21: =IF(VLOOKUP($AA$1,INDUK30014000!$A$6:$RL$1005,234,)=0,"-",VLOOKUP($AA$1,INDUK30014000!$A$6:$RL$1005,234,)) -> B140 | Q21: =IF(VLOOKUP($AA$1,INDUK30014000!$A$6:$RL$1005,235,)=0,"-",VLOOKUP($AA$1,INDUK30014000!$A$6:$RL$1005,235,)) -> B141 | S21: =IF(VLOOKUP($AA$1,INDUK30014000!$A$6:$RL$1005,291,)=0,"-",VLOOKUP($AA$1,INDUK30014000!$A$6:$RL$1005,291,)) -> B196 | U21: =IF(VLOOKUP($AA$1,INDUK30014000!$A$6:$RL$1005,292,)=0,"-",VLOOKUP($AA$1,INDUK30014000!$A$6:$RL$1005,292,)) -> B197 | W21: =IF(VLOOKUP($AA$1,INDUK30014000!$A$6:$RL$1005,348,)=0,"-",VLOOKUP($AA$1,INDUK30014000!$A$6:$RL$1005,348,)) -> B252 | Y21: =IF(VLOOKUP($AA$1,INDUK30014000!$A$6:$RL$1005,349,)=0,"-",VLOOKUP($AA$1,INDUK30014000!$A$6:$RL$1005,349,)) -> B253 | AA21: =IF(VLOOKUP($AA$1,INDUK30014000!$A$6:$RL$1005,405,)=0,"-",VLOOKUP($AA$1,INDUK30014000!$A$6:$RL$1005,405,)) -> B308 | AC21: =IF(VLOOKUP($AA$1,INDUK30014000!$A$6:$RL$1005,406,)=0,"-",VLOOKUP($AA$1,INDUK30014000!$A$6:$RL$1005,406,)) -> B309 | AD21: =IF(VLOOKUP($AA$1,INDUK30014000!$A$6:$RL$1005,451,)=0,"-",VLOOKUP($AA$1,INDUK30014000!$A$6:$RL$1005,451,)) -> B352 | AE21: =IF(VLOOKUP($AA$1,INDUK30014000!$A$6:$RL$1005,451,)=0,"-",VLOOKUP($AA$1,INDUK30014000!$A$6:$RL$1005,451,)) -> B352 | AF21: 1
B22: c. | C22: Ke-NU-an / Aswaja | G22: =IF(VLOOKUP($AA$1,INDUK30014000!$A$6:$RL$1005,100,)=0,"-",VLOOKUP($AA$1,INDUK30014000!$A$6:$RL$1005,100,)) -> B9 | I22: =IF(VLOOKUP($AA$1,INDUK30014000!$A$6:$RL$1005,101,)=0,"-",VLOOKUP($AA$1,INDUK30014000!$A$6:$RL$1005,101,)) -> B10 | K22: =IF(VLOOKUP($AA$1,INDUK30014000!$A$6:$RL$1005,157,)=0,"-",VLOOKUP($AA$1,INDUK30014000!$A$6:$RL$1005,157,)) -> B64 | M22: =IF(VLOOKUP($AA$1,INDUK30014000!$A$6:$RL$1005,158,)=0,"-",VLOOKUP($AA$1,INDUK30014000!$A$6:$RL$1005,158,)) -> B65 | O22: =IF(VLOOKUP($AA$1,INDUK30014000!$A$6:$RL$1005,214,)=0,"-",VLOOKUP($AA$1,INDUK30014000!$A$6:$RL$1005,214,)) -> B120 | Q22: =IF(VLOOKUP($AA$1,INDUK30014000!$A$6:$RL$1005,215,)=0,"-",VLOOKUP($AA$1,INDUK30014000!$A$6:$RL$1005,215,)) -> B121 | S22: =IF(VLOOKUP($AA$1,INDUK30014000!$A$6:$RL$1005,271,)=0,"-",VLOOKUP($AA$1,INDUK30014000!$A$6:$RL$1005,271,)) -> B176 | U22: =IF(VLOOKUP($AA$1,INDUK30014000!$A$6:$RL$1005,272,)=0,"-",VLOOKUP($AA$1,INDUK30014000!$A$6:$RL$1005,272,)) -> B177 | W22: =IF(VLOOKUP($AA$1,INDUK30014000!$A$6:$RL$1005,328,)=0,"-",VLOOKUP($AA$1,INDUK30014000!$A$6:$RL$1005,328,)) -> B232 | Y22: =IF(VLOOKUP($AA$1,INDUK30014000!$A$6:$RL$1005,329,)=0,"-",VLOOKUP($AA$1,INDUK30014000!$A$6:$RL$1005,329,)) -> B233 | AA22: =IF(VLOOKUP($AA$1,INDUK30014000!$A$6:$RL$1005,385,)=0,"-",VLOOKUP($AA$1,INDUK30014000!$A$6:$RL$1005,385,)) -> B288 | AC22: =IF(VLOOKUP($AA$1,INDUK30014000!$A$6:$RL$1005,386,)=0,"-",VLOOKUP($AA$1,INDUK30014000!$A$6:$RL$1005,386,)) -> B289 | AD22: =IF(VLOOKUP($AA$1,INDUK30014000!$A$6:$RL$1005,459,)=0,"-",VLOOKUP($AA$1,INDUK30014000!$A$6:$RL$1005,459,)) -> B360 | AE22: =IF(VLOOKUP($AA$1,INDUK30014000!$A$6:$RL$1005,460,)=0,"-",VLOOKUP($AA$1,INDUK30014000!$A$6:$RL$1005,460,)) -> B361 | AF22: 5
A23: Pengembangan diri :
A24: 1. | B24: PRAMUKA | F24: =IF(VLOOKUP($AA$1,INDUK30014000!$A$6:$RL$1005,134,)=0,"-",VLOOKUP($AA$1,INDUK30014000!$A$6:$RL$1005,134,)) -> B43 | H24: =IF(VLOOKUP($AA$1,INDUK30014000!$A$6:$RL$1005,135,)=0,"-",VLOOKUP($AA$1,INDUK30014000!$A$6:$RL$1005,135,)) -> B44 | J24: =IF(VLOOKUP($AA$1,INDUK30014000!$A$6:$RL$1005,191,)=0,"-",VLOOKUP($AA$1,INDUK30014000!$A$6:$RL$1005,191,)) -> B98 | L24: =IF(VLOOKUP($AA$1,INDUK30014000!$A$6:$RL$1005,192,)=0,"-",VLOOKUP($AA$1,INDUK30014000!$A$6:$RL$1005,192,)) -> B99 | N24: =IF(VLOOKUP($AA$1,INDUK30014000!$A$6:$RL$1005,248,)=0,"-",VLOOKUP($AA$1,INDUK30014000!$A$6:$RL$1005,248,)) -> B154 | P24: =IF(VLOOKUP($AA$1,INDUK30014000!$A$6:$RL$1005,249,)=0,"-",VLOOKUP($AA$1,INDUK30014000!$A$6:$RL$1005,249,)) -> B155 | R24: =IF(VLOOKUP($AA$1,INDUK30014000!$A$6:$RL$1005,305,)=0,"-",VLOOKUP($AA$1,INDUK30014000!$A$6:$RL$1005,305,)) -> B210 | T24: =IF(VLOOKUP($AA$1,INDUK30014000!$A$6:$RL$1005,306,)=0,"-",VLOOKUP($AA$1,INDUK30014000!$A$6:$RL$1005,306,)) -> B211 | V24: =IF(VLOOKUP($AA$1,INDUK30014000!$A$6:$RL$1005,362,)=0,"-",VLOOKUP($AA$1,INDUK30014000!$A$6:$RL$1005,362,)) -> B266 | X24: =IF(VLOOKUP($AA$1,INDUK30014000!$A$6:$RL$1005,363,)=0,"-",VLOOKUP($AA$1,INDUK30014000!$A$6:$RL$1005,363,)) -> B267 | Z24: =IF(VLOOKUP($AA$1,INDUK30014000!$A$6:$RL$1005,419,)=0,"-",VLOOKUP($AA$1,INDUK30014000!$A$6:$RL$1005,419,)) -> B322 | AB24: =IF(VLOOKUP($AA$1,INDUK30014000!$A$6:$RL$1005,420,)=0,"-",VLOOKUP($AA$1,INDUK30014000!$A$6:$RL$1005,420,)) -> B323 | AF24: 8
A25: 2. | B25: EKSTRA 1 | F25: =IF(VLOOKUP($AA$1,INDUK30014000!$A$6:$RL$1005,136,)=0,"-",VLOOKUP($AA$1,INDUK30014000!$A$6:$RL$1005,136,)) -> B45 | H25: =IF(VLOOKUP($AA$1,INDUK30014000!$A$6:$RL$1005,137,)=0,"-",VLOOKUP($AA$1,INDUK30014000!$A$6:$RL$1005,137,)) -> B46 | J25: =IF(VLOOKUP($AA$1,INDUK30014000!$A$6:$RL$1005,193,)=0,"-",VLOOKUP($AA$1,INDUK30014000!$A$6:$RL$1005,193,)) -> B100 | L25: =IF(VLOOKUP($AA$1,INDUK30014000!$A$6:$RL$1005,194,)=0,"-",VLOOKUP($AA$1,INDUK30014000!$A$6:$RL$1005,194,)) -> B101 | N25: =IF(VLOOKUP($AA$1,INDUK30014000!$A$6:$RL$1005,250,)=0,"-",VLOOKUP($AA$1,INDUK30014000!$A$6:$RL$1005,250,)) -> B156 | P25: =IF(VLOOKUP($AA$1,INDUK30014000!$A$6:$RL$1005,251,)=0,"-",VLOOKUP($AA$1,INDUK30014000!$A$6:$RL$1005,251,)) -> B157 | R25: =IF(VLOOKUP($AA$1,INDUK30014000!$A$6:$RL$1005,307,)=0,"-",VLOOKUP($AA$1,INDUK30014000!$A$6:$RL$1005,307,)) -> B212 | T25: =IF(VLOOKUP($AA$1,INDUK30014000!$A$6:$RL$1005,308,)=0,"-",VLOOKUP($AA$1,INDUK30014000!$A$6:$RL$1005,308,)) -> B213 | V25: =IF(VLOOKUP($AA$1,INDUK30014000!$A$6:$RL$1005,364,)=0,"-",VLOOKUP($AA$1,INDUK30014000!$A$6:$RL$1005,364,)) -> B268 | X25: =IF(VLOOKUP($AA$1,INDUK30014000!$A$6:$RL$1005,365,)=0,"-",VLOOKUP($AA$1,INDUK30014000!$A$6:$RL$1005,365,)) -> B269 | Z25: =IF(VLOOKUP($AA$1,INDUK30014000!$A$6:$RL$1005,421,)=0,"-",VLOOKUP($AA$1,INDUK30014000!$A$6:$RL$1005,421,)) -> B324 | AB25: =IF(VLOOKUP($AA$1,INDUK30014000!$A$6:$RL$1005,422,)=0,"-",VLOOKUP($AA$1,INDUK30014000!$A$6:$RL$1005,422,)) -> B325 | AF25: 9
A26: 3. | B26: EKSTRA 2 | F26: =IF(VLOOKUP($AA$1,INDUK30014000!$A$6:$RL$1005,138,)=0,"-",VLOOKUP($AA$1,INDUK30014000!$A$6:$RL$1005,138,)) -> B47 | H26: =IF(VLOOKUP($AA$1,INDUK30014000!$A$6:$RL$1005,139,)=0,"-",VLOOKUP($AA$1,INDUK30014000!$A$6:$RL$1005,139,)) -> B48 | J26: =IF(VLOOKUP($AA$1,INDUK30014000!$A$6:$RL$1005,195,)=0,"-",VLOOKUP($AA$1,INDUK30014000!$A$6:$RL$1005,195,)) -> B102 | L26: =IF(VLOOKUP($AA$1,INDUK30014000!$A$6:$RL$1005,196,)=0,"-",VLOOKUP($AA$1,INDUK30014000!$A$6:$RL$1005,196,)) -> B103 | N26: =IF(VLOOKUP($AA$1,INDUK30014000!$A$6:$RL$1005,252,)=0,"-",VLOOKUP($AA$1,INDUK30014000!$A$6:$RL$1005,252,)) -> B158 | P26: =IF(VLOOKUP($AA$1,INDUK30014000!$A$6:$RL$1005,253,)=0,"-",VLOOKUP($AA$1,INDUK30014000!$A$6:$RL$1005,253,)) -> B159 | R26: =IF(VLOOKUP($AA$1,INDUK30014000!$A$6:$RL$1005,309,)=0,"-",VLOOKUP($AA$1,INDUK30014000!$A$6:$RL$1005,309,)) -> B214 | T26: =IF(VLOOKUP($AA$1,INDUK30014000!$A$6:$RL$1005,310,)=0,"-",VLOOKUP($AA$1,INDUK30014000!$A$6:$RL$1005,310,)) -> B215 | V26: =IF(VLOOKUP($AA$1,INDUK30014000!$A$6:$RL$1005,366,)=0,"-",VLOOKUP($AA$1,INDUK30014000!$A$6:$RL$1005,366,)) -> B270 | X26: =IF(VLOOKUP($AA$1,INDUK30014000!$A$6:$RL$1005,367,)=0,"-",VLOOKUP($AA$1,INDUK30014000!$A$6:$RL$1005,367,)) -> B271 | Z26: =IF(VLOOKUP($AA$1,INDUK30014000!$A$6:$RL$1005,423,)=0,"-",VLOOKUP($AA$1,INDUK30014000!$A$6:$RL$1005,423,)) -> B326 | AB26: =IF(VLOOKUP($AA$1,INDUK30014000!$A$6:$RL$1005,424,)=0,"-",VLOOKUP($AA$1,INDUK30014000!$A$6:$RL$1005,424,)) -> B327 | AF26: 10
A27: Jumlah Nilai | F27: =IF(VLOOKUP($AA$1,INDUK30014000!$A$6:$RL$1005,122,)=0,"-",VLOOKUP($AA$1,INDUK30014000!$A$6:$RL$1005,122,)) -> B31 | H27: =IF(VLOOKUP($AA$1,INDUK30014000!$A$6:$RL$1005,123,)=0,"-",VLOOKUP($AA$1,INDUK30014000!$A$6:$RL$1005,123,)) -> B32 | J27: =IF(VLOOKUP($AA$1,INDUK30014000!$A$6:$RL$1005,179,)=0,"-",VLOOKUP($AA$1,INDUK30014000!$A$6:$RL$1005,179,)) -> B86 | L27: =IF(VLOOKUP($AA$1,INDUK30014000!$A$6:$RL$1005,180,)=0,"-",VLOOKUP($AA$1,INDUK30014000!$A$6:$RL$1005,180,)) -> B87 | N27: =IF(VLOOKUP($AA$1,INDUK30014000!$A$6:$RL$1005,236,)=0,"-",VLOOKUP($AA$1,INDUK30014000!$A$6:$RL$1005,236,)) -> B142 | P27: =IF(VLOOKUP($AA$1,INDUK30014000!$A$6:$RL$1005,237,)=0,"-",VLOOKUP($AA$1,INDUK30014000!$A$6:$RL$1005,237,)) -> B143 | R27: =IF(VLOOKUP($AA$1,INDUK30014000!$A$6:$RL$1005,293,)=0,"-",VLOOKUP($AA$1,INDUK30014000!$A$6:$RL$1005,293,)) -> B198 | T27: =IF(VLOOKUP($AA$1,INDUK30014000!$A$6:$RL$1005,294,)=0,"-",VLOOKUP($AA$1,INDUK30014000!$A$6:$RL$1005,294,)) -> B199 | V27: =IF(VLOOKUP($AA$1,INDUK30014000!$A$6:$RL$1005,350,)=0,"-",VLOOKUP($AA$1,INDUK30014000!$A$6:$RL$1005,350,)) -> B254 | X27: =IF(VLOOKUP($AA$1,INDUK30014000!$A$6:$RL$1005,351,)=0,"-",VLOOKUP($AA$1,INDUK30014000!$A$6:$RL$1005,351,)) -> B255 | Z27: =IF(VLOOKUP($AA$1,INDUK30014000!$A$6:$RL$1005,407,)=0,"-",VLOOKUP($AA$1,INDUK30014000!$A$6:$RL$1005,407,)) -> B310 | AB27: =IF(VLOOKUP($AA$1,INDUK30014000!$A$6:$RL$1005,408,)=0,"-",VLOOKUP($AA$1,INDUK30014000!$A$6:$RL$1005,408,)) -> B311 | AF27: 2
A28: Rata - Rata | F28: =IF(VLOOKUP($AA$1,INDUK30014000!$A$6:$RL$1005,124,)=0,"-",VLOOKUP($AA$1,INDUK30014000!$A$6:$RL$1005,124,)) -> B33 | H28: =IF(VLOOKUP($AA$1,INDUK30014000!$A$6:$RL$1005,125,)=0,"-",VLOOKUP($AA$1,INDUK30014000!$A$6:$RL$1005,125,)) -> B34 | J28: =IF(VLOOKUP($AA$1,INDUK30014000!$A$6:$RL$1005,181,)=0,"-",VLOOKUP($AA$1,INDUK30014000!$A$6:$RL$1005,181,)) -> B88 | L28: =IF(VLOOKUP($AA$1,INDUK30014000!$A$6:$RL$1005,182,)=0,"-",VLOOKUP($AA$1,INDUK30014000!$A$6:$RL$1005,182,)) -> B89 | N28: =IF(VLOOKUP($AA$1,INDUK30014000!$A$6:$RL$1005,238,)=0,"-",VLOOKUP($AA$1,INDUK30014000!$A$6:$RL$1005,238,)) -> B144 | P28: =IF(VLOOKUP($AA$1,INDUK30014000!$A$6:$RL$1005,239,)=0,"-",VLOOKUP($AA$1,INDUK30014000!$A$6:$RL$1005,239,)) -> B145 | R28: =IF(VLOOKUP($AA$1,INDUK30014000!$A$6:$RL$1005,295,)=0,"-",VLOOKUP($AA$1,INDUK30014000!$A$6:$RL$1005,295,)) -> B200 | T28: =IF(VLOOKUP($AA$1,INDUK30014000!$A$6:$RL$1005,296,)=0,"-",VLOOKUP($AA$1,INDUK30014000!$A$6:$RL$1005,296,)) -> B201 | V28: =IF(VLOOKUP($AA$1,INDUK30014000!$A$6:$RL$1005,352,)=0,"-",VLOOKUP($AA$1,INDUK30014000!$A$6:$RL$1005,352,)) -> B256 | X28: =IF(VLOOKUP($AA$1,INDUK30014000!$A$6:$RL$1005,353,)=0,"-",VLOOKUP($AA$1,INDUK30014000!$A$6:$RL$1005,353,)) -> B257 | Z28: =IF(VLOOKUP($AA$1,INDUK30014000!$A$6:$RL$1005,409,)=0,"-",VLOOKUP($AA$1,INDUK30014000!$A$6:$RL$1005,409,)) -> B312 | AB28: =IF(VLOOKUP($AA$1,INDUK30014000!$A$6:$RL$1005,410,)=0,"-",VLOOKUP($AA$1,INDUK30014000!$A$6:$RL$1005,410,)) -> B313 | AF28: 3
A29: Peringkat Kelas Ke : | F29: =IF(VLOOKUP($AA$1,INDUK30014000!$A$6:$RL$1005,126,)=0,"-",VLOOKUP($AA$1,INDUK30014000!$A$6:$RL$1005,126,)) -> B35 | H29: =IF(VLOOKUP($AA$1,INDUK30014000!$A$6:$RL$1005,127,)=0,"-",VLOOKUP($AA$1,INDUK30014000!$A$6:$RL$1005,127,)) -> B36 | J29: =IF(VLOOKUP($AA$1,INDUK30014000!$A$6:$RL$1005,183,)=0,"-",VLOOKUP($AA$1,INDUK30014000!$A$6:$RL$1005,183,)) -> B90 | L29: =IF(VLOOKUP($AA$1,INDUK30014000!$A$6:$RL$1005,184,)=0,"-",VLOOKUP($AA$1,INDUK30014000!$A$6:$RL$1005,184,)) -> B91 | N29: =IF(VLOOKUP($AA$1,INDUK30014000!$A$6:$RL$1005,240,)=0,"-",VLOOKUP($AA$1,INDUK30014000!$A$6:$RL$1005,240,)) -> B146 | P29: =IF(VLOOKUP($AA$1,INDUK30014000!$A$6:$RL$1005,241,)=0,"-",VLOOKUP($AA$1,INDUK30014000!$A$6:$RL$1005,241,)) -> B147 | R29: =IF(VLOOKUP($AA$1,INDUK30014000!$A$6:$RL$1005,297,)=0,"-",VLOOKUP($AA$1,INDUK30014000!$A$6:$RL$1005,297,)) -> B202 | T29: =IF(VLOOKUP($AA$1,INDUK30014000!$A$6:$RL$1005,298,)=0,"-",VLOOKUP($AA$1,INDUK30014000!$A$6:$RL$1005,298,)) -> B203 | V29: =IF(VLOOKUP($AA$1,INDUK30014000!$A$6:$RL$1005,354,)=0,"-",VLOOKUP($AA$1,INDUK30014000!$A$6:$RL$1005,354,)) -> B258 | X29: =IF(VLOOKUP($AA$1,INDUK30014000!$A$6:$RL$1005,355,)=0,"-",VLOOKUP($AA$1,INDUK30014000!$A$6:$RL$1005,355,)) -> B259 | Z29: =IF(VLOOKUP($AA$1,INDUK30014000!$A$6:$RL$1005,411,)=0,"-",VLOOKUP($AA$1,INDUK30014000!$A$6:$RL$1005,411,)) -> B314 | AB29: =IF(VLOOKUP($AA$1,INDUK30014000!$A$6:$RL$1005,412,)=0,"-",VLOOKUP($AA$1,INDUK30014000!$A$6:$RL$1005,412,)) -> B315 | AF29: 4
A30: Perilaku Kepribadian
A31: 1. | B31: Kelakuan | F31: =IF(VLOOKUP($AA$1,INDUK30014000!$A$6:$RL$1005,140,)=0,"-",VLOOKUP($AA$1,INDUK30014000!$A$6:$RL$1005,140,)) -> B49 | H31: =IF(VLOOKUP($AA$1,INDUK30014000!$A$6:$RL$1005,141,)=0,"-",VLOOKUP($AA$1,INDUK30014000!$A$6:$RL$1005,141,)) -> B50 | J31: =IF(VLOOKUP($AA$1,INDUK30014000!$A$6:$RL$1005,197,)=0,"-",VLOOKUP($AA$1,INDUK30014000!$A$6:$RL$1005,197,)) -> B104 | L31: =IF(VLOOKUP($AA$1,INDUK30014000!$A$6:$RL$1005,198,)=0,"-",VLOOKUP($AA$1,INDUK30014000!$A$6:$RL$1005,198,)) -> B105 | N31: =IF(VLOOKUP($AA$1,INDUK30014000!$A$6:$RL$1005,254,)=0,"-",VLOOKUP($AA$1,INDUK30014000!$A$6:$RL$1005,254,)) -> B160 | P31: =IF(VLOOKUP($AA$1,INDUK30014000!$A$6:$RL$1005,255,)=0,"-",VLOOKUP($AA$1,INDUK30014000!$A$6:$RL$1005,255,)) -> B161 | R31: =IF(VLOOKUP($AA$1,INDUK30014000!$A$6:$RL$1005,311,)=0,"-",VLOOKUP($AA$1,INDUK30014000!$A$6:$RL$1005,311,)) -> B216 | T31: =IF(VLOOKUP($AA$1,INDUK30014000!$A$6:$RL$1005,312,)=0,"-",VLOOKUP($AA$1,INDUK30014000!$A$6:$RL$1005,312,)) -> B217 | V31: =IF(VLOOKUP($AA$1,INDUK30014000!$A$6:$RL$1005,368,)=0,"-",VLOOKUP($AA$1,INDUK30014000!$A$6:$RL$1005,368,)) -> B272 | X31: =IF(VLOOKUP($AA$1,INDUK30014000!$A$6:$RL$1005,369,)=0,"-",VLOOKUP($AA$1,INDUK30014000!$A$6:$RL$1005,369,)) -> B273 | Z31: =IF(VLOOKUP($AA$1,INDUK30014000!$A$6:$RL$1005,425,)=0,"-",VLOOKUP($AA$1,INDUK30014000!$A$6:$RL$1005,425,)) -> B328 | AB31: =IF(VLOOKUP($AA$1,INDUK30014000!$A$6:$RL$1005,426,)=0,"-",VLOOKUP($AA$1,INDUK30014000!$A$6:$RL$1005,426,)) -> B329 | AF31: 11
A32: 2. | B32: Kerajinan | F32: =IF(VLOOKUP($AA$1,INDUK30014000!$A$6:$RL$1005,142,)=0,"-",VLOOKUP($AA$1,INDUK30014000!$A$6:$RL$1005,142,)) -> B51 | H32: =IF(VLOOKUP($AA$1,INDUK30014000!$A$6:$RL$1005,143,)=0,"-",VLOOKUP($AA$1,INDUK30014000!$A$6:$RL$1005,143,)) -> B52 | J32: =IF(VLOOKUP($AA$1,INDUK30014000!$A$6:$RL$1005,199,)=0,"-",VLOOKUP($AA$1,INDUK30014000!$A$6:$RL$1005,199,)) -> B106 | L32: =IF(VLOOKUP($AA$1,INDUK30014000!$A$6:$RL$1005,200,)=0,"-",VLOOKUP($AA$1,INDUK30014000!$A$6:$RL$1005,200,)) -> B107 | N32: =IF(VLOOKUP($AA$1,INDUK30014000!$A$6:$RL$1005,256,)=0,"-",VLOOKUP($AA$1,INDUK30014000!$A$6:$RL$1005,256,)) -> B162 | P32: =IF(VLOOKUP($AA$1,INDUK30014000!$A$6:$RL$1005,257,)=0,"-",VLOOKUP($AA$1,INDUK30014000!$A$6:$RL$1005,257,)) -> B163 | R32: =IF(VLOOKUP($AA$1,INDUK30014000!$A$6:$RL$1005,313,)=0,"-",VLOOKUP($AA$1,INDUK30014000!$A$6:$RL$1005,313,)) -> B218 | T32: =IF(VLOOKUP($AA$1,INDUK30014000!$A$6:$RL$1005,314,)=0,"-",VLOOKUP($AA$1,INDUK30014000!$A$6:$RL$1005,314,)) -> B219 | V32: =IF(VLOOKUP($AA$1,INDUK30014000!$A$6:$RL$1005,370,)=0,"-",VLOOKUP($AA$1,INDUK30014000!$A$6:$RL$1005,370,)) -> B274 | X32: =IF(VLOOKUP($AA$1,INDUK30014000!$A$6:$RL$1005,371,)=0,"-",VLOOKUP($AA$1,INDUK30014000!$A$6:$RL$1005,371,)) -> B275 | Z32: =IF(VLOOKUP($AA$1,INDUK30014000!$A$6:$RL$1005,427,)=0,"-",VLOOKUP($AA$1,INDUK30014000!$A$6:$RL$1005,427,)) -> B330 | AB32: =IF(VLOOKUP($AA$1,INDUK30014000!$A$6:$RL$1005,428,)=0,"-",VLOOKUP($AA$1,INDUK30014000!$A$6:$RL$1005,428,)) -> B331 | AF32: 12
A33: 3. | B33: Kebersihan dan Kerapian | F33: =IF(VLOOKUP($AA$1,INDUK30014000!$A$6:$RL$1005,144,)=0,"-",VLOOKUP($AA$1,INDUK30014000!$A$6:$RL$1005,144,)) -> B53 | H33: =IF(VLOOKUP($AA$1,INDUK30014000!$A$6:$RL$1005,145,)=0,"-",VLOOKUP($AA$1,INDUK30014000!$A$6:$RL$1005,145,)) -> B54 | J33: =IF(VLOOKUP($AA$1,INDUK30014000!$A$6:$RL$1005,201,)=0,"-",VLOOKUP($AA$1,INDUK30014000!$A$6:$RL$1005,201,)) -> B108 | L33: =IF(VLOOKUP($AA$1,INDUK30014000!$A$6:$RL$1005,202,)=0,"-",VLOOKUP($AA$1,INDUK30014000!$A$6:$RL$1005,202,)) -> B109 | N33: =IF(VLOOKUP($AA$1,INDUK30014000!$A$6:$RL$1005,258,)=0,"-",VLOOKUP($AA$1,INDUK30014000!$A$6:$RL$1005,258,)) -> B164 | P33: =IF(VLOOKUP($AA$1,INDUK30014000!$A$6:$RL$1005,259,)=0,"-",VLOOKUP($AA$1,INDUK30014000!$A$6:$RL$1005,259,)) -> B165 | R33: =IF(VLOOKUP($AA$1,INDUK30014000!$A$6:$RL$1005,315,)=0,"-",VLOOKUP($AA$1,INDUK30014000!$A$6:$RL$1005,315,)) -> B220 | T33: =IF(VLOOKUP($AA$1,INDUK30014000!$A$6:$RL$1005,316,)=0,"-",VLOOKUP($AA$1,INDUK30014000!$A$6:$RL$1005,316,)) -> B221 | V33: =IF(VLOOKUP($AA$1,INDUK30014000!$A$6:$RL$1005,372,)=0,"-",VLOOKUP($AA$1,INDUK30014000!$A$6:$RL$1005,372,)) -> B276 | X33: =IF(VLOOKUP($AA$1,INDUK30014000!$A$6:$RL$1005,373,)=0,"-",VLOOKUP($AA$1,INDUK30014000!$A$6:$RL$1005,373,)) -> B277 | Z33: =IF(VLOOKUP($AA$1,INDUK30014000!$A$6:$RL$1005,429,)=0,"-",VLOOKUP($AA$1,INDUK30014000!$A$6:$RL$1005,429,)) -> B332 | AB33: =IF(VLOOKUP($AA$1,INDUK30014000!$A$6:$RL$1005,430,)=0,"-",VLOOKUP($AA$1,INDUK30014000!$A$6:$RL$1005,430,)) -> B333 | AF33: 13
A34: Ketidakhadiran
A35: 1. | B35: Sakit | E35: ( Hari ) | F35: =IF(VLOOKUP($AA$1,INDUK30014000!$A$6:$RL$1005,128,)=0,"-",VLOOKUP($AA$1,INDUK30014000!$A$6:$RL$1005,128,)) -> B37 | H35: =IF(VLOOKUP($AA$1,INDUK30014000!$A$6:$RL$1005,129,)=0,"-",VLOOKUP($AA$1,INDUK30014000!$A$6:$RL$1005,129,)) -> B38 | J35: =IF(VLOOKUP($AA$1,INDUK30014000!$A$6:$RL$1005,185,)=0,"-",VLOOKUP($AA$1,INDUK30014000!$A$6:$RL$1005,185,)) -> B92 | L35: =IF(VLOOKUP($AA$1,INDUK30014000!$A$6:$RL$1005,186,)=0,"-",VLOOKUP($AA$1,INDUK30014000!$A$6:$RL$1005,186,)) -> B93 | N35: =IF(VLOOKUP($AA$1,INDUK30014000!$A$6:$RL$1005,242,)=0,"-",VLOOKUP($AA$1,INDUK30014000!$A$6:$RL$1005,242,)) -> B148 | P35: =IF(VLOOKUP($AA$1,INDUK30014000!$A$6:$RL$1005,243,)=0,"-",VLOOKUP($AA$1,INDUK30014000!$A$6:$RL$1005,243,)) -> B149 | R35: =IF(VLOOKUP($AA$1,INDUK30014000!$A$6:$RL$1005,299,)=0,"-",VLOOKUP($AA$1,INDUK30014000!$A$6:$RL$1005,299,)) -> B204 | T35: =IF(VLOOKUP($AA$1,INDUK30014000!$A$6:$RL$1005,300,)=0,"-",VLOOKUP($AA$1,INDUK30014000!$A$6:$RL$1005,300,)) -> B205 | V35: =IF(VLOOKUP($AA$1,INDUK30014000!$A$6:$RL$1005,356,)=0,"-",VLOOKUP($AA$1,INDUK30014000!$A$6:$RL$1005,356,)) -> B260 | X35: =IF(VLOOKUP($AA$1,INDUK30014000!$A$6:$RL$1005,357,)=0,"-",VLOOKUP($AA$1,INDUK30014000!$A$6:$RL$1005,357,)) -> B261 | Z35: =IF(VLOOKUP($AA$1,INDUK30014000!$A$6:$RL$1005,413,)=0,"-",VLOOKUP($AA$1,INDUK30014000!$A$6:$RL$1005,413,)) -> B316 | AB35: =IF(VLOOKUP($AA$1,INDUK30014000!$A$6:$RL$1005,414,)=0,"-",VLOOKUP($AA$1,INDUK30014000!$A$6:$RL$1005,414,)) -> B317 | AD35: Catatan : | AF35: 5
A36: 2. | B36: Izin | E36: ( Hari ) | F36: =IF(VLOOKUP($AA$1,INDUK30014000!$A$6:$RL$1005,130,)=0,"-",VLOOKUP($AA$1,INDUK30014000!$A$6:$RL$1005,130,)) -> B39 | H36: =IF(VLOOKUP($AA$1,INDUK30014000!$A$6:$RL$1005,131,)=0,"-",VLOOKUP($AA$1,INDUK30014000!$A$6:$RL$1005,131,)) -> B40 | J36: =IF(VLOOKUP($AA$1,INDUK30014000!$A$6:$RL$1005,187,)=0,"-",VLOOKUP($AA$1,INDUK30014000!$A$6:$RL$1005,187,)) -> B94 | L36: =IF(VLOOKUP($AA$1,INDUK30014000!$A$6:$RL$1005,188,)=0,"-",VLOOKUP($AA$1,INDUK30014000!$A$6:$RL$1005,188,)) -> B95 | N36: =IF(VLOOKUP($AA$1,INDUK30014000!$A$6:$RL$1005,244,)=0,"-",VLOOKUP($AA$1,INDUK30014000!$A$6:$RL$1005,244,)) -> B150 | P36: =IF(VLOOKUP($AA$1,INDUK30014000!$A$6:$RL$1005,245,)=0,"-",VLOOKUP($AA$1,INDUK30014000!$A$6:$RL$1005,245,)) -> B151 | R36: =IF(VLOOKUP($AA$1,INDUK30014000!$A$6:$RL$1005,301,)=0,"-",VLOOKUP($AA$1,INDUK30014000!$A$6:$RL$1005,301,)) -> B206 | T36: =IF(VLOOKUP($AA$1,INDUK30014000!$A$6:$RL$1005,302,)=0,"-",VLOOKUP($AA$1,INDUK30014000!$A$6:$RL$1005,302,)) -> B207 | V36: =IF(VLOOKUP($AA$1,INDUK30014000!$A$6:$RL$1005,358,)=0,"-",VLOOKUP($AA$1,INDUK30014000!$A$6:$RL$1005,358,)) -> B262 | X36: =IF(VLOOKUP($AA$1,INDUK30014000!$A$6:$RL$1005,359,)=0,"-",VLOOKUP($AA$1,INDUK30014000!$A$6:$RL$1005,359,)) -> B263 | Z36: =IF(VLOOKUP($AA$1,INDUK30014000!$A$6:$RL$1005,415,)=0,"-",VLOOKUP($AA$1,INDUK30014000!$A$6:$RL$1005,415,)) -> B318 | AB36: =IF(VLOOKUP($AA$1,INDUK30014000!$A$6:$RL$1005,416,)=0,"-",VLOOKUP($AA$1,INDUK30014000!$A$6:$RL$1005,416,)) -> B319 | AF36: 6
A37: 3. | B37: Tanpa Keterangan | E37: ( Hari ) | F37: =IF(VLOOKUP($AA$1,INDUK30014000!$A$6:$RL$1005,132,)=0,"-",VLOOKUP($AA$1,INDUK30014000!$A$6:$RL$1005,132,)) -> B41 | H37: =IF(VLOOKUP($AA$1,INDUK30014000!$A$6:$RL$1005,133,)=0,"-",VLOOKUP($AA$1,INDUK30014000!$A$6:$RL$1005,133,)) -> B42 | J37: =IF(VLOOKUP($AA$1,INDUK30014000!$A$6:$RL$1005,189,)=0,"-",VLOOKUP($AA$1,INDUK30014000!$A$6:$RL$1005,189,)) -> B96 | L37: =IF(VLOOKUP($AA$1,INDUK30014000!$A$6:$RL$1005,190,)=0,"-",VLOOKUP($AA$1,INDUK30014000!$A$6:$RL$1005,190,)) -> B97 | N37: =IF(VLOOKUP($AA$1,INDUK30014000!$A$6:$RL$1005,246,)=0,"-",VLOOKUP($AA$1,INDUK30014000!$A$6:$RL$1005,246,)) -> B152 | P37: =IF(VLOOKUP($AA$1,INDUK30014000!$A$6:$RL$1005,247,)=0,"-",VLOOKUP($AA$1,INDUK30014000!$A$6:$RL$1005,247,)) -> B153 | R37: =IF(VLOOKUP($AA$1,INDUK30014000!$A$6:$RL$1005,303,)=0,"-",VLOOKUP($AA$1,INDUK30014000!$A$6:$RL$1005,303,)) -> B208 | T37: =IF(VLOOKUP($AA$1,INDUK30014000!$A$6:$RL$1005,304,)=0,"-",VLOOKUP($AA$1,INDUK30014000!$A$6:$RL$1005,304,)) -> B209 | V37: =IF(VLOOKUP($AA$1,INDUK30014000!$A$6:$RL$1005,360,)=0,"-",VLOOKUP($AA$1,INDUK30014000!$A$6:$RL$1005,360,)) -> B264 | X37: =IF(VLOOKUP($AA$1,INDUK30014000!$A$6:$RL$1005,361,)=0,"-",VLOOKUP($AA$1,INDUK30014000!$A$6:$RL$1005,361,)) -> B265 | Z37: =IF(VLOOKUP($AA$1,INDUK30014000!$A$6:$RL$1005,417,)=0,"-",VLOOKUP($AA$1,INDUK30014000!$A$6:$RL$1005,417,)) -> B320 | AB37: =IF(VLOOKUP($AA$1,INDUK30014000!$A$6:$RL$1005,418,)=0,"-",VLOOKUP($AA$1,INDUK30014000!$A$6:$RL$1005,418,)) -> B321 | AF37: 7
A38: NAIK / TIDAK NAIK KELAS | F38: =IF(VLOOKUP($AA$1,INDUK30014000!$A$6:$RL$1005,146,)=0,"-",VLOOKUP($AA$1,INDUK30014000!$A$6:$RL$1005,146,)) -> B55 | J38: =IF(VLOOKUP($AA$1,INDUK30014000!$A$6:$RL$1005,203,)=0,"-",VLOOKUP($AA$1,INDUK30014000!$A$6:$RL$1005,203,)) -> B110 | N38: =IF(VLOOKUP($AA$1,INDUK30014000!$A$6:$RL$1005,260,)=0,"-",VLOOKUP($AA$1,INDUK30014000!$A$6:$RL$1005,260,)) -> B166 | R38: =IF(VLOOKUP($AA$1,INDUK30014000!$A$6:$RL$1005,317,)=0,"-",VLOOKUP($AA$1,INDUK30014000!$A$6:$RL$1005,317,)) -> B222 | V38: =IF(VLOOKUP($AA$1,INDUK30014000!$A$6:$RL$1005,374,)=0,"-",VLOOKUP($AA$1,INDUK30014000!$A$6:$RL$1005,374,)) -> B278 | Z38: =IF(VLOOKUP($AA$1,INDUK30014000!$A$6:$RL$1005,431,)=0,"-",VLOOKUP($AA$1,INDUK30014000!$A$6:$RL$1005,431,)) -> LOELOES | AF38: 14
A39: VI. | B39: STTB / IJAZAH :
B40: 21. | C40: Nomor : | D40: =IF(VLOOKUP($AA$1,INDUK30014000!$A$6:$RL$1005,434,)=0,"-",VLOOKUP($AA$1,INDUK30014000!$A$6:$RL$1005,434,)) -> B336 | N40: Tempat | Q40: =IF(VLOOKUP($AA$1,INDUK30014000!$A$6:$RL$1005,435,)=0,"-",VLOOKUP($AA$1,INDUK30014000!$A$6:$RL$1005,435,)) -> B337 | W40: 22. Diberikan Tanggal : | AC40: =IF(VLOOKUP($AA$1,INDUK30014000!$A$6:$RL$1005,436,)=0,"-",VLOOKUP($AA$1,INDUK30014000!$A$6:$RL$1005,436,)) -> B338
A41: VII. | B41: PENGHARGAAN
B42: 23. | C42: Piagam Penghargaan yang pernah diterima :
C44: a. Bidang | D44: =IF(VLOOKUP($AA$1,INDUK30014000!$A$6:$RL$105,437,)=0,"-",VLOOKUP($AA$1,INDUK30014000!$A$6:$RL$105,437,)) -> B339 | N44: Nomor | P44: : | Q44: =IF(VLOOKUP($AA$1,INDUK30014000!$A$6:$RL$105,438,)=0,"-",VLOOKUP($AA$1,INDUK30014000!$A$6:$RL$105,438,)) -> B340 | Y44: Tanggal | AA44: : | AB44: =IF(VLOOKUP($AA$1,INDUK30014000!$A$6:$RL$105,439,)=0,"-",VLOOKUP($AA$1,INDUK30014000!$A$6:$RL$105,439,)) -> B341
C46: b. Bidang | D46: =IF(VLOOKUP($AA$1,INDUK30014000!$A$6:$RL$105,440,)=0,"-",VLOOKUP($AA$1,INDUK30014000!$A$6:$RL$105,440,)) -> B342 | N46: Nomor | P46: : | Q46: =IF(VLOOKUP($AA$1,INDUK30014000!$A$6:$RL$105,441,)=0,"-",VLOOKUP($AA$1,INDUK30014000!$A$6:$RL$105,441,)) -> B343 | Y46: Tanggal | AA46: : | AB46: =IF(VLOOKUP($AA$1,INDUK30014000!$A$6:$RL$105,442,)=0,"-",VLOOKUP($AA$1,INDUK30014000!$A$6:$RL$105,442,)) -> B344
A48: VIII. | B48: KETERANGAN
B49: 24. | C49: Surat Keterangan yang pernah diberikan oleh Madrasah ini :
C51: a. Tentang | D51: : | E51: =IF(VLOOKUP($AA$1,INDUK30014000!$A$6:$RL$105,443,)=0,"-",VLOOKUP($AA$1,INDUK30014000!$A$6:$RL$105,443,)) -> B345 | N51: Nomor | P51: : | Q51: =IF(VLOOKUP($AA$1,INDUK30014000!$A$6:$RL$105,444,)=0,"-",VLOOKUP($AA$1,INDUK30014000!$A$6:$RL$105,444,)) -> B346 | Y51: Tanggal | AA51: : | AB51: =IF(VLOOKUP($AA$1,INDUK30014000!$A$6:$RL$105,445,)=0,"-",VLOOKUP($AA$1,INDUK30014000!$A$6:$RL$105,445,)) -> B347
C53: b. Tentang | D53: : | E53: =IF(VLOOKUP($AA$1,INDUK30014000!$A$6:$RL$105,446,)=0,"-",VLOOKUP($AA$1,INDUK30014000!$A$6:$RL$105,446,)) -> B348 | N53: Nomor | P53: : | Q53: =IF(VLOOKUP($AA$1,INDUK30014000!$A$6:$RL$105,447,)=0,"-",VLOOKUP($AA$1,INDUK30014000!$A$6:$RL$105,447,)) -> B349 | Y53: Tanggal | AA53: : | AB53: =IF(VLOOKUP($AA$1,INDUK30014000!$A$6:$RL$105,448,)=0,"-",VLOOKUP($AA$1,INDUK30014000!$A$6:$RL$105,448,)) -> B350

Sheet INDUK40015000
A1: 1 | B1: 2 | C1: 3 | D1: 4 | E1: 5 | F1: 6 | G1: 7 | H1: 8 | I1: 9 | J1: 10 | K1: 11 | L1: 12 | M1: 13 | N1: 14 | O1: 15 | P1: 16 | Q1: 17 | R1: 18 | S1: 19 | T1: 20 | U1: 21 | V1: 22 | W1: 23 | X1: 24 | Y1: 25 | Z1: 26 | AA1: 27 | AB1: 28 | AC1: 29 | AD1: 30 | AE1: 31 | AF1: 32 | AG1: 33 | AH1: 34 | AI1: 35 | AJ1: 36 | AK1: 37 | AL1: 38 | AM1: 39 | AN1: 40 | AO1: 41 | AP1: 42 | AQ1: 43 | AR1: 44 | AS1: 45 | AT1: 46 | AU1: 47 | AV1: 48 | AW1: 49 | AX1: 50 | AY1: 51 | AZ1: 52 | BA1: 53 | BB1: 54 | BC1: 55 | BD1: 56 | BE1: 57 | BF1: 58 | BG1: 59 | BH1: 60 | BI1: 61 | BJ1: 62 | BK1: 63 | BL1: 64 | BM1: 65 | BN1: 66 | BO1: 67 | BP1: 68 | BQ1: 69 | BR1: 70 | BS1: 71 | BT1: 72 | BU1: 73 | BV1: 74 | BW1: 75 | BX1: 76 | BY1: 77 | BZ1: 78 | CA1: 79 | CB1: 80 | CC1: 81 | CD1: 82 | CE1: 83 | CF1: 84 | CG1: 85 | CH1: 86 | CI1: 87 | CJ1: 88 | CK1: 89 | CL1: 90 | CM1: 91 | CN1: 92 | CO1: 93 | CP1: 94 | CQ1: 95 | CR1: 96 | CS1: 97 | CT1: 98 | CU1: 99 | CV1: 100 | CW1: 101 | CX1: 102 | CY1: 103 | CZ1: 104 | DA1: 105 | DB1: 106 | DC1: 107 | DD1: 108 | DE1: 109 | DF1: 110 | DG1: 111 | DH1: 112 | DI1: 113 | DJ1: 114 | DK1: 115 | DL1: 116 | DM1: 117 | DN1: 118 | DO1: 119 | DP1: 120 | DQ1: 121 | DR1: 122 | DS1: 123 | DT1: 124 | DU1: 125 | DV1: 126 | DW1: 127 | DX1: 128 | DY1: 129 | DZ1: 130 | EA1: 131 | EB1: 132 | EC1: 133 | ED1: 134 | EE1: 135 | EF1: 136 | EG1: 137 | EH1: 138 | EI1: 139 | EJ1: 140 | EK1: 141 | EL1: 142 | EM1: 143 | EN1: 144 | EO1: 145 | EP1: 146 | EQ1: 147 | ER1: 148 | ES1: 149 | ET1: 150 | EU1: 151 | EV1: 152 | EW1: 153 | EX1: 154 | EY1: 155 | EZ1: 156 | FA1: 157 | FB1: 158 | FC1: 159 | FD1: 160 | FE1: 161 | FF1: 162 | FG1: 163 | FH1: 164 | FI1: 165 | FJ1: 166 | FK1: 167 | FL1: 168 | FM1: 169 | FN1: 170 | FO1: 171 | FP1: 172 | FQ1: 173 | FR1: 174 | FS1: 175 | FT1: 176 | FU1: 177 | FV1: 178 | FW1: 179 | FX1: 180 | FY1: 181 | FZ1: 182 | GA1: 183 | GB1: 184 | GC1: 185 | GD1: 186 | GE1: 187 | GF1: 188 | GG1: 189 | GH1: 190 | GI1: 191 | GJ1: 192 | GK1: 193 | GL1: 194 | GM1: 195 | GN1: 196 | GO1: 197 | GP1: 198 | GQ1: 199 | GR1: 200 | GS1: 201 | GT1: 202 | GU1: 203 | GV1: 204 | GW1: 205 | GX1: 206 | GY1: 207 | GZ1: 208 | HA1: 209 | HB1: 210 | HC1: 211 | HD1: 212 | HE1: 213 | HF1: 214 | HG1: 215 | HH1: 216 | HI1: 217 | HJ1: 218 | HK1: 219 | HL1: 220 | HM1: 221 | HN1: 222 | HO1: 223 | HP1: 224 | HQ1: 225 | HR1: 226 | HS1: 227 | HT1: 228 | HU1: 229 | HV1: 230 | HW1: 231 | HX1: 232 | HY1: 233 | HZ1: 234 | IA1: 235 | IB1: 236 | IC1: 237 | ID1: 238 | IE1: 239 | IF1: 240 | IG1: 241 | IH1: 242 | II1: 243 | IJ1: 244 | IK1: 245 | IL1: 246 | IM1: 247 | IN1: 248 | IO1: 249 | IP1: 250 | IQ1: 251 | IR1: 252 | IS1: 253 | IT1: 254 | IU1: 255 | IV1: 256 | IW1: 257 | IX1: 258 | IY1: 259 | IZ1: 260 | JA1: 261 | JB1: 262 | JC1: 263 | JD1: 264 | JE1: 265 | JF1: 266 | JG1: 267 | JH1: 268 | JI1: 269 | JJ1: 270 | JK1: 271 | JL1: 272 | JM1: 273 | JN1: 274 | JO1: 275 | JP1: 276 | JQ1: 277 | JR1: 278 | JS1: 279 | JT1: 280 | JU1: 281 | JV1: 282 | JW1: 283 | JX1: 284 | JY1: 285 | JZ1: 286 | KA1: 287 | KB1: 288 | KC1: 289 | KD1: 290 | KE1: 291 | KF1: 292 | KG1: 293 | KH1: 294 | KI1: 295 | KJ1: 296 | KK1: 297 | KL1: 298 | KM1: 299 | KN1: 300 | KO1: 301 | KP1: 302 | KQ1: 303 | KR1: 304 | KS1: 305 | KT1: 306 | KU1: 307 | KV1: 308 | KW1: 309 | KX1: 310 | KY1: 311 | KZ1: 312 | LA1: 313 | LB1: 314 | LC1: 315 | LD1: 316 | LE1: 317 | LF1: 318 | LG1: 319 | LH1: 320 | LI1: 321 | LJ1: 322 | LK1: 323 | LL1: 324 | LM1: 325 | LN1: 326 | LO1: 327 | LP1: 328 | LQ1: 329 | LR1: 330 | LS1: 331 | LT1: 332 | LU1: 333 | LV1: 334 | LW1: 335 | LX1: 336 | LY1: 337 | LZ1: 338 | MA1: 339 | MB1: 340 | MC1: 341 | MD1: 342 | ME1: 343 | MF1: 344 | MG1: 345 | MH1: 346 | MI1: 347 | MJ1: 348 | MK1: 349 | ML1: 350 | MM1: 351 | MN1: 352 | MO1: 353 | MP1: 354 | MQ1: 355 | MR1: 356 | MS1: 357 | MT1: 358 | MU1: 359 | MV1: 360 | MW1: 361 | MX1: 362 | MY1: 363 | MZ1: 364 | NA1: 365 | NB1: 366 | NC1: 367 | ND1: 368 | NE1: 369 | NF1: 370 | NG1: 371 | NH1: 372 | NI1: 373 | NJ1: 374 | NK1: 375 | NL1: 376 | NM1: 377 | NN1: 378 | NO1: 379 | NP1: 380 | NQ1: 381 | NR1: 382 | NS1: 383 | NT1: 384 | NU1: 385 | NV1: 386 | NW1: 387 | NX1: 388 | NY1: 389 | NZ1: 390 | OA1: 391 | OB1: 392 | OC1: 393 | OD1: 394 | OE1: 395 | OF1: 396 | OG1: 397 | OH1: 398 | OI1: 399 | OJ1: 400 | OK1: 401 | OL1: 402 | OM1: 403 | ON1: 404 | OO1: 405 | OP1: 406 | OQ1: 407 | OR1: 408 | OS1: 409 | OT1: 410 | OU1: 411 | OV1: 412 | OW1: 413 | OX1: 414 | OY1: 415 | OZ1: 416 | PA1: 417 | PB1: 418 | PC1: 419 | PD1: 420 | PE1: 421 | PF1: 422 | PG1: 423 | PH1: 424 | PI1: 425 | PJ1: 426 | PK1: 427 | PL1: 428 | PM1: 429 | PN1: 430 | PO1: 431 | PP1: 432 | PQ1: 433 | PR1: 434 | PS1: 435 | PT1: 436 | PU1: 437 | PV1: 438 | PW1: 439 | PX1: 440 | PY1: 441 | PZ1: 442 | QA1: 443 | QB1: 444 | QC1: 445 | QD1: 446 | QE1: 447 | QF1: 448 | QG1: 449 | QH1: 450 | QI1: 451 | QJ1: 452 | QK1: 453 | QL1: 454 | QM1: 455 | QN1: 456 | QO1: 457 | QP1: 458 | QQ1: 459 | QR1: 460 | QS1: 461 | QT1: 462 | QU1: 463 | QV1: 464 | QW1: 465 | QX1: 466 | QY1: 467 | QZ1: 468 | RA1: 469 | RB1: 470 | RC1: 471 | RD1: 472 | RE1: 473 | RF1: 474 | RG1: 475 | RH1: 476 | RI1: 477 | RJ1: 478 | RK1: 479 | RL1: 480
A2: Induk | B2: Nama Murid | C2: Nama Orang Tua | D2: Kls. | E2: Tgl Masuk | F2: Tgl Keluar | G2: Nama Panggilan | H2: ="L/P" -> L/P | I2: Tanggal Lahir | J2: Tempat Lahir | K2: Agama | L2: Kewarganegaraan | M2: Jumlah saudara | P2: Bahasa Sehari-hari keluarga | Q2: Keadaan Jasmani | U2: alamat dan no. telp | V2: tempat tinggal pada (ortu/numpang/asramah) | W2: Jarak Tempat Tinggal | X2: tahun masuk sekolah ini | Z2: Nama Orang tua | AB2: pendidikan Tertinggi | AD2: Pekerjaan | AF2: Wali (jika ada) | AK2: Masuk menjadi murid tingkat 1 | AO2: pindahan jika dari sekolah lain | AR2: Prestasi Belajar | AS2: MASUKKAN TAHUN | AX2: 2018 | BC2: 2019 | BH2: 2020 | BM2: 2021 | BR2: 2022 | BW2: 2023 | CB2: Beasiswa | CC2: Tahun Tamat | CE2: Melanjutkan Ke | CF2: Mutasi Masuk Madrasah | CJ2: Mutasi Keluar Madrasah | CN2: KELAS 1 | ES2: KELAS 2 | GX2: KELAS 3 | JC2: KELAS 4 | LH2: KELAS 5 | NM2: KELAS 6 | PR2: LULUSAN | PU2: PENGHARGAAN 1 | PX2: PENGHARGAAN 2 | QA2: KETERANGAN | QE2: KETERANGAN | QI2: NILAI IJAZAH
M3: Kandung | N3: Tiri | O3: Angkat | Q3: Berat badan | R3: tinggi badan | S3: gol.darah | T3: penyakit berat | Z3: Ayah | AA3: Ibu | AB3: Ayah | AC3: Ibu | AD3: Ayah | AE3: Ibu | AF3: Nama | AG3: hub.keluarga | AH3: Pendidikan | AI3: Pekerjaan | AK3: asal TK/RA | AL3: nama RA/TK | AM3: Alamat | AN3: Tanggal dan No.STTB | AO3: Nama Sekolah | AP3: dari Tingkat | AQ3: diterima Tanggal | AT3: Kg | AU3: Cm | AV3: Penyakit | AW3: Kelainan | AY3: Kg | AZ3: Cm | BA3: Penyakit | BB3: Kelainan | BD3: Kg | BE3: Cm | BF3: Penyakit | BG3: Kelainan | BI3: Kg | BJ3: Cm | BK3: Penyakit | BL3: Kelainan | BN3: Kg | BO3: Cm | BP3: Penyakit | BQ3: Kelainan | BS3: Kg | BT3: Cm | BU3: Penyakit | BV3: Kelainan | BX3: Kg | BY3: Cm | BZ3: Penyakit | CA3: Kelainan | CC3: Tahun | CD3: No. STTB | CF3: Dari Tingkat | CG3: Ke Sekolah | CH3: Ke Tingkat | CI3: Tanggal | CJ3: Tanggal | CK3: Alasan | CN3: QH 1 | CP3: AA 1 | CR3: FQ 1 | CT3: SKI 1 | CV3: AWJ 1 | CX3: BA1 | CZ3: PKN 1 | DB3: BID 1 | DD3: MTK 1 | DF3: IPA 1 | DH3: IPS 1 | DJ3: SBK 1 | DL3: PJO 1 | DN3: BD 1 | DP3: BIG 1 | DR3: JML NILAI | DT3: RATA - RATA | DV3: PE RINGKAT | DX3: SAKIT | DZ3: IJIN | EB3: ALPA | ED3: EKSKUL PRAMUKA | EF3: EKSKUL 1 | EH3: EKSKUL 2 | EJ3: KE-LAKU-AN | EL3: KE-RAJINAN | EN3: KE-BERSIHAN | EP3: NAIK/ TIDAK NAIK | EQ3: TAHUN PLJARAN | ES3: QH 2 | EU3: AA 2 | EW3: FQ 2 | EY3: SKI 2 | FA3: AWJ 2 | FC3: BA2 | FE3: PKN 2 | FG3: BID 2 | FI3: MTK 2 | FK3: IPA 2 | FM3: IPS 2 | FO3: SBK 2 | FQ3: PJO 2 | FS3: BD 2 | FU3: BIG 2 | FW3: JML NILAI | FY3: RATA - RATA | GA3: PE RINGKAT | GC3: SAKIT | GE3: IJIN | GG3: ALPA | GI3: EKSKUL PRAMUKA | GK3: EKSKUL 1 | GM3: EKSKUL 2 | GO3: KE-LAKU-AN | GQ3: KE-RAJINAN | GS3: KE-BERSIHAN | GU3: NAIK/ TIDAK NAIK | GV3: TAHUN PLJARAN | GX3: QH 3 | GZ3: AA 3 | HB3: FQ 3 | HD3: SKI 3 | HF3: AWJ 3 | HH3: BA3 | HJ3: PKN 3 | HL3: BID 3 | HN3: MTK 3 | HP3: IPA 3 | HR3: IPS 3 | HT3: SBK 3 | HV3: PJO 3 | HX3: BD 3 | HZ3: BIG 3 | IB3: JML NILAI | ID3: RATA - RATA | IF3: PE RINGKAT | IH3: SAKIT | IJ3: IJIN | IL3: ALPA | IN3: EKSKUL PRAMUKA | IP3: EKSKUL 1 | IR3: EKSKUL 2 | IT3: KE-LAKU-AN | IV3: KE-RAJINAN | IX3: KE-BERSIHAN | IZ3: NAIK/ TIDAK NAIK | JA3: TAHUN PLJARAN | JC3: QH 4 | JE3: AA 4 | JG3: FQ 4 | JI3: SKI 4 | JK3: AWJ 4 | JM3: BA4 | JO3: PKN 4 | JQ3: BID 4 | JS3: MTK 4 | JU3: IPA 4 | JW3: IPS 4 | JY3: SBK 4 | KA3: PJO 4 | KC3: BD 4 | KE3: BIG 4 | KG3: JML NILAI | KI3: RATA - RATA | KK3: PE RINGKAT | KM3: SAKIT | KO3: IJIN | KQ3: ALPA | KS3: EKSKUL PRAMUKA | KU3: EKSKUL 1 | KW3: EKSKUL 2 | KY3: KE-LAKU-AN | LA3: KE-RAJINAN | LC3: KE-BERSIHAN | LE3: NAIK/ TIDAK NAIK | LF3: TAHUN PLJARAN | LH3: QH 5 | LJ3: AA 5 | LL3: FQ 5 | LN3: SKI 5 | LP3: AWJ 5 | LR3: BA5 | LT3: PKN 5 | LV3: BID 5 | LX3: MTK 5 | LZ3: IPA 5 | MB3: IPS 5 | MD3: SBK 5 | MF3: PJO 5 | MH3: BD 5 | MJ3: BIG 5 | ML3: JML NILAI | MN3: RATA - RATA | MP3: PE RINGKAT | MR3: SAKIT | MT3: IJIN | MV3: ALPA | MX3: EKSKUL PRAMUKA | MZ3: EKSKUL 1 | NB3: EKSKUL 2 | ND3: KE-LAKU-AN | NF3: KE-RAJINAN | NH3: KE-BERSIHAN | NJ3: NAIK/ TIDAK NAIK | NK3: TAHUN PLJARAN | NM3: QH 6 | NO3: AA 6 | NQ3: FQ 6 | NS3: SKI 6 | NU3: AWJ 6 | NW3: BA6 | NY3: PKN 6 | OA3: BID 6 | OC3: MTK 6 | OE3: IPA 6 | OG3: IPS 6 | OI3: SBK 6 | OK3: PJO 6 | OM3: BD 6 | OO3: BIG 6 | OQ3: JML NILAI | OS3: RATA - RATA | OU3: PE RINGKAT | OW3: SAKIT | OY3: IJIN | PA3: ALPA | PC3: EKSKUL PRAMUKA | PE3: EKSKUL 1 | PG3: EKSKUL 2 | PI3: KE-LAKU-AN | PK3: KE-RAJINAN | PM3: KE-BERSIHAN | PO3: NAIK/ TIDAK NAIK | PP3: TAHUN PLJARAN | PR3: NOMOR IJAZAH | PS3: Tempat IJAZAH | PT3: TANGGALIJAZAH | PU3: BIDANG | PV3: NOMOR | PW3: TANGGAL | PX3: NOMOR IJAZAH | PY3: NOMOR IJAZAH | PZ3: NOMOR IJAZAH | QA3: TENTANG | QB3: NOMOR SRT KET | QC3: TANGGAL SRT KET | QD3: NOMOR IJAZAH | QE3: TENTANG | QF3: NOMOR SRT KET | QG3: TANGGAL SRT KET | QI3: QH (NILAI AKHIR) | QK3: AA (NILAI AKHIR) | QM3: FQ (NILAI AKHIR) | QO3: SKI (NILAI AKHIR) | QQ3: AWJ (NILAI AKHIR) | QS3: BA(NILAI AKHIR) | QU3: PKN (NILAI AKHIR) | QW3: BID (NILAI AKHIR) | QY3: MTK (NILAI AKHIR) | RA3: IPA (NILAI AKHIR) | RC3: IPS (NILAI AKHIR) | RE3: SBK (NILAI AKHIR) | RG3: PJO (NILAI AKHIR) | RI3: BD (NILAI AKHIR) | RK3: BIG (NILAI AKHIR)
CN4: SMT1 | CO4: SMT2 | CP4: SMT1 | CQ4: SMT2 | CR4: SMT1 | CS4: SMT2 | CT4: SMT1 | CU4: SMT2 | CV4: SMT1 | CW4: SMT2 | CX4: SMT1 | CY4: SMT2 | CZ4: SMT1 | DA4: SMT2 | DB4: SMT1 | DC4: SMT2 | DD4: SMT1 | DE4: SMT2 | DF4: SMT1 | DG4: SMT2 | DH4: SMT1 | DI4: SMT2 | DJ4: SMT1 | DK4: SMT2 | DL4: SMT1 | DM4: SMT2 | DN4: SMT1 | DO4: SMT2 | DP4: SMT1 | DQ4: SMT2 | DR4: SMT1 | DS4: SMT2 | DT4: SMT1 | DU4: SMT2 | DV4: SMT1 | DW4: SMT2 | DX4: SMT1 | DY4: SMT2 | DZ4: SMT1 | EA4: SMT2 | EB4: SMT1 | EC4: SMT2 | ED4: SMT1 | EE4: SMT2 | EF4: SMT1 | EG4: SMT2 | EH4: SMT1 | EI4: SMT2 | EJ4: SMT1 | EK4: SMT2 | EL4: SMT1 | EM4: SMT2 | EN4: SMT1 | EO4: SMT2 | ES4: SMT1 | ET4: SMT2 | EU4: SMT1 | EV4: SMT2 | EW4: SMT1 | EX4: SMT2 | EY4: SMT1 | EZ4: SMT2 | FA4: SMT1 | FB4: SMT2 | FC4: SMT1 | FD4: SMT2 | FE4: SMT1 | FF4: SMT2 | FG4: SMT1 | FH4: SMT2 | FI4: SMT1 | FJ4: SMT2 | FK4: SMT1 | FL4: SMT2 | FM4: SMT1 | FN4: SMT2 | FO4: SMT1 | FP4: SMT2 | FQ4: SMT1 | FR4: SMT2 | FS4: SMT1 | FT4: SMT2 | FU4: SMT1 | FV4: SMT2 | FW4: SMT1 | FX4: SMT2 | FY4: SMT1 | FZ4: SMT2 | GA4: SMT1 | GB4: SMT2 | GC4: SMT1 | GD4: SMT2 | GE4: SMT1 | GF4: SMT2 | GG4: SMT1 | GH4: SMT2 | GI4: SMT1 | GJ4: SMT2 | GK4: SMT1 | GL4: SMT2 | GM4: SMT1 | GN4: SMT2 | GO4: SMT1 | GP4: SMT2 | GQ4: SMT1 | GR4: SMT2 | GS4: SMT1 | GT4: SMT2 | GX4: SMT1 | GY4: SMT2 | GZ4: SMT1 | HA4: SMT2 | HB4: SMT1 | HC4: SMT2 | HD4: SMT1 | HE4: SMT2 | HF4: SMT1 | HG4: SMT2 | HH4: SMT1 | HI4: SMT2 | HJ4: SMT1 | HK4: SMT2 | HL4: SMT1 | HM4: SMT2 | HN4: SMT1 | HO4: SMT2 | HP4: SMT1 | HQ4: SMT2 | HR4: SMT1 | HS4: SMT2 | HT4: SMT1 | HU4: SMT2 | HV4: SMT1 | HW4: SMT2 | HX4: SMT1 | HY4: SMT2 | HZ4: SMT1 | IA4: SMT2 | IB4: SMT1 | IC4: SMT2 | ID4: SMT1 | IE4: SMT2 | IF4: SMT1 | IG4: SMT2 | IH4: SMT1 | II4: SMT2 | IJ4: SMT1 | IK4: SMT2 | IL4: SMT1 | IM4: SMT2 | IN4: SMT1 | IO4: SMT2 | IP4: SMT1 | IQ4: SMT2 | IR4: SMT1 | IS4: SMT2 | IT4: SMT1 | IU4: SMT2 | IV4: SMT1 | IW4: SMT2 | IX4: SMT1 | IY4: SMT2 | JC4: SMT1 | JD4: SMT2 | JE4: SMT1 | JF4: SMT2 | JG4: SMT1 | JH4: SMT2 | JI4: SMT1 | JJ4: SMT2 | JK4: SMT1 | JL4: SMT2 | JM4: SMT1 | JN4: SMT2 | JO4: SMT1 | JP4: SMT2 | JQ4: SMT1 | JR4: SMT2 | JS4: SMT1 | JT4: SMT2 | JU4: SMT1 | JV4: SMT2 | JW4: SMT1 | JX4: SMT2 | JY4: SMT1 | JZ4: SMT2 | KA4: SMT1 | KB4: SMT2 | KC4: SMT1 | KD4: SMT2 | KE4: SMT1 | KF4: SMT2 | KG4: SMT1 | KH4: SMT2 | KI4: SMT1 | KJ4: SMT2 | KK4: SMT1 | KL4: SMT2 | KM4: SMT1 | KN4: SMT2 | KO4: SMT1 | KP4: SMT2 | KQ4: SMT1 | KR4: SMT2 | KS4: SMT1 | KT4: SMT2 | KU4: SMT1 | KV4: SMT2 | KW4: SMT1 | KX4: SMT2 | KY4: SMT1 | KZ4: SMT2 | LA4: SMT1 | LB4: SMT2 | LC4: SMT1 | LD4: SMT2 | LH4: SMT1 | LI4: SMT2 | LJ4: SMT1 | LK4: SMT2 | LL4: SMT1 | LM4: SMT2 | LN4: SMT1 | LO4: SMT2 | LP4: SMT1 | LQ4: SMT2 | LR4: SMT1 | LS4: SMT2 | LT4: SMT1 | LU4: SMT2 | LV4: SMT1 | LW4: SMT2 | LX4: SMT1 | LY4: SMT2 | LZ4: SMT1 | MA4: SMT2 | MB4: SMT1 | MC4: SMT2 | MD4: SMT1 | ME4: SMT2 | MF4: SMT1 | MG4: SMT2 | MH4: SMT1 | MI4: SMT2 | MJ4: SMT1 | MK4: SMT2 | ML4: SMT1 | MM4: SMT2 | MN4: SMT1 | MO4: SMT2 | MP4: SMT1 | MQ4: SMT2 | MR4: SMT1 | MS4: SMT2 | MT4: SMT1 | MU4: SMT2 | MV4: SMT1 | MW4: SMT2 | MX4: SMT1 | MY4: SMT2 | MZ4: SMT1 | NA4: SMT2 | NB4: SMT1 | NC4: SMT2 | ND4: SMT1 | NE4: SMT2 | NF4: SMT1 | NG4: SMT2 | NH4: SMT1 | NI4: SMT2 | NM4: SMT1 | NN4: SMT2 | NO4: SMT1 | NP4: SMT2 | NQ4: SMT1 | NR4: SMT2 | NS4: SMT1 | NT4: SMT2 | NU4: SMT1 | NV4: SMT2 | NW4: SMT1 | NX4: SMT2 | NY4: SMT1 | NZ4: SMT2 | OA4: SMT1 | OB4: SMT2 | OC4: SMT1 | OD4: SMT2 | OE4: SMT1 | OF4: SMT2 | OG4: SMT1 | OH4: SMT2 | OI4: SMT1 | OJ4: SMT2 | OK4: SMT1 | OL4: SMT2 | OM4: SMT1 | ON4: SMT2 | OO4: SMT1 | OP4: SMT2 | OQ4: SMT1 | OR4: SMT2 | OS4: SMT1 | OT4: SMT2 | OU4: SMT1 | OV4: SMT2 | OW4: SMT1 | OX4: SMT2 | OY4: SMT1 | OZ4: SMT2 | PA4: SMT1 | PB4: SMT2 | PC4: SMT1 | PD4: SMT2 | PE4: SMT1 | PF4: SMT2 | PG4: SMT1 | PH4: SMT2 | PI4: SMT1 | PJ4: SMT2 | PK4: SMT1 | PL4: SMT2 | PM4: SMT1 | PN4: SMT2 | QI4: IJAZAH | QJ4: SKHU | QK4: IJAZAH | QL4: SKHU | QM4: IJAZAH | QN4: SKHU | QO4: IJAZAH | QP4: SKHU | QQ4: IJAZAH | QR4: SKHU | QS4: IJAZAH | QT4: SKHU | QU4: IJAZAH | QV4: SKHU | QW4: IJAZAH | QX4: SKHU | QY4: IJAZAH | QZ4: SKHU | RA4: IJAZAH | RB4: SKHU | RC4: IJAZAH | RD4: SKHU | RE4: IJAZAH | RF4: SKHU | RG4: IJAZAH | RH4: SKHU | RI4: IJAZAH | RJ4: SKHU | RK4: IJAZAH | RL4: SKHU
A6: 4001 | B6: Nama Murid | C6: Nama Orang Tua | D6: Kls. | E6: Tgl Masuk | F6: Tgl Keluar | G6: Nama Panggilan | H6: L | I6: Tanggal Lahir | J6: Tempat Lahir | K6: Agama | L6: WNI | M6: 21 | N6: 22 | O6: 23 | P6: Bahasa Sehari-hari keluarga | Q6: Berat badan | R6: tinggi badan | S6: gol.darah | T6: penyakit berat | U6: alamat dan no. telp | V6: tempat tinggal pada (ortu/numpang/asramah) | W6: Jarak Tempat Tinggal | X6: tahun masuk sekolah ini | Z6: no1 | AA6: no2 | AB6: pt1 | AC6: pt2 | AD6: pk1 | AE6: pk2 | AF6: Nama | AG6: hub.keluarga | AH6: Pendidikan | AI6: Pekerjaan | AK6: Langsung Orang Tua | AL6: nama RA/TK | AM6: Alamat | AN6: Tanggal dan No.STTB | AO6: Nama Sekolah | AP6: dari Tingkat | AQ6: diterima Tanggal | AR6: Prestasi Belajar | AS6: 2017 | AT6: 20171 | AU6: 20172 | AV6: 20173 | AW6: 20174 | AX6: 2018 | AY6: 20181 | AZ6: 20182 | BA6: 20183 | BB6: 20184 | BC6: 2019 | BD6: 20191 | BE6: 20192 | BF6: 20193 | BG6: 20194 | BH6: 2020 | BI6: 20201 | BJ6: 20202 | BK6: 20203 | BL6: 20204 | BM6: 2021 | BN6: 20211 | BO6: 20212 | BP6: 20213 | BQ6: 20214 | BR6: 2022 | BS6: 20221 | BT6: 20222 | BU6: 20223 | BV6: 20224 | BW6: 2023 | BX6: 20231 | BY6: 20232 | BZ6: 20233 | CA6: 20234 | CB6: KIP | CC6: Tahun | CD6: No. STTB | CE6: Melanjutkan Ke | CF6: Dari Tingkat | CG6: Ke Sekolah | CH6: Ke Tingkat | CI6: Tanggal | CJ6: Tanggal | CK6: Alasan | CN6: A1 | CO6: A2 | CP6: A3 | CQ6: A4 | CR6: A5 | CS6: A6 | CT6: A7 | CU6: A8 | CV6: A9 | CW6: A10 | CX6: A11 | CY6: A12 | CZ6: A13 | DA6: A14 | DB6: A15 | DC6: A16 | DD6: A17 | DE6: A18 | DF6: A19 | DG6: A20 | DH6: A21 | DI6: A22 | DJ6: A23 | DK6: A24 | DL6: A25 | DM6: A26 | DN6: A27 | DO6: A28 | DP6: A29 | DQ6: A30 | DR6: A31 | DS6: A32 | DT6: A33 | DU6: A34 | DV6: A35 | DW6: A36 | DX6: A37 | DY6: A38 | DZ6: A39 | EA6: A40 | EB6: A41 | EC6: A42 | ED6: A43 | EE6: A44 | EF6: A45 | EG6: A46 | EH6: A47 | EI6: A48 | EJ6: A49 | EK6: A50 | EL6: A51 | EM6: A52 | EN6: A53 | EO6: A54 | EP6: A55 | EQ6: A56 | ES6: A56 | ET6: A57 | EU6: A58 | EV6: A59 | EW6: A60 | EX6: A61 | EY6: A62 | EZ6: A63 | FA6: A64 | FB6: A65 | FC6: A66 | FD6: A67 | FE6: A68 | FF6: A69 | FG6: A70 | FH6: A71 | FI6: A72 | FJ6: A73 | FK6: A74 | FL6: A75 | FM6: A76 | FN6: A77 | FO6: A78 | FP6: A79 | FQ6: A80 | FR6: A81 | FS6: A82 | FT6: A83 | FU6: A84 | FV6: A85 | FW6: A86 | FX6: A87 | FY6: A88 | FZ6: A89 | GA6: A90 | GB6: A91 | GC6: A92 | GD6: A93 | GE6: A94 | GF6: A95 | GG6: A96 | GH6: A97 | GI6: A98 | GJ6: A99 | GK6: A100 | GL6: A101 | GM6: A102 | GN6: A103 | GO6: A104 | GP6: A105 | GQ6: A106 | GR6: A107 | GS6: A108 | GT6: A109 | GU6: A110 | GV6: A111 | GX6: A112 | GY6: A113 | GZ6: A114 | HA6: A115 | HB6: A116 | HC6: A117 | HD6: A118 | HE6: A119 | HF6: A120 | HG6: A121 | HH6: A122 | HI6: A123 | HJ6: A124 | HK6: A125 | HL6: A126 | HM6: A127 | HN6: A128 | HO6: A129 | HP6: A130 | HQ6: A131 | HR6: A132 | HS6: A133 | HT6: A134 | HU6: A135 | HV6: A136 | HW6: A137 | HX6: A138 | HY6: A139 | HZ6: A140 | IA6: A141 | IB6: A142 | IC6: A143 | ID6: A144 | IE6: A145 | IF6: A146 | IG6: A147 | IH6: A148 | II6: A149 | IJ6: A150 | IK6: A151 | IL6: A152 | IM6: A153 | IN6: A154 | IO6: A155 | IP6: A156 | IQ6: A157 | IR6: A158 | IS6: A159 | IT6: A160 | IU6: A161 | IV6: A162 | IW6: A163 | IX6: A164 | IY6: A165 | IZ6: A166 | JA6: A167 | JC6: A168 | JD6: A169 | JE6: A170 | JF6: A171 | JG6: A172 | JH6: A173 | JI6: A174 | JJ6: A175 | JK6: A176 | JL6: A177 | JM6: A178 | JN6: A179 | JO6: A180 | JP6: A181 | JQ6: A182 | JR6: A183 | JS6: A184 | JT6: A185 | JU6: A186 | JV6: A187 | JW6: A188 | JX6: A189 | JY6: A190 | JZ6: A191 | KA6: A192 | KB6: A193 | KC6: A194 | KD6: A195 | KE6: A196 | KF6: A197 | KG6: A198 | KH6: A199 | KI6: A200 | KJ6: A201 | KK6: A202 | KL6: A203 | KM6: A204 | KN6: A205 | KO6: A206 | KP6: A207 | KQ6: A208 | KR6: A209 | KS6: A210 | KT6: A211 | KU6: A212 | KV6: A213 | KW6: A214 | KX6: A215 | KY6: A216 | KZ6: A217 | LA6: A218 | LB6: A219 | LC6: A220 | LD6: A221 | LE6: A222 | LF6: A223 | LH6: A224 | LI6: A225 | LJ6: A226 | LK6: A227 | LL6: A228 | LM6: A229 | LN6: A230 | LO6: A231 | LP6: A232 | LQ6: A233 | LR6: A234 | LS6: A235 | LT6: A236 | LU6: A237 | LV6: A238 | LW6: A239 | LX6: A240 | LY6: A241 | LZ6: A242 | MA6: A243 | MB6: A244 | MC6: A245 | MD6: A246 | ME6: A247 | MF6: A248 | MG6: A249 | MH6: A250 | MI6: A251 | MJ6: A252 | MK6: A253 | ML6: A254 | MM6: A255 | MN6: A256 | MO6: A257 | MP6: A258 | MQ6: A259 | MR6: A260 | MS6: A261 | MT6: A262 | MU6: A263 | MV6: A264 | MW6: A265 | MX6: A266 | MY6: A267 | MZ6: A268 | NA6: A269 | NB6: A270 | NC6: A271 | ND6: A272 | NE6: A273 | NF6: A274 | NG6: A275 | NH6: A276 | NI6: A277 | NJ6: A278 | NK6: A279 | NM6: A280 | NN6: A281 | NO6: A282 | NP6: A283 | NQ6: A284 | NR6: A285 | NS6: A286 | NT6: A287 | NU6: A288 | NV6: A289 | NW6: A290 | NX6: A291 | NY6: A292 | NZ6: A293 | OA6: A294 | OB6: A295 | OC6: A296 | OD6: A297 | OE6: A298 | OF6: A299 | OG6: A300 | OH6: A301 | OI6: A302 | OJ6: A303 | OK6: A304 | OL6: A305 | OM6: A306 | ON6: A307 | OO6: A308 | OP6: A309 | OQ6: A310 | OR6: A311 | OS6: A312 | OT6: A313 | OU6: A314 | OV6: A315 | OW6: A316 | OX6: A317 | OY6: A318 | OZ6: A319 | PA6: A320 | PB6: A321 | PC6: A322 | PD6: A323 | PE6: A324 | PF6: A325 | PG6: A326 | PH6: A327 | PI6: A328 | PJ6: A329 | PK6: A330 | PL6: A331 | PM6: A332 | PN6: A333 | PO6: LULUS | PP6: A335 | PR6: A336 | PS6: A337 | PT6: A338 | PU6: A339 | PV6: A340 | PW6: A341 | PX6: A342 | PY6: A343 | PZ6: A344 | QA6: A345 | QB6: A346 | QC6: A347 | QD6: A348 | QE6: A349 | QF6: A350 | QG6: A351 | QI6: A352 | QJ6: A353 | QK6: A354 | QL6: A355 | QM6: A356 | QN6: A357 | QO6: A358 | QP6: A359 | QQ6: A360 | QR6: A361 | QS6: A362 | QT6: A363 | QU6: A364 | QV6: A365 | QW6: A366 | QX6: A367 | QY6: A368 | QZ6: A369 | RA6: A370 | RB6: A371 | RC6: A372 | RD6: A373 | RE6: A374 | RF6: A375 | RG6: A376 | RH6: A377 | RI6: A378 | RJ6: A379 | RK6: A380 | RL6: A381
A7: 4002 | B7: Nama Murid | C7: Nama Orang Tua | D7: Kls. | E7: Tgl Masuk | F7: Tgl Keluar | G7: Nama Panggilan | H7: L | I7: Tanggal Lahir | J7: Tempat Lahir | K7: Agama | L7: WNI | M7: 21 | N7: 22 | O7: 23 | P7: Bahasa Sehari-hari keluarga | Q7: Berat badan | R7: tinggi badan | S7: gol.darah | T7: penyakit berat | U7: alamat dan no. telp | V7: tempat tinggal pada (ortu/numpang/asramah) | W7: Jarak Tempat Tinggal | X7: tahun masuk sekolah ini | Z7: no1 | AA7: no2 | AB7: pt1 | AC7: pt2 | AD7: pk1 | AE7: pk2 | AF7: Nama | AG7: hub.keluarga | AH7: Pendidikan | AI7: Pekerjaan | AK7: Langsung Orang Tua | AL7: nama RA/TK | AM7: Alamat | AN7: Tanggal dan No.STTB | AO7: Nama Sekolah | AP7: dari Tingkat | AQ7: diterima Tanggal | AR7: Prestasi Belajar | AS7: 2017 | AT7: 20171 | AU7: 20172 | AV7: 20173 | AW7: 20174 | AX7: 2018 | AY7: 20181 | AZ7: 20182 | BA7: 20183 | BB7: 20184 | BC7: 2019 | BD7: 20191 | BE7: 20192 | BF7: 20193 | BG7: 20194 | BH7: 2020 | BI7: 20201 | BJ7: 20202 | BK7: 20203 | BL7: 20204 | BM7: 2021 | BN7: 20211 | BO7: 20212 | BP7: 20213 | BQ7: 20214 | BR7: 2022 | BS7: 20221 | BT7: 20222 | BU7: 20223 | BV7: 20224 | BW7: 2023 | BX7: 20231 | BY7: 20232 | BZ7: 20233 | CA7: 20234 | CB7: KIP | CC7: Tahun | CD7: No. STTB | CE7: Melanjutkan Ke | CF7: Dari Tingkat | CG7: Ke Sekolah | CH7: Ke Tingkat | CI7: Tanggal | CJ7: Tanggal | CK7: Alasan | CN7: B1 | CO7: B2 | CP7: B3 | CQ7: B4 | CR7: B5 | CS7: B6 | CT7: B7 | CU7: B8 | CV7: B9 | CW7: B10 | CX7: B11 | CY7: B12 | CZ7: B13 | DA7: B14 | DB7: B15 | DC7: B16 | DD7: B17 | DE7: B18 | DF7: B19 | DG7: B20 | DH7: B21 | DI7: B22 | DJ7: B23 | DK7: B24 | DL7: B25 | DM7: B26 | DN7: B27 | DO7: B28 | DP7: B29 | DQ7: B30 | DR7: B31 | DS7: B32 | DT7: B33 | DU7: B34 | DV7: B35 | DW7: B36 | DX7: B37 | DY7: B38 | DZ7: B39 | EA7: B40 | EB7: B41 | EC7: B42 | ED7: B43 | EE7: B44 | EF7: B45 | EG7: B46 | EH7: B47 | EI7: B48 | EJ7: B49 | EK7: B50 | EL7: B51 | EM7: B52 | EN7: B53 | EO7: B54 | EP7: B55 | EQ7: B56 | ES7: B56 | ET7: B57 | EU7: B58 | EV7: B59 | EW7: B60 | EX7: B61 | EY7: B62 | EZ7: B63 | FA7: B64 | FB7: B65 | FC7: B66 | FD7: B67 | FE7: B68 | FF7: B69 | FG7: B70 | FH7: B71 | FI7: B72 | FJ7: B73 | FK7: B74 | FL7: B75 | FM7: B76 | FN7: B77 | FO7: B78 | FP7: B79 | FQ7: B80 | FR7: B81 | FS7: B82 | FT7: B83 | FU7: B84 | FV7: B85 | FW7: B86 | FX7: B87 | FY7: B88 | FZ7: B89 | GA7: B90 | GB7: B91 | GC7: B92 | GD7: B93 | GE7: B94 | GF7: B95 | GG7: B96 | GH7: B97 | GI7: B98 | GJ7: B99 | GK7: B100 | GL7: B101 | GM7: B102 | GN7: B103 | GO7: B104 | GP7: B105 | GQ7: B106 | GR7: B107 | GS7: B108 | GT7: B109 | GU7: B110 | GV7: B111 | GX7: B112 | GY7: B113 | GZ7: B114 | HA7: B115 | HB7: B116 | HC7: B117 | HD7: B118 | HE7: B119 | HF7: B120 | HG7: B121 | HH7: B122 | HI7: B123 | HJ7: B124 | HK7: B125 | HL7: B126 | HM7: B127 | HN7: B128 | HO7: B129 | HP7: B130 | HQ7: B131 | HR7: B132 | HS7: B133 | HT7: B134 | HU7: B135 | HV7: B136 | HW7: B137 | HX7: B138 | HY7: B139 | HZ7: B140 | IA7: B141 | IB7: B142 | IC7: B143 | ID7: B144 | IE7: B145 | IF7: B146 | IG7: B147 | IH7: B148 | II7: B149 | IJ7: B150 | IK7: B151 | IL7: B152 | IM7: B153 | IN7: B154 | IO7: B155 | IP7: B156 | IQ7: B157 | IR7: B158 | IS7: B159 | IT7: B160 | IU7: B161 | IV7: B162 | IW7: B163 | IX7: B164 | IY7: B165 | IZ7: B166 | JA7: B167 | JC7: B168 | JD7: B169 | JE7: B170 | JF7: B171 | JG7: B172 | JH7: B173 | JI7: B174 | JJ7: B175 | JK7: B176 | JL7: B177 | JM7: B178 | JN7: B179 | JO7: B180 | JP7: B181 | JQ7: B182 | JR7: B183 | JS7: B184 | JT7: B185 | JU7: B186 | JV7: B187 | JW7: B188 | JX7: B189 | JY7: B190 | JZ7: B191 | KA7: B192 | KB7: B193 | KC7: B194 | KD7: B195 | KE7: B196 | KF7: B197 | KG7: B198 | KH7: B199 | KI7: B200 | KJ7: B201 | KK7: B202 | KL7: B203 | KM7: B204 | KN7: B205 | KO7: B206 | KP7: B207 | KQ7: B208 | KR7: B209 | KS7: B210 | KT7: B211 | KU7: B212 | KV7: B213 | KW7: B214 | KX7: B215 | KY7: B216 | KZ7: B217 | LA7: B218 | LB7: B219 | LC7: B220 | LD7: B221 | LE7: B222 | LF7: B223 | LH7: B224 | LI7: B225 | LJ7: B226 | LK7: B227 | LL7: B228 | LM7: B229 | LN7: B230 | LO7: B231 | LP7: B232 | LQ7: B233 | LR7: B234 | LS7: B235 | LT7: B236 | LU7: B237 | LV7: B238 | LW7: B239 | LX7: B240 | LY7: B241 | LZ7: B242 | MA7: B243 | MB7: B244 | MC7: B245 | MD7: B246 | ME7: B247 | MF7: B248 | MG7: B249 | MH7: B250 | MI7: B251 | MJ7: B252 | MK7: B253 | ML7: B254 | MM7: B255 | MN7: B256 | MO7: B257 | MP7: B258 | MQ7: B259 | MR7: B260 | MS7: B261 | MT7: B262 | MU7: B263 | MV7: B264 | MW7: B265 | MX7: B266 | MY7: B267 | MZ7: B268 | NA7: B269 | NB7: B270 | NC7: B271 | ND7: B272 | NE7: B273 | NF7: B274 | NG7: B275 | NH7: B276 | NI7: B277 | NJ7: B278 | NK7: B279 | NM7: B280 | NN7: B281 | NO7: B282 | NP7: B283 | NQ7: B284 | NR7: B285 | NS7: B286 | NT7: B287 | NU7: B288 | NV7: B289 | NW7: B290 | NX7: B291 | NY7: B292 | NZ7: B293 | OA7: B294 | OB7: B295 | OC7: B296 | OD7: B297 | OE7: B298 | OF7: B299 | OG7: B300 | OH7: B301 | OI7: B302 | OJ7: B303 | OK7: B304 | OL7: B305 | OM7: B306 | ON7: B307 | OO7: B308 | OP7: B309 | OQ7: B310 | OR7: B311 | OS7: B312 | OT7: B313 | OU7: B314 | OV7: B315 | OW7: B316 | OX7: B317 | OY7: B318 | OZ7: B319 | PA7: B320 | PB7: B321 | PC7: B322 | PD7: B323 | PE7: B324 | PF7: B325 | PG7: B326 | PH7: B327 | PI7: B328 | PJ7: B329 | PK7: B330 | PL7: B331 | PM7: B332 | PN7: B333 | PO7: LOELOES | PP7: LOELOES | PR7: B336 | PS7: B337 | PT7: B338 | PU7: B339 | PV7: B340 | PW7: B341 | PX7: B342 | PY7: B343 | PZ7: B344 | QA7: B345 | QB7: B346 | QC7: B347 | QD7: B348 | QE7: B349 | QF7: B350 | QG7: B351 | QI7: B352 | QJ7: B353 | QK7: B354 | QL7: B355 | QM7: B356 | QN7: B357 | QO7: B358 | QP7: B359 | QQ7: B360 | QR7: B361 | QS7: B362 | QT7: B363 | QU7: B364 | QV7: B365 | QW7: B366 | QX7: B367 | QY7: B368 | QZ7: B369 | RA7: B370 | RB7: B371 | RC7: B372 | RD7: B373 | RE7: B374 | RF7: B375 | RG7: B376 | RH7: B377 | RI7: B378 | RJ7: B379 | RK7: B380 | RL7: B381
A8: 4003
A9: 4004
A10: 4005
A11: 4006
A12: 4007
A13: 4008
A14: 4009
A15: 4010
A16: 4011
A17: 4012
A18: 4013
A19: 4014
A20: 4015
A21: 4016
A22: 4017
A23: 4018
A24: 4019
A25: 4020
A26: 4021
A27: 4022
A28: 4023
A29: 4024
A30: 4025
A31: 4026
A32: 4027
A33: 4028
A34: 4029
A35: 4030
A36: 4031
A37: 4032
A38: 4033
A39: 4034
A40: 4035
A41: 4036
A42: 4037
A43: 4038
A44: 4039
A45: 4040
A46: 4041
A47: 4042
A48: 4043
A49: 4044
A50: 4045
A51: 4046
A52: 4047
A53: 4048
A54: 4049
A55: 4050
A56: 4051
A57: 4052
A58: 4053
A59: 4054
A60: 4055
A61: 4056
A62: 4057
A63: 4058
A64: 4059
A65: 4060
A66: 4061
A67: 4062
A68: 4063
A69: 4064
A70: 4065
A71: 4066
A72: 4067
A73: 4068
A74: 4069
A75: 4070
A76: 4071
A77: 4072
A78: 4073
A79: 4074
A80: 4075
A81: 4076
A82: 4077
A83: 4078
A84: 4079
A85: 4080
A86: 4081
A87: 4082
A88: 4083
A89: 4084
A90: 4085
A91: 4086
A92: 4087
A93: 4088
A94: 4089
A95: 4090
A96: 4091
A97: 4092
A98: 4093
A99: 4094
A100: 4095
A101: 4096
A102: 4097
A103: 4098
A104: 4099
A105: 4100
A106: 4101
A107: 4102
A108: 4103
A109: 4104
A110: 4105
A111: 4106
A112: 4107
A113: 4108
A114: 4109
A115: 4110
A116: 4111
A117: 4112
A118: 4113
A119: 4114
A120: 4115
A121: 4116
A122: 4117
A123: 4118
A124: 4119
A125: 4120
A126: 4121
A127: 4122
A128: 4123
A129: 4124
A130: 4125
A131: 4126
A132: 4127
A133: 4128
A134: 4129
A135: 4130
A136: 4131
A137: 4132
A138: 4133
A139: 4134
A140: 4135
A141: 4136
A142: 4137
A143: 4138
A144: 4139
A145: 4140
A146: 4141
A147: 4142
A148: 4143
A149: 4144
A150: 4145
A151: 4146
A152: 4147
A153: 4148
A154: 4149
A155: 4150
A156: 4151
A157: 4152
A158: 4153
A159: 4154
A160: 4155
A161: 4156
A162: 4157
A163: 4158
A164: 4159
A165: 4160
A166: 4161
A167: 4162
A168: 4163
A169: 4164
A170: 4165
A171: 4166
A172: 4167
A173: 4168
A174: 4169
A175: 4170
A176: 4171
A177: 4172
A178: 4173
A179: 4174
A180: 4175
A181: 4176
A182: 4177
A183: 4178
A184: 4179
A185: 4180
A186: 4181
A187: 4182
A188: 4183
A189: 4184
A190: 4185
A191: 4186
A192: 4187
A193: 4188
A194: 4189
A195: 4190
A196: 4191
A197: 4192
A198: 4193
A199: 4194
A200: 4195
A201: 4196
... 804 more rows

Sheet INDUK40015000HAL1
E1: Nomor Induk Murid : | K1: 4365
D2: A. | E2: KETERANGAN MURID
E3: 1. | F3: Nama Murid :
I4: a. Lengkap | L4: =": "&VLOOKUP($K$1,INDUK40015000!$A$6:$CK$1005,2) -> : AUFAN AZKAL ABRORI
I5: b. Panggilan | L5: =": "&VLOOKUP($K$1,INDUK40015000!$A$6:$CK$1005,7) -> :
E6: 2. | F6: Jenis Kelamin | L6: =": "&IF(VLOOKUP($K$1,INDUK40015000!$A$6:$CK$1005,8)="L","Laki-Laki","Perempuan") -> : Perempuan
B7: PAS FOTO 3X4cm | E7: 3. | F7: Kelahiran :
I8: a. Tanggal | L8: =": "&VLOOKUP($K$1,INDUK40015000!$A$6:$CK$1005,9) -> :
I9: b. Tempat | L9: =": "&VLOOKUP($K$1,INDUK40015000!$A$6:$CK$1005,10) -> :
E10: 4. | F10: Agama | L10: =": "&VLOOKUP($K$1,INDUK40015000!$A$6:$CK$1005,11) -> :
E11: 5. | F11: Kewarganegaraan | L11: =": "&VLOOKUP($K$1,INDUK40015000!$A$6:$CK$1005,12) -> :
E12: 6. | F12: Jumlah Saudara
H13: a. | I13: Kandung | L13: =": "&VLOOKUP($K$1,INDUK40015000!$A$6:$CK$1005,13) -> :
H14: b. | I14: Tiri | L14: =": "&VLOOKUP($K$1,INDUK40015000!$A$6:$CK$1005,14) -> :
H15: c. | I15: Angkat | L15: =": "&VLOOKUP($K$1,INDUK40015000!$A$6:$CK$1005,15) -> :
E16: 7. | F16: Bahasa Sehari-hari Keluarga | L16: =": "&VLOOKUP($K$1,INDUK40015000!$A$6:$CK$1005,16) -> :
E17: 8. | F17: Keadaan Jasmani
H18: a. | I18: Berat Badan | L18: =": "&VLOOKUP($K$1,INDUK40015000!$A$6:$CK$1005,17) -> :
H19: b. | I19: Tinggi Badan | L19: =": "&VLOOKUP($K$1,INDUK40015000!$A$6:$CK$1005,18) -> :
H20: c. | I20: Gol. Darah | L20: =": "&VLOOKUP($K$1,INDUK40015000!$A$6:$CK$1005,19) -> :
H21: d. | I21: Penyakit Berat | L21: =": "&VLOOKUP($K$1,INDUK40015000!$A$6:$CK$1005,20) -> :
E22: 9. | F22: Alamat dan No. Telepon | L22: =": "&VLOOKUP($K$1,INDUK40015000!$A$6:$CK$1005,21) -> :
E23: 10. | F23: Bertempat Tinggal Pada | L23: =": "&VLOOKUP($K$1,INDUK40015000!$A$6:$CK$1005,22) -> :
E24: 11. | F24: Jarak Tempat Tinggal ke Sekolah | L24: =": "&VLOOKUP($K$1,INDUK40015000!$A$6:$CK$1005,23) -> :
E25: 12 | F25: Tahun Masuk Sekolah ini | L25: =": "&VLOOKUP($K$1,INDUK40015000!$A$6:$CK$1005,24) -> :
D26: B. | E26: KETERANGAN ORANG TUA / WALI MURID
E27: 1. | F27: Nama Orang Tua kandung
F28: a. | H28: Nama
H29: a) | I29: Ayah | L29: =": "&VLOOKUP($K$1,INDUK40015000!$A$6:$CK$1005,26) -> :
B30: PAS FOTO 3X4cm | H30: b) | I30: Ibu | L30: =": "&VLOOKUP($K$1,INDUK40015000!$A$6:$CK$1005,27) -> :
F31: b. | H31: Pendidikan Tertinggi
H32: a) | I32: Ayah | L32: =": "&VLOOKUP($K$1,INDUK40015000!$A$6:$CK$1005,28) -> :
H33: b) | I33: Ibu | L33: =": "&VLOOKUP($K$1,INDUK40015000!$A$6:$CK$1005,29) -> :
F34: c. | H34: Pekerjaan
H35: a) | I35: Ayah | L35: =": "&VLOOKUP($K$1,INDUK40015000!$A$6:$CK$1005,30) -> :
H36: b) | I36: Ibu | L36: =": "&VLOOKUP($K$1,INDUK40015000!$A$6:$CK$1005,31) -> :
F37: d. | H37: Wali Murid (jika mempunyai)
H38: a) | I38: Nama | L38: =": "&VLOOKUP($K$1,INDUK40015000!$A$6:$CK$1005,32) -> :
H39: b) | I39: Hubungan Keluarga | L39: =": "&VLOOKUP($K$1,INDUK40015000!$A$6:$CK$1005,33) -> :
H40: c) | I40: Pendidikan | L40: =": "&VLOOKUP($K$1,INDUK40015000!$A$6:$CK$1005,34) -> :
H41: d) | I41: Pekerjaan | L41: =": "&VLOOKUP($K$1,INDUK40015000!$A$6:$CK$1005,35) -> :
D43: C. | E43: PERKEMBANGAN MURID
E44: 1. | F44: Pendidikan Sebelumnya :
F45: a. | H45: Masuk menjadi murid baru tingkat I
H46: a) | I46: Asal Murid | L46: =": "&VLOOKUP($K$1,INDUK40015000!$A$6:$CK$1005,37) -> :
H47: b) | I47: Nama TK | L47: =": "&VLOOKUP($K$1,INDUK40015000!$A$6:$CK$1005,38) -> :
H48: c) | I48: Alamat | L48: =": "&VLOOKUP($K$1,INDUK40015000!$A$6:$CK$1005,39) -> :
H49: d) | I49: Tanggal dan No. STTB | L49: =": "&VLOOKUP($K$1,INDUK40015000!$A$6:$CK$1005,40) -> :
F50: b. | H50: Pindahan dari sekolah lain
H51: a) | I51: Nama Sekolah Asal | L51: =": "&VLOOKUP($K$1,INDUK40015000!$A$6:$CK$1005,41) -> :
H52: b) | I52: Dari Tingkat | L52: =": "&VLOOKUP($K$1,INDUK40015000!$A$6:$CK$1005,42) -> :
H53: c) | I53: Diterima Tanggal | L53: =": "&VLOOKUP($K$1,INDUK40015000!$A$6:$CK$1005,43) -> :
E54: 2. | F54: Prestasi Belajar (hal. Berikut)
E55: 3. | F55: Keadaan Jasmani
D56: a. | E56: Tahun | I56: =VLOOKUP($K$1,INDUK40015000!$A$6:$CA$1005,45) -> 0 | J56: =VLOOKUP($K$1,INDUK40015000!$A$6:$CA$1005,50) -> 0 | K56: =VLOOKUP($K$1,INDUK40015000!$A$6:$CA$1005,55) -> 0 | L56: =VLOOKUP($K$1,INDUK40015000!$A$6:$CK$1005,60) -> 0 | M56: =VLOOKUP($K$1,INDUK40015000!$A$6:$CA$1005,65) -> 0 | N56: =VLOOKUP($K$1,INDUK40015000!$A$6:$CA$1005,70) -> 0 | O56: =VLOOKUP($K$1,INDUK40015000!$A$6:$CA$1005,75) -> 0
B57: PAS FOTO 3X4cm | D57: b. | E57: Berat Badan | I57: =VLOOKUP($K$1,INDUK40015000!$A$6:$CK$1005,46)&" Kg" -> Kg | J57: =VLOOKUP($K$1,INDUK40015000!$A$6:$CK$1005,51)&" Kg" -> Kg | K57: =VLOOKUP($K$1,INDUK40015000!$A$6:$CK$1005,56)&" Kg" -> Kg | L57: =VLOOKUP($K$1,INDUK40015000!$A$6:$CK$1005,61)&" Kg" -> Kg | M57: =VLOOKUP($K$1,INDUK40015000!$A$6:$CK$1005,66)&" Kg" -> Kg | N57: =VLOOKUP($K$1,INDUK40015000!$A$6:$CK$1005,71)&" Kg" -> Kg | O57: =VLOOKUP($K$1,INDUK40015000!$A$6:$CK$1005,76)&" Kg" -> Kg
D58: c. | E58: Tinggi Badan | I58: =VLOOKUP($K$1,INDUK40015000!$A$6:$CK$1005,47)&" Cm" -> Cm | J58: =VLOOKUP($K$1,INDUK40015000!$A$6:$CK$1005,52)&" Cm" -> Cm | K58: =VLOOKUP($K$1,INDUK40015000!$A$6:$CK$1005,57)&" Cm" -> Cm | L58: =VLOOKUP($K$1,INDUK40015000!$A$6:$CK$1005,62)&" Cm" -> Cm | M58: =VLOOKUP($K$1,INDUK40015000!$A$6:$CK$1005,67)&" Cm" -> Cm | N58: =VLOOKUP($K$1,INDUK40015000!$A$6:$CK$1005,72)&" Cm" -> Cm | O58: =VLOOKUP($K$1,INDUK40015000!$A$6:$CK$1005,77)&" Cm" -> Cm
D59: d. | E59: Penyakit | I59: =VLOOKUP($K$1,INDUK40015000!$A$6:$CK$1005,48) -> 0 | J59: =VLOOKUP($K$1,INDUK40015000!$A$6:$CK$1005,53) -> 0 | K59: =VLOOKUP($K$1,INDUK40015000!$A$6:$CK$1005,58) -> 0 | L59: =VLOOKUP($K$1,INDUK40015000!$A$6:$CK$1005,63) -> 0 | M59: =VLOOKUP($K$1,INDUK40015000!$A$6:$CK$1005,68) -> 0 | N59: =VLOOKUP($K$1,INDUK40015000!$A$6:$CK$1005,73) -> 0 | O59: =VLOOKUP($K$1,INDUK40015000!$A$6:$CK$1005,78) -> 0
D60: e. | E60: Kelainan Jasmani | I60: =VLOOKUP($K$1,INDUK40015000!$A$6:$CK$1005,49) -> 0 | J60: =VLOOKUP($K$1,INDUK40015000!$A$6:$CK$1005,54) -> 0 | K60: =VLOOKUP($K$1,INDUK40015000!$A$6:$CK$1005,59) -> 0 | L60: =VLOOKUP($K$1,INDUK40015000!$A$6:$CK$1005,64) -> 0 | M60: =VLOOKUP($K$1,INDUK40015000!$A$6:$CK$1005,69) -> 0 | N60: =VLOOKUP($K$1,INDUK40015000!$A$6:$CK$1005,74) -> 0 | O60: =VLOOKUP($K$1,INDUK40015000!$A$6:$CK$1005,79) -> 0
D62: D. | E62: BEA SISWA ( Jenis Beasiswa ) | L62: =": "&VLOOKUP($K$1,INDUK40015000!$A$6:$CK$1005,80) -> :
D63: E. | E63: MENINGGALKAN MADRASAH
E64: 1. | F64: Tamat Belajar
F65: a) | H65: Tahun Tamat | L65: =": Tahun: "&VLOOKUP($K$1,INDUK40015000!$A$6:$CK$1005,81) -> : Tahun: | N65: ="No.STTB : "&VLOOKUP($K$1,INDUK40015000!$A$6:$CK$1005,82) -> No.STTB :
F66: b) | H66: Melanjutkan Madrasah | L66: =": "&VLOOKUP($K$1,INDUK40015000!$A$6:$CK$1005,83) -> :
E67: 2. | F67: Pindah Madrasah
F68: a) | H68: Dari Tingkat | L68: =": "&VLOOKUP($K$1,INDUK40015000!$A$6:$CK$1005,84) -> :
F69: b) | H69: Ke Sekolah | L69: =": "&VLOOKUP($K$1,INDUK40015000!$A$6:$CK$1005,85) -> :
F70: c) | H70: Ke Tingkat | L70: =": "&VLOOKUP($K$1,INDUK40015000!$A$6:$CK$1005,86) -> :
F71: d) | H71: Tanggal | L71: =": "&VLOOKUP($K$1,INDUK40015000!$A$6:$CK$1005,87) -> :
E72: 3. | F72: Keluar Madrasah
F73: a. | H73: Tanggal | L73: =": "&VLOOKUP($K$1,INDUK40015000!$A$6:$CK$1005,88) -> :
F74: b. | H74: Alasan | L74: =": "&VLOOKUP($K$1,INDUK40015000!$A$6:$CK$1005,89) -> :

Sheet INDUK40015000HAL2
A1: V. | B1: PENILAIAN HASIL BELAJAR | V1: NO.INDUK | Z1: : | AA1: 4002
A2: NO | B2: Mata Pelajaran | F2: ="TP. "&IF(VLOOKUP($AA$1,INDUK40015000!$A$6:$RL$1005,147,)=0,"-",VLOOKUP($AA$1,INDUK40015000!$A$6:$RL$1005,147,)) -> TP. B56 | J2: ="TP. "&IF(VLOOKUP($AA$1,INDUK40015000!$A$6:$RL$1005,204,)=0,"-",VLOOKUP($AA$1,INDUK40015000!$A$6:$RL$1005,204,)) -> TP. B111 | N2: ="TP. "&IF(VLOOKUP($AA$1,INDUK40015000!$A$6:$RL$1005,261,)=0,"-",VLOOKUP($AA$1,INDUK40015000!$A$6:$RL$1005,261,)) -> TP. B167 | R2: ="TP. "&IF(VLOOKUP($AA$1,INDUK40015000!$A$6:$RL$1005,318,)=0,"-",VLOOKUP($AA$1,INDUK40015000!$A$6:$RL$1005,318,)) -> TP. B223 | V2: ="TP. "&IF(VLOOKUP($AA$1,INDUK40015000!$A$6:$RL$1005,375,)=0,"-",VLOOKUP($AA$1,INDUK40015000!$A$6:$RL$1005,375,)) -> TP. B279 | Z2: ="TP. "&IF(VLOOKUP($AA$1,INDUK40015000!$A$6:$RL$1005,432,)=0,"-",VLOOKUP($AA$1,INDUK40015000!$A$6:$RL$1005,432,)) -> TP. LOELOES | AD2: NILAI | AF2: 15
F3: KELAS 1 | J3: KELAS 2 | N3: KELAS 3 | R3: KELAS 4 | V3: KELAS 5 | Z3: KELAS 6 | AD3: NEM | AE3: STTB/ IJAZAH
F4: Smt I | H4: Smt II | J4: Smt I | L4: Smt II | N4: Smt I | P4: Smt II | R4: Smt I | T4: Smt II | V4: Smt I | X4: Smt II | Z4: Smt I | AB4: Smt II
F5: KKM | G5: Nilai | H5: KKM | I5: Nilai | J5: KKM | K5: Nilai | L5: KKM | M5: Nilai | N5: KKM | O5: Nilai | P5: KKM | Q5: Nilai | R5: KKM | S5: Nilai | T5: KKM | U5: Nilai | V5: KKM | W5: Nilai | X5: KKM | Y5: Nilai | Z5: KKM | AA5: Nilai | AB5: KKM | AC5: Nilai
A6: 1 | B6: Pendidikan Agama Islam
B7: a. | C7: Al-qur'an Hadits | G7: =IF(VLOOKUP($AA$1,INDUK40015000!$A$6:$RL$1005,92,)=0,"-",VLOOKUP($AA$1,INDUK40015000!$A$6:$RL$1005,92,)) -> B1 | I7: =IF(VLOOKUP($AA$1,INDUK40015000!$A$6:$RL$1005,93,)=0,"-",VLOOKUP($AA$1,INDUK40015000!$A$6:$RL$1005,93,)) -> B2 | K7: =IF(VLOOKUP($AA$1,INDUK40015000!$A$6:$RL$1005,149,)=0,"-",VLOOKUP($AA$1,INDUK40015000!$A$6:$RL$1005,149,)) -> B56 | M7: =IF(VLOOKUP($AA$1,INDUK40015000!$A$6:$RL$1005,150,)=0,"-",VLOOKUP($AA$1,INDUK40015000!$A$6:$RL$1005,150,)) -> B57 | O7: =IF(VLOOKUP($AA$1,INDUK40015000!$A$6:$RL$1005,206,)=0,"-",VLOOKUP($AA$1,INDUK40015000!$A$6:$RL$1005,206,)) -> B112 | Q7: =IF(VLOOKUP($AA$1,INDUK40015000!$A$6:$RL$1005,207,)=0,"-",VLOOKUP($AA$1,INDUK40015000!$A$6:$RL$1005,207,)) -> B113 | S7: =IF(VLOOKUP($AA$1,INDUK40015000!$A$6:$RL$1005,263,)=0,"-",VLOOKUP($AA$1,INDUK40015000!$A$6:$RL$1005,263,)) -> B168 | U7: =IF(VLOOKUP($AA$1,INDUK40015000!$A$6:$RL$1005,264,)=0,"-",VLOOKUP($AA$1,INDUK40015000!$A$6:$RL$1005,264,)) -> B169 | W7: =IF(VLOOKUP($AA$1,INDUK40015000!$A$6:$RL$1005,320,)=0,"-",VLOOKUP($AA$1,INDUK40015000!$A$6:$RL$1005,320,)) -> B224 | Y7: =IF(VLOOKUP($AA$1,INDUK40015000!$A$6:$RL$1005,321,)=0,"-",VLOOKUP($AA$1,INDUK40015000!$A$6:$RL$1005,321,)) -> B225 | AA7: =IF(VLOOKUP($AA$1,INDUK40015000!$A$6:$RL$1005,377,)=0,"-",VLOOKUP($AA$1,INDUK40015000!$A$6:$RL$1005,377,)) -> B280 | AC7: =IF(VLOOKUP($AA$1,INDUK40015000!$A$6:$RL$1005,378,)=0,"-",VLOOKUP($AA$1,INDUK40015000!$A$6:$RL$1005,378,)) -> B281 | AD7: =IF(VLOOKUP($AA$1,INDUK40015000!$A$6:$RL$1005,451,)=0,"-",VLOOKUP($AA$1,INDUK40015000!$A$6:$RL$1005,451,)) -> B352 | AE7: =IF(VLOOKUP($AA$1,INDUK40015000!$A$6:$RL$1005,452,)=0,"-",VLOOKUP($AA$1,INDUK40015000!$A$6:$RL$1005,452,)) -> B353 | AF7: 1
B8: b. | C8: Aqidah Akhlaq | G8: =IF(VLOOKUP($AA$1,INDUK40015000!$A$6:$RL$1005,94,)=0,"-",VLOOKUP($AA$1,INDUK40015000!$A$6:$RL$1005,94,)) -> B3 | I8: =IF(VLOOKUP($AA$1,INDUK40015000!$A$6:$RL$1005,95,)=0,"-",VLOOKUP($AA$1,INDUK40015000!$A$6:$RL$1005,95,)) -> B4 | K8: =IF(VLOOKUP($AA$1,INDUK40015000!$A$6:$RL$1005,151,)=0,"-",VLOOKUP($AA$1,INDUK40015000!$A$6:$RL$1005,151,)) -> B58 | M8: =IF(VLOOKUP($AA$1,INDUK40015000!$A$6:$RL$1005,152,)=0,"-",VLOOKUP($AA$1,INDUK40015000!$A$6:$RL$1005,152,)) -> B59 | O8: =IF(VLOOKUP($AA$1,INDUK40015000!$A$6:$RL$1005,208,)=0,"-",VLOOKUP($AA$1,INDUK40015000!$A$6:$RL$1005,208,)) -> B114 | Q8: =IF(VLOOKUP($AA$1,INDUK40015000!$A$6:$RL$1005,209,)=0,"-",VLOOKUP($AA$1,INDUK40015000!$A$6:$RL$1005,209,)) -> B115 | S8: =IF(VLOOKUP($AA$1,INDUK40015000!$A$6:$RL$1005,265,)=0,"-",VLOOKUP($AA$1,INDUK40015000!$A$6:$RL$1005,265,)) -> B170 | U8: =IF(VLOOKUP($AA$1,INDUK40015000!$A$6:$RL$1005,266,)=0,"-",VLOOKUP($AA$1,INDUK40015000!$A$6:$RL$1005,266,)) -> B171 | W8: =IF(VLOOKUP($AA$1,INDUK40015000!$A$6:$RL$1005,322,)=0,"-",VLOOKUP($AA$1,INDUK40015000!$A$6:$RL$1005,322,)) -> B226 | Y8: =IF(VLOOKUP($AA$1,INDUK40015000!$A$6:$RL$1005,323,)=0,"-",VLOOKUP($AA$1,INDUK40015000!$A$6:$RL$1005,323,)) -> B227 | AA8: =IF(VLOOKUP($AA$1,INDUK40015000!$A$6:$RL$1005,379,)=0,"-",VLOOKUP($AA$1,INDUK40015000!$A$6:$RL$1005,379,)) -> B282 | AC8: =IF(VLOOKUP($AA$1,INDUK40015000!$A$6:$RL$1005,380,)=0,"-",VLOOKUP($AA$1,INDUK40015000!$A$6:$RL$1005,380,)) -> B283 | AD8: =IF(VLOOKUP($AA$1,INDUK40015000!$A$6:$RL$1005,453,)=0,"-",VLOOKUP($AA$1,INDUK40015000!$A$6:$RL$1005,453,)) -> B354 | AE8: =IF(VLOOKUP($AA$1,INDUK40015000!$A$6:$RL$1005,454,)=0,"-",VLOOKUP($AA$1,INDUK40015000!$A$6:$RL$1005,454,)) -> B355 | AF8: 2
B9: c. | C9: Fiqih | G9: =IF(VLOOKUP($AA$1,INDUK40015000!$A$6:$RL$1005,96,)=0,"-",VLOOKUP($AA$1,INDUK40015000!$A$6:$RL$1005,96,)) -> B5 | I9: =IF(VLOOKUP($AA$1,INDUK40015000!$A$6:$RL$1005,97,)=0,"-",VLOOKUP($AA$1,INDUK40015000!$A$6:$RL$1005,97,)) -> B6 | K9: =IF(VLOOKUP($AA$1,INDUK40015000!$A$6:$RL$1005,153,)=0,"-",VLOOKUP($AA$1,INDUK40015000!$A$6:$RL$1005,153,)) -> B60 | M9: =IF(VLOOKUP($AA$1,INDUK40015000!$A$6:$RL$1005,154,)=0,"-",VLOOKUP($AA$1,INDUK40015000!$A$6:$RL$1005,154,)) -> B61 | O9: =IF(VLOOKUP($AA$1,INDUK40015000!$A$6:$RL$1005,210,)=0,"-",VLOOKUP($AA$1,INDUK40015000!$A$6:$RL$1005,210,)) -> B116 | Q9: =IF(VLOOKUP($AA$1,INDUK40015000!$A$6:$RL$1005,211,)=0,"-",VLOOKUP($AA$1,INDUK40015000!$A$6:$RL$1005,211,)) -> B117 | S9: =IF(VLOOKUP($AA$1,INDUK40015000!$A$6:$RL$1005,267,)=0,"-",VLOOKUP($AA$1,INDUK40015000!$A$6:$RL$1005,267,)) -> B172 | U9: =IF(VLOOKUP($AA$1,INDUK40015000!$A$6:$RL$1005,268,)=0,"-",VLOOKUP($AA$1,INDUK40015000!$A$6:$RL$1005,268,)) -> B173 | W9: =IF(VLOOKUP($AA$1,INDUK40015000!$A$6:$RL$1005,324,)=0,"-",VLOOKUP($AA$1,INDUK40015000!$A$6:$RL$1005,324,)) -> B228 | Y9: =IF(VLOOKUP($AA$1,INDUK40015000!$A$6:$RL$1005,325,)=0,"-",VLOOKUP($AA$1,INDUK40015000!$A$6:$RL$1005,325,)) -> B229 | AA9: =IF(VLOOKUP($AA$1,INDUK40015000!$A$6:$RL$1005,381,)=0,"-",VLOOKUP($AA$1,INDUK40015000!$A$6:$RL$1005,381,)) -> B284 | AC9: =IF(VLOOKUP($AA$1,INDUK40015000!$A$6:$RL$1005,382,)=0,"-",VLOOKUP($AA$1,INDUK40015000!$A$6:$RL$1005,382,)) -> B285 | AD9: =IF(VLOOKUP($AA$1,INDUK40015000!$A$6:$RL$1005,455,)=0,"-",VLOOKUP($AA$1,INDUK40015000!$A$6:$RL$1005,455,)) -> B356 | AE9: =IF(VLOOKUP($AA$1,INDUK40015000!$A$6:$RL$1005,456,)=0,"-",VLOOKUP($AA$1,INDUK40015000!$A$6:$RL$1005,456,)) -> B357 | AF9: 3
B10: d. | C10: Sejarah Kebudayaan Islam | G10: =IF(VLOOKUP($AA$1,INDUK40015000!$A$6:$RL$1005,98,)=0,"-",VLOOKUP($AA$1,INDUK40015000!$A$6:$RL$1005,98,)) -> B7 | I10: =IF(VLOOKUP($AA$1,INDUK40015000!$A$6:$RL$1005,99,)=0,"-",VLOOKUP($AA$1,INDUK40015000!$A$6:$RL$1005,99,)) -> B8 | K10: =IF(VLOOKUP($AA$1,INDUK40015000!$A$6:$RL$1005,155,)=0,"-",VLOOKUP($AA$1,INDUK40015000!$A$6:$RL$1005,155,)) -> B62 | M10: =IF(VLOOKUP($AA$1,INDUK40015000!$A$6:$RL$1005,156,)=0,"-",VLOOKUP($AA$1,INDUK40015000!$A$6:$RL$1005,156,)) -> B63 | O10: =IF(VLOOKUP($AA$1,INDUK40015000!$A$6:$RL$1005,212,)=0,"-",VLOOKUP($AA$1,INDUK40015000!$A$6:$RL$1005,212,)) -> B118 | Q10: =IF(VLOOKUP($AA$1,INDUK40015000!$A$6:$RL$1005,213,)=0,"-",VLOOKUP($AA$1,INDUK40015000!$A$6:$RL$1005,213,)) -> B119 | S10: =IF(VLOOKUP($AA$1,INDUK40015000!$A$6:$RL$1005,269,)=0,"-",VLOOKUP($AA$1,INDUK40015000!$A$6:$RL$1005,269,)) -> B174 | U10: =IF(VLOOKUP($AA$1,INDUK40015000!$A$6:$RL$1005,270,)=0,"-",VLOOKUP($AA$1,INDUK40015000!$A$6:$RL$1005,270,)) -> B175 | W10: =IF(VLOOKUP($AA$1,INDUK40015000!$A$6:$RL$1005,326,)=0,"-",VLOOKUP($AA$1,INDUK40015000!$A$6:$RL$1005,326,)) -> B230 | Y10: =IF(VLOOKUP($AA$1,INDUK40015000!$A$6:$RL$1005,327,)=0,"-",VLOOKUP($AA$1,INDUK40015000!$A$6:$RL$1005,327,)) -> B231 | AA10: =IF(VLOOKUP($AA$1,INDUK40015000!$A$6:$RL$1005,383,)=0,"-",VLOOKUP($AA$1,INDUK40015000!$A$6:$RL$1005,383,)) -> B286 | AC10: =IF(VLOOKUP($AA$1,INDUK40015000!$A$6:$RL$1005,384,)=0,"-",VLOOKUP($AA$1,INDUK40015000!$A$6:$RL$1005,384,)) -> B287 | AD10: =IF(VLOOKUP($AA$1,INDUK40015000!$A$6:$RL$1005,457,)=0,"-",VLOOKUP($AA$1,INDUK40015000!$A$6:$RL$1005,457,)) -> B358 | AE10: =IF(VLOOKUP($AA$1,INDUK40015000!$A$6:$RL$1005,458,)=0,"-",VLOOKUP($AA$1,INDUK40015000!$A$6:$RL$1005,458,)) -> B359 | AF10: 4
A11: 2 | B11: Pendidikan Kewarganegaraan | G11: =IF(VLOOKUP($AA$1,INDUK40015000!$A$6:$RL$1005,104,)=0,"-",VLOOKUP($AA$1,INDUK40015000!$A$6:$RL$1005,104,)) -> B13 | I11: =IF(VLOOKUP($AA$1,INDUK40015000!$A$6:$RL$1005,105,)=0,"-",VLOOKUP($AA$1,INDUK40015000!$A$6:$RL$1005,105,)) -> B14 | K11: =IF(VLOOKUP($AA$1,INDUK40015000!$A$6:$RL$1005,161,)=0,"-",VLOOKUP($AA$1,INDUK40015000!$A$6:$RL$1005,161,)) -> B68 | M11: =IF(VLOOKUP($AA$1,INDUK40015000!$A$6:$RL$1005,162,)=0,"-",VLOOKUP($AA$1,INDUK40015000!$A$6:$RL$1005,162,)) -> B69 | O11: =IF(VLOOKUP($AA$1,INDUK40015000!$A$6:$RL$1005,218,)=0,"-",VLOOKUP($AA$1,INDUK40015000!$A$6:$RL$1005,218,)) -> B124 | Q11: =IF(VLOOKUP($AA$1,INDUK40015000!$A$6:$RL$1005,219,)=0,"-",VLOOKUP($AA$1,INDUK40015000!$A$6:$RL$1005,219,)) -> B125 | S11: =IF(VLOOKUP($AA$1,INDUK40015000!$A$6:$RL$1005,275,)=0,"-",VLOOKUP($AA$1,INDUK40015000!$A$6:$RL$1005,275,)) -> B180 | U11: =IF(VLOOKUP($AA$1,INDUK40015000!$A$6:$RL$1005,276,)=0,"-",VLOOKUP($AA$1,INDUK40015000!$A$6:$RL$1005,276,)) -> B181 | W11: =IF(VLOOKUP($AA$1,INDUK40015000!$A$6:$RL$1005,332,)=0,"-",VLOOKUP($AA$1,INDUK40015000!$A$6:$RL$1005,332,)) -> B236 | Y11: =IF(VLOOKUP($AA$1,INDUK40015000!$A$6:$RL$1005,333,)=0,"-",VLOOKUP($AA$1,INDUK40015000!$A$6:$RL$1005,333,)) -> B237 | AA11: =IF(VLOOKUP($AA$1,INDUK40015000!$A$6:$RL$1005,389,)=0,"-",VLOOKUP($AA$1,INDUK40015000!$A$6:$RL$1005,389,)) -> B292 | AC11: =IF(VLOOKUP($AA$1,INDUK40015000!$A$6:$RL$1005,390,)=0,"-",VLOOKUP($AA$1,INDUK40015000!$A$6:$RL$1005,390,)) -> B293 | AD11: =IF(VLOOKUP($AA$1,INDUK40015000!$A$6:$RL$1005,463,)=0,"-",VLOOKUP($AA$1,INDUK40015000!$A$6:$RL$1005,463,)) -> B364 | AE11: =IF(VLOOKUP($AA$1,INDUK40015000!$A$6:$RL$1005,464,)=0,"-",VLOOKUP($AA$1,INDUK40015000!$A$6:$RL$1005,464,)) -> B365 | AF11: 7
A12: 3 | B12: Bahasa Indonesia | G12: =IF(VLOOKUP($AA$1,INDUK40015000!$A$6:$RL$1005,106,)=0,"-",VLOOKUP($AA$1,INDUK40015000!$A$6:$RL$1005,106,)) -> B15 | I12: =IF(VLOOKUP($AA$1,INDUK40015000!$A$6:$RL$1005,107,)=0,"-",VLOOKUP($AA$1,INDUK40015000!$A$6:$RL$1005,107,)) -> B16 | K12: =IF(VLOOKUP($AA$1,INDUK40015000!$A$6:$RL$1005,163,)=0,"-",VLOOKUP($AA$1,INDUK40015000!$A$6:$RL$1005,163,)) -> B70 | M12: =IF(VLOOKUP($AA$1,INDUK40015000!$A$6:$RL$1005,164,)=0,"-",VLOOKUP($AA$1,INDUK40015000!$A$6:$RL$1005,164,)) -> B71 | O12: =IF(VLOOKUP($AA$1,INDUK40015000!$A$6:$RL$1005,220,)=0,"-",VLOOKUP($AA$1,INDUK40015000!$A$6:$RL$1005,220,)) -> B126 | Q12: =IF(VLOOKUP($AA$1,INDUK40015000!$A$6:$RL$1005,221,)=0,"-",VLOOKUP($AA$1,INDUK40015000!$A$6:$RL$1005,221,)) -> B127 | S12: =IF(VLOOKUP($AA$1,INDUK40015000!$A$6:$RL$1005,277,)=0,"-",VLOOKUP($AA$1,INDUK40015000!$A$6:$RL$1005,277,)) -> B182 | U12: =IF(VLOOKUP($AA$1,INDUK40015000!$A$6:$RL$1005,278,)=0,"-",VLOOKUP($AA$1,INDUK40015000!$A$6:$RL$1005,278,)) -> B183 | W12: =IF(VLOOKUP($AA$1,INDUK40015000!$A$6:$RL$1005,334,)=0,"-",VLOOKUP($AA$1,INDUK40015000!$A$6:$RL$1005,334,)) -> B238 | Y12: =IF(VLOOKUP($AA$1,INDUK40015000!$A$6:$RL$1005,335,)=0,"-",VLOOKUP($AA$1,INDUK40015000!$A$6:$RL$1005,335,)) -> B239 | AA12: =IF(VLOOKUP($AA$1,INDUK40015000!$A$6:$RL$1005,391,)=0,"-",VLOOKUP($AA$1,INDUK40015000!$A$6:$RL$1005,391,)) -> B294 | AC12: =IF(VLOOKUP($AA$1,INDUK40015000!$A$6:$RL$1005,392,)=0,"-",VLOOKUP($AA$1,INDUK40015000!$A$6:$RL$1005,392,)) -> B295 | AD12: =IF(VLOOKUP($AA$1,INDUK40015000!$A$6:$RL$1005,465,)=0,"-",VLOOKUP($AA$1,INDUK40015000!$A$6:$RL$1005,465,)) -> B366 | AE12: =IF(VLOOKUP($AA$1,INDUK40015000!$A$6:$RL$1005,466,)=0,"-",VLOOKUP($AA$1,INDUK40015000!$A$6:$RL$1005,466,)) -> B367 | AF12: 8
A13: 4 | B13: Bahasa Arab | G13: =IF(VLOOKUP($AA$1,INDUK40015000!$A$6:$RL$1005,102,)=0,"-",VLOOKUP($AA$1,INDUK40015000!$A$6:$RL$1005,102,)) -> B11 | I13: =IF(VLOOKUP($AA$1,INDUK40015000!$A$6:$RL$1005,103,)=0,"-",VLOOKUP($AA$1,INDUK40015000!$A$6:$RL$1005,103,)) -> B12 | K13: =IF(VLOOKUP($AA$1,INDUK40015000!$A$6:$RL$1005,159,)=0,"-",VLOOKUP($AA$1,INDUK40015000!$A$6:$RL$1005,159,)) -> B66 | M13: =IF(VLOOKUP($AA$1,INDUK40015000!$A$6:$RL$1005,160,)=0,"-",VLOOKUP($AA$1,INDUK40015000!$A$6:$RL$1005,160,)) -> B67 | O13: =IF(VLOOKUP($AA$1,INDUK40015000!$A$6:$RL$1005,216,)=0,"-",VLOOKUP($AA$1,INDUK40015000!$A$6:$RL$1005,216,)) -> B122 | Q13: =IF(VLOOKUP($AA$1,INDUK40015000!$A$6:$RL$1005,217,)=0,"-",VLOOKUP($AA$1,INDUK40015000!$A$6:$RL$1005,217,)) -> B123 | S13: =IF(VLOOKUP($AA$1,INDUK40015000!$A$6:$RL$1005,273,)=0,"-",VLOOKUP($AA$1,INDUK40015000!$A$6:$RL$1005,273,)) -> B178 | U13: =IF(VLOOKUP($AA$1,INDUK40015000!$A$6:$RL$1005,274,)=0,"-",VLOOKUP($AA$1,INDUK40015000!$A$6:$RL$1005,274,)) -> B179 | W13: =IF(VLOOKUP($AA$1,INDUK40015000!$A$6:$RL$1005,330,)=0,"-",VLOOKUP($AA$1,INDUK40015000!$A$6:$RL$1005,330,)) -> B234 | Y13: =IF(VLOOKUP($AA$1,INDUK40015000!$A$6:$RL$1005,331,)=0,"-",VLOOKUP($AA$1,INDUK40015000!$A$6:$RL$1005,331,)) -> B235 | AA13: =IF(VLOOKUP($AA$1,INDUK40015000!$A$6:$RL$1005,387,)=0,"-",VLOOKUP($AA$1,INDUK40015000!$A$6:$RL$1005,387,)) -> B290 | AC13: =IF(VLOOKUP($AA$1,INDUK40015000!$A$6:$RL$1005,388,)=0,"-",VLOOKUP($AA$1,INDUK40015000!$A$6:$RL$1005,388,)) -> B291 | AD13: =IF(VLOOKUP($AA$1,INDUK40015000!$A$6:$RL$1005,461,)=0,"-",VLOOKUP($AA$1,INDUK40015000!$A$6:$RL$1005,461,)) -> B362 | AE13: =IF(VLOOKUP($AA$1,INDUK40015000!$A$6:$RL$1005,462,)=0,"-",VLOOKUP($AA$1,INDUK40015000!$A$6:$RL$1005,462,)) -> B363 | AF13: 6
A14: 5 | B14: Matematika | G14: =IF(VLOOKUP($AA$1,INDUK40015000!$A$6:$RL$1005,108,)=0,"-",VLOOKUP($AA$1,INDUK40015000!$A$6:$RL$1005,108,)) -> B17 | I14: =IF(VLOOKUP($AA$1,INDUK40015000!$A$6:$RL$1005,109,)=0,"-",VLOOKUP($AA$1,INDUK40015000!$A$6:$RL$1005,109,)) -> B18 | K14: =IF(VLOOKUP($AA$1,INDUK40015000!$A$6:$RL$1005,165,)=0,"-",VLOOKUP($AA$1,INDUK40015000!$A$6:$RL$1005,165,)) -> B72 | M14: =IF(VLOOKUP($AA$1,INDUK40015000!$A$6:$RL$1005,166,)=0,"-",VLOOKUP($AA$1,INDUK40015000!$A$6:$RL$1005,166,)) -> B73 | O14: =IF(VLOOKUP($AA$1,INDUK40015000!$A$6:$RL$1005,222,)=0,"-",VLOOKUP($AA$1,INDUK40015000!$A$6:$RL$1005,222,)) -> B128 | Q14: =IF(VLOOKUP($AA$1,INDUK40015000!$A$6:$RL$1005,223,)=0,"-",VLOOKUP($AA$1,INDUK40015000!$A$6:$RL$1005,223,)) -> B129 | S14: =IF(VLOOKUP($AA$1,INDUK40015000!$A$6:$RL$1005,279,)=0,"-",VLOOKUP($AA$1,INDUK40015000!$A$6:$RL$1005,279,)) -> B184 | U14: =IF(VLOOKUP($AA$1,INDUK40015000!$A$6:$RL$1005,280,)=0,"-",VLOOKUP($AA$1,INDUK40015000!$A$6:$RL$1005,280,)) -> B185 | W14: =IF(VLOOKUP($AA$1,INDUK40015000!$A$6:$RL$1005,336,)=0,"-",VLOOKUP($AA$1,INDUK40015000!$A$6:$RL$1005,336,)) -> B240 | Y14: =IF(VLOOKUP($AA$1,INDUK40015000!$A$6:$RL$1005,337,)=0,"-",VLOOKUP($AA$1,INDUK40015000!$A$6:$RL$1005,337,)) -> B241 | AA14: =IF(VLOOKUP($AA$1,INDUK40015000!$A$6:$RL$1005,393,)=0,"-",VLOOKUP($AA$1,INDUK40015000!$A$6:$RL$1005,393,)) -> B296 | AC14: =IF(VLOOKUP($AA$1,INDUK40015000!$A$6:$RL$1005,394,)=0,"-",VLOOKUP($AA$1,INDUK40015000!$A$6:$RL$1005,394,)) -> B297 | AD14: =IF(VLOOKUP($AA$1,INDUK40015000!$A$6:$RL$1005,467,)=0,"-",VLOOKUP($AA$1,INDUK40015000!$A$6:$RL$1005,467,)) -> B368 | AE14: =IF(VLOOKUP($AA$1,INDUK40015000!$A$6:$RL$1005,468,)=0,"-",VLOOKUP($AA$1,INDUK40015000!$A$6:$RL$1005,468,)) -> B369 | AF14: 9
A15: 6 | B15: Ilmu Pengetahuan Alam | G15: =IF(VLOOKUP($AA$1,INDUK40015000!$A$6:$RL$1005,110,)=0,"-",VLOOKUP($AA$1,INDUK40015000!$A$6:$RL$1005,110,)) -> B19 | I15: =IF(VLOOKUP($AA$1,INDUK40015000!$A$6:$RL$1005,111,)=0,"-",VLOOKUP($AA$1,INDUK40015000!$A$6:$RL$1005,111,)) -> B20 | K15: =IF(VLOOKUP($AA$1,INDUK40015000!$A$6:$RL$1005,167,)=0,"-",VLOOKUP($AA$1,INDUK40015000!$A$6:$RL$1005,167,)) -> B74 | M15: =IF(VLOOKUP($AA$1,INDUK40015000!$A$6:$RL$1005,168,)=0,"-",VLOOKUP($AA$1,INDUK40015000!$A$6:$RL$1005,168,)) -> B75 | O15: =IF(VLOOKUP($AA$1,INDUK40015000!$A$6:$RL$1005,224,)=0,"-",VLOOKUP($AA$1,INDUK40015000!$A$6:$RL$1005,224,)) -> B130 | Q15: =IF(VLOOKUP($AA$1,INDUK40015000!$A$6:$RL$1005,225,)=0,"-",VLOOKUP($AA$1,INDUK40015000!$A$6:$RL$1005,225,)) -> B131 | S15: =IF(VLOOKUP($AA$1,INDUK40015000!$A$6:$RL$1005,281,)=0,"-",VLOOKUP($AA$1,INDUK40015000!$A$6:$RL$1005,281,)) -> B186 | U15: =IF(VLOOKUP($AA$1,INDUK40015000!$A$6:$RL$1005,282,)=0,"-",VLOOKUP($AA$1,INDUK40015000!$A$6:$RL$1005,282,)) -> B187 | W15: =IF(VLOOKUP($AA$1,INDUK40015000!$A$6:$RL$1005,338,)=0,"-",VLOOKUP($AA$1,INDUK40015000!$A$6:$RL$1005,338,)) -> B242 | Y15: =IF(VLOOKUP($AA$1,INDUK40015000!$A$6:$RL$1005,339,)=0,"-",VLOOKUP($AA$1,INDUK40015000!$A$6:$RL$1005,339,)) -> B243 | AA15: =IF(VLOOKUP($AA$1,INDUK40015000!$A$6:$RL$1005,395,)=0,"-",VLOOKUP($AA$1,INDUK40015000!$A$6:$RL$1005,395,)) -> B298 | AC15: =IF(VLOOKUP($AA$1,INDUK40015000!$A$6:$RL$1005,396,)=0,"-",VLOOKUP($AA$1,INDUK40015000!$A$6:$RL$1005,396,)) -> B299 | AD15: =IF(VLOOKUP($AA$1,INDUK40015000!$A$6:$RL$1005,469,)=0,"-",VLOOKUP($AA$1,INDUK40015000!$A$6:$RL$1005,469,)) -> B370 | AE15: =IF(VLOOKUP($AA$1,INDUK40015000!$A$6:$RL$1005,470,)=0,"-",VLOOKUP($AA$1,INDUK40015000!$A$6:$RL$1005,470,)) -> B371 | AF15: 10
A16: 7 | B16: Ilmu Pengetahuan Sosial | G16: =IF(VLOOKUP($AA$1,INDUK40015000!$A$6:$RL$1005,112,)=0,"-",VLOOKUP($AA$1,INDUK40015000!$A$6:$RL$1005,112,)) -> B21 | I16: =IF(VLOOKUP($AA$1,INDUK40015000!$A$6:$RL$1005,113,)=0,"-",VLOOKUP($AA$1,INDUK40015000!$A$6:$RL$1005,113,)) -> B22 | K16: =IF(VLOOKUP($AA$1,INDUK40015000!$A$6:$RL$1005,169,)=0,"-",VLOOKUP($AA$1,INDUK40015000!$A$6:$RL$1005,169,)) -> B76 | M16: =IF(VLOOKUP($AA$1,INDUK40015000!$A$6:$RL$1005,170,)=0,"-",VLOOKUP($AA$1,INDUK40015000!$A$6:$RL$1005,170,)) -> B77 | O16: =IF(VLOOKUP($AA$1,INDUK40015000!$A$6:$RL$1005,226,)=0,"-",VLOOKUP($AA$1,INDUK40015000!$A$6:$RL$1005,226,)) -> B132 | Q16: =IF(VLOOKUP($AA$1,INDUK40015000!$A$6:$RL$1005,227,)=0,"-",VLOOKUP($AA$1,INDUK40015000!$A$6:$RL$1005,227,)) -> B133 | S16: =IF(VLOOKUP($AA$1,INDUK40015000!$A$6:$RL$1005,283,)=0,"-",VLOOKUP($AA$1,INDUK40015000!$A$6:$RL$1005,283,)) -> B188 | U16: =IF(VLOOKUP($AA$1,INDUK40015000!$A$6:$RL$1005,284,)=0,"-",VLOOKUP($AA$1,INDUK40015000!$A$6:$RL$1005,284,)) -> B189 | W16: =IF(VLOOKUP($AA$1,INDUK40015000!$A$6:$RL$1005,340,)=0,"-",VLOOKUP($AA$1,INDUK40015000!$A$6:$RL$1005,340,)) -> B244 | Y16: =IF(VLOOKUP($AA$1,INDUK40015000!$A$6:$RL$1005,341,)=0,"-",VLOOKUP($AA$1,INDUK40015000!$A$6:$RL$1005,341,)) -> B245 | AA16: =IF(VLOOKUP($AA$1,INDUK40015000!$A$6:$RL$1005,397,)=0,"-",VLOOKUP($AA$1,INDUK40015000!$A$6:$RL$1005,397,)) -> B300 | AC16: =IF(VLOOKUP($AA$1,INDUK40015000!$A$6:$RL$1005,398,)=0,"-",VLOOKUP($AA$1,INDUK40015000!$A$6:$RL$1005,398,)) -> B301 | AD16: =IF(VLOOKUP($AA$1,INDUK40015000!$A$6:$RL$1005,471,)=0,"-",VLOOKUP($AA$1,INDUK40015000!$A$6:$RL$1005,471,)) -> B372 | AE16: =IF(VLOOKUP($AA$1,INDUK40015000!$A$6:$RL$1005,472,)=0,"-",VLOOKUP($AA$1,INDUK40015000!$A$6:$RL$1005,472,)) -> B373 | AF16: 11
A17: 8 | B17: Seni Budaya dan Keterampilan | G17: =IF(VLOOKUP($AA$1,INDUK40015000!$A$6:$RL$1005,114,)=0,"-",VLOOKUP($AA$1,INDUK40015000!$A$6:$RL$1005,114,)) -> B23 | I17: =IF(VLOOKUP($AA$1,INDUK40015000!$A$6:$RL$1005,115,)=0,"-",VLOOKUP($AA$1,INDUK40015000!$A$6:$RL$1005,115,)) -> B24 | K17: =IF(VLOOKUP($AA$1,INDUK40015000!$A$6:$RL$1005,171,)=0,"-",VLOOKUP($AA$1,INDUK40015000!$A$6:$RL$1005,171,)) -> B78 | M17: =IF(VLOOKUP($AA$1,INDUK40015000!$A$6:$RL$1005,172,)=0,"-",VLOOKUP($AA$1,INDUK40015000!$A$6:$RL$1005,172,)) -> B79 | O17: =IF(VLOOKUP($AA$1,INDUK40015000!$A$6:$RL$1005,228,)=0,"-",VLOOKUP($AA$1,INDUK40015000!$A$6:$RL$1005,228,)) -> B134 | Q17: =IF(VLOOKUP($AA$1,INDUK40015000!$A$6:$RL$1005,229,)=0,"-",VLOOKUP($AA$1,INDUK40015000!$A$6:$RL$1005,229,)) -> B135 | S17: =IF(VLOOKUP($AA$1,INDUK40015000!$A$6:$RL$1005,285,)=0,"-",VLOOKUP($AA$1,INDUK40015000!$A$6:$RL$1005,285,)) -> B190 | U17: =IF(VLOOKUP($AA$1,INDUK40015000!$A$6:$RL$1005,286,)=0,"-",VLOOKUP($AA$1,INDUK40015000!$A$6:$RL$1005,286,)) -> B191 | W17: =IF(VLOOKUP($AA$1,INDUK40015000!$A$6:$RL$1005,342,)=0,"-",VLOOKUP($AA$1,INDUK40015000!$A$6:$RL$1005,342,)) -> B246 | Y17: =IF(VLOOKUP($AA$1,INDUK40015000!$A$6:$RL$1005,343,)=0,"-",VLOOKUP($AA$1,INDUK40015000!$A$6:$RL$1005,343,)) -> B247 | AA17: =IF(VLOOKUP($AA$1,INDUK40015000!$A$6:$RL$1005,399,)=0,"-",VLOOKUP($AA$1,INDUK40015000!$A$6:$RL$1005,399,)) -> B302 | AC17: =IF(VLOOKUP($AA$1,INDUK40015000!$A$6:$RL$1005,400,)=0,"-",VLOOKUP($AA$1,INDUK40015000!$A$6:$RL$1005,400,)) -> B303 | AD17: =IF(VLOOKUP($AA$1,INDUK40015000!$A$6:$RL$1005,473,)=0,"-",VLOOKUP($AA$1,INDUK40015000!$A$6:$RL$1005,473,)) -> B374 | AE17: =IF(VLOOKUP($AA$1,INDUK40015000!$A$6:$RL$1005,474,)=0,"-",VLOOKUP($AA$1,INDUK40015000!$A$6:$RL$1005,474,)) -> B375 | AF17: 12
A18: 9 | B18: Pend. Jasmani, Olah Raga dan Kesehatan | G18: =IF(VLOOKUP($AA$1,INDUK40015000!$A$6:$RL$1005,116,)=0,"-",VLOOKUP($AA$1,INDUK40015000!$A$6:$RL$1005,116,)) -> B25 | I18: =IF(VLOOKUP($AA$1,INDUK40015000!$A$6:$RL$1005,117,)=0,"-",VLOOKUP($AA$1,INDUK40015000!$A$6:$RL$1005,117,)) -> B26 | K18: =IF(VLOOKUP($AA$1,INDUK40015000!$A$6:$RL$1005,173,)=0,"-",VLOOKUP($AA$1,INDUK40015000!$A$6:$RL$1005,173,)) -> B80 | M18: =IF(VLOOKUP($AA$1,INDUK40015000!$A$6:$RL$1005,174,)=0,"-",VLOOKUP($AA$1,INDUK40015000!$A$6:$RL$1005,174,)) -> B81 | O18: =IF(VLOOKUP($AA$1,INDUK40015000!$A$6:$RL$1005,230,)=0,"-",VLOOKUP($AA$1,INDUK40015000!$A$6:$RL$1005,230,)) -> B136 | Q18: =IF(VLOOKUP($AA$1,INDUK40015000!$A$6:$RL$1005,231,)=0,"-",VLOOKUP($AA$1,INDUK40015000!$A$6:$RL$1005,231,)) -> B137 | S18: =IF(VLOOKUP($AA$1,INDUK40015000!$A$6:$RL$1005,287,)=0,"-",VLOOKUP($AA$1,INDUK40015000!$A$6:$RL$1005,287,)) -> B192 | U18: =IF(VLOOKUP($AA$1,INDUK40015000!$A$6:$RL$1005,288,)=0,"-",VLOOKUP($AA$1,INDUK40015000!$A$6:$RL$1005,288,)) -> B193 | W18: =IF(VLOOKUP($AA$1,INDUK40015000!$A$6:$RL$1005,344,)=0,"-",VLOOKUP($AA$1,INDUK40015000!$A$6:$RL$1005,344,)) -> B248 | Y18: =IF(VLOOKUP($AA$1,INDUK40015000!$A$6:$RL$1005,345,)=0,"-",VLOOKUP($AA$1,INDUK40015000!$A$6:$RL$1005,345,)) -> B249 | AA18: =IF(VLOOKUP($AA$1,INDUK40015000!$A$6:$RL$1005,401,)=0,"-",VLOOKUP($AA$1,INDUK40015000!$A$6:$RL$1005,401,)) -> B304 | AC18: =IF(VLOOKUP($AA$1,INDUK40015000!$A$6:$RL$1005,402,)=0,"-",VLOOKUP($AA$1,INDUK40015000!$A$6:$RL$1005,402,)) -> B305 | AD18: =IF(VLOOKUP($AA$1,INDUK40015000!$A$6:$RL$1005,475,)=0,"-",VLOOKUP($AA$1,INDUK40015000!$A$6:$RL$1005,475,)) -> B376 | AE18: =IF(VLOOKUP($AA$1,INDUK40015000!$A$6:$RL$1005,476,)=0,"-",VLOOKUP($AA$1,INDUK40015000!$A$6:$RL$1005,476,)) -> B377 | AF18: 13
A19: 10 | B19: Muatan Lokal
B20: a. | C20: Bahasa Jawa | G20: =IF(VLOOKUP($AA$1,INDUK40015000!$A$6:$RL$1005,118,)=0,"-",VLOOKUP($AA$1,INDUK40015000!$A$6:$RL$1005,118,)) -> B27 | I20: =IF(VLOOKUP($AA$1,INDUK40015000!$A$6:$RL$1005,119,)=0,"-",VLOOKUP($AA$1,INDUK40015000!$A$6:$RL$1005,119,)) -> B28 | K20: =IF(VLOOKUP($AA$1,INDUK40015000!$A$6:$RL$1005,175,)=0,"-",VLOOKUP($AA$1,INDUK40015000!$A$6:$RL$1005,175,)) -> B82 | M20: =IF(VLOOKUP($AA$1,INDUK40015000!$A$6:$RL$1005,176,)=0,"-",VLOOKUP($AA$1,INDUK40015000!$A$6:$RL$1005,176,)) -> B83 | O20: =IF(VLOOKUP($AA$1,INDUK40015000!$A$6:$RL$1005,232,)=0,"-",VLOOKUP($AA$1,INDUK40015000!$A$6:$RL$1005,232,)) -> B138 | Q20: =IF(VLOOKUP($AA$1,INDUK40015000!$A$6:$RL$1005,233,)=0,"-",VLOOKUP($AA$1,INDUK40015000!$A$6:$RL$1005,233,)) -> B139 | S20: =IF(VLOOKUP($AA$1,INDUK40015000!$A$6:$RL$1005,289,)=0,"-",VLOOKUP($AA$1,INDUK40015000!$A$6:$RL$1005,289,)) -> B194 | U20: =IF(VLOOKUP($AA$1,INDUK40015000!$A$6:$RL$1005,290,)=0,"-",VLOOKUP($AA$1,INDUK40015000!$A$6:$RL$1005,290,)) -> B195 | W20: =IF(VLOOKUP($AA$1,INDUK40015000!$A$6:$RL$1005,346,)=0,"-",VLOOKUP($AA$1,INDUK40015000!$A$6:$RL$1005,346,)) -> B250 | Y20: =IF(VLOOKUP($AA$1,INDUK40015000!$A$6:$RL$1005,347,)=0,"-",VLOOKUP($AA$1,INDUK40015000!$A$6:$RL$1005,347,)) -> B251 | AA20: =IF(VLOOKUP($AA$1,INDUK40015000!$A$6:$RL$1005,403,)=0,"-",VLOOKUP($AA$1,INDUK40015000!$A$6:$RL$1005,403,)) -> B306 | AC20: =IF(VLOOKUP($AA$1,INDUK40015000!$A$6:$RL$1005,404,)=0,"-",VLOOKUP($AA$1,INDUK40015000!$A$6:$RL$1005,404,)) -> B307 | AD20: =IF(VLOOKUP($AA$1,INDUK40015000!$A$6:$RL$1005,477,)=0,"-",VLOOKUP($AA$1,INDUK40015000!$A$6:$RL$1005,477,)) -> B378 | AE20: =IF(VLOOKUP($AA$1,INDUK40015000!$A$6:$RL$1005,478,)=0,"-",VLOOKUP($AA$1,INDUK40015000!$A$6:$RL$1005,478,)) -> B379 | AF20: 14
B21: b. | C21: Bahasa Inggris | G21: =IF(VLOOKUP($AA$1,INDUK40015000!$A$6:$RL$1005,120,)=0,"-",VLOOKUP($AA$1,INDUK40015000!$A$6:$RL$1005,120,)) -> B29 | I21: =IF(VLOOKUP($AA$1,INDUK40015000!$A$6:$RL$1005,121,)=0,"-",VLOOKUP($AA$1,INDUK40015000!$A$6:$RL$1005,121,)) -> B30 | K21: =IF(VLOOKUP($AA$1,INDUK40015000!$A$6:$RL$1005,177,)=0,"-",VLOOKUP($AA$1,INDUK40015000!$A$6:$RL$1005,177,)) -> B84 | M21: =IF(VLOOKUP($AA$1,INDUK40015000!$A$6:$RL$1005,178,)=0,"-",VLOOKUP($AA$1,INDUK40015000!$A$6:$RL$1005,178,)) -> B85 | O21: =IF(VLOOKUP($AA$1,INDUK40015000!$A$6:$RL$1005,234,)=0,"-",VLOOKUP($AA$1,INDUK40015000!$A$6:$RL$1005,234,)) -> B140 | Q21: =IF(VLOOKUP($AA$1,INDUK40015000!$A$6:$RL$1005,235,)=0,"-",VLOOKUP($AA$1,INDUK40015000!$A$6:$RL$1005,235,)) -> B141 | S21: =IF(VLOOKUP($AA$1,INDUK40015000!$A$6:$RL$1005,291,)=0,"-",VLOOKUP($AA$1,INDUK40015000!$A$6:$RL$1005,291,)) -> B196 | U21: =IF(VLOOKUP($AA$1,INDUK40015000!$A$6:$RL$1005,292,)=0,"-",VLOOKUP($AA$1,INDUK40015000!$A$6:$RL$1005,292,)) -> B197 | W21: =IF(VLOOKUP($AA$1,INDUK40015000!$A$6:$RL$1005,348,)=0,"-",VLOOKUP($AA$1,INDUK40015000!$A$6:$RL$1005,348,)) -> B252 | Y21: =IF(VLOOKUP($AA$1,INDUK40015000!$A$6:$RL$1005,349,)=0,"-",VLOOKUP($AA$1,INDUK40015000!$A$6:$RL$1005,349,)) -> B253 | AA21: =IF(VLOOKUP($AA$1,INDUK40015000!$A$6:$RL$1005,405,)=0,"-",VLOOKUP($AA$1,INDUK40015000!$A$6:$RL$1005,405,)) -> B308 | AC21: =IF(VLOOKUP($AA$1,INDUK40015000!$A$6:$RL$1005,406,)=0,"-",VLOOKUP($AA$1,INDUK40015000!$A$6:$RL$1005,406,)) -> B309 | AD21: =IF(VLOOKUP($AA$1,INDUK40015000!$A$6:$RL$1005,451,)=0,"-",VLOOKUP($AA$1,INDUK40015000!$A$6:$RL$1005,451,)) -> B352 | AE21: =IF(VLOOKUP($AA$1,INDUK40015000!$A$6:$RL$1005,451,)=0,"-",VLOOKUP($AA$1,INDUK40015000!$A$6:$RL$1005,451,)) -> B352 | AF21: 1
B22: c. | C22: Ke-NU-an / Aswaja | G22: =IF(VLOOKUP($AA$1,INDUK40015000!$A$6:$RL$1005,100,)=0,"-",VLOOKUP($AA$1,INDUK40015000!$A$6:$RL$1005,100,)) -> B9 | I22: =IF(VLOOKUP($AA$1,INDUK40015000!$A$6:$RL$1005,101,)=0,"-",VLOOKUP($AA$1,INDUK40015000!$A$6:$RL$1005,101,)) -> B10 | K22: =IF(VLOOKUP($AA$1,INDUK40015000!$A$6:$RL$1005,157,)=0,"-",VLOOKUP($AA$1,INDUK40015000!$A$6:$RL$1005,157,)) -> B64 | M22: =IF(VLOOKUP($AA$1,INDUK40015000!$A$6:$RL$1005,158,)=0,"-",VLOOKUP($AA$1,INDUK40015000!$A$6:$RL$1005,158,)) -> B65 | O22: =IF(VLOOKUP($AA$1,INDUK40015000!$A$6:$RL$1005,214,)=0,"-",VLOOKUP($AA$1,INDUK40015000!$A$6:$RL$1005,214,)) -> B120 | Q22: =IF(VLOOKUP($AA$1,INDUK40015000!$A$6:$RL$1005,215,)=0,"-",VLOOKUP($AA$1,INDUK40015000!$A$6:$RL$1005,215,)) -> B121 | S22: =IF(VLOOKUP($AA$1,INDUK40015000!$A$6:$RL$1005,271,)=0,"-",VLOOKUP($AA$1,INDUK40015000!$A$6:$RL$1005,271,)) -> B176 | U22: =IF(VLOOKUP($AA$1,INDUK40015000!$A$6:$RL$1005,272,)=0,"-",VLOOKUP($AA$1,INDUK40015000!$A$6:$RL$1005,272,)) -> B177 | W22: =IF(VLOOKUP($AA$1,INDUK40015000!$A$6:$RL$1005,328,)=0,"-",VLOOKUP($AA$1,INDUK40015000!$A$6:$RL$1005,328,)) -> B232 | Y22: =IF(VLOOKUP($AA$1,INDUK40015000!$A$6:$RL$1005,329,)=0,"-",VLOOKUP($AA$1,INDUK40015000!$A$6:$RL$1005,329,)) -> B233 | AA22: =IF(VLOOKUP($AA$1,INDUK40015000!$A$6:$RL$1005,385,)=0,"-",VLOOKUP($AA$1,INDUK40015000!$A$6:$RL$1005,385,)) -> B288 | AC22: =IF(VLOOKUP($AA$1,INDUK40015000!$A$6:$RL$1005,386,)=0,"-",VLOOKUP($AA$1,INDUK40015000!$A$6:$RL$1005,386,)) -> B289 | AD22: =IF(VLOOKUP($AA$1,INDUK40015000!$A$6:$RL$1005,459,)=0,"-",VLOOKUP($AA$1,INDUK40015000!$A$6:$RL$1005,459,)) -> B360 | AE22: =IF(VLOOKUP($AA$1,INDUK40015000!$A$6:$RL$1005,460,)=0,"-",VLOOKUP($AA$1,INDUK40015000!$A$6:$RL$1005,460,)) -> B361 | AF22: 5
A23: Pengembangan diri :
A24: 1. | B24: PRAMUKA | F24: =IF(VLOOKUP($AA$1,INDUK40015000!$A$6:$RL$1005,134,)=0,"-",VLOOKUP($AA$1,INDUK40015000!$A$6:$RL$1005,134,)) -> B43 | H24: =IF(VLOOKUP($AA$1,INDUK40015000!$A$6:$RL$1005,135,)=0,"-",VLOOKUP($AA$1,INDUK40015000!$A$6:$RL$1005,135,)) -> B44 | J24: =IF(VLOOKUP($AA$1,INDUK40015000!$A$6:$RL$1005,191,)=0,"-",VLOOKUP($AA$1,INDUK40015000!$A$6:$RL$1005,191,)) -> B98 | L24: =IF(VLOOKUP($AA$1,INDUK40015000!$A$6:$RL$1005,192,)=0,"-",VLOOKUP($AA$1,INDUK40015000!$A$6:$RL$1005,192,)) -> B99 | N24: =IF(VLOOKUP($AA$1,INDUK40015000!$A$6:$RL$1005,248,)=0,"-",VLOOKUP($AA$1,INDUK40015000!$A$6:$RL$1005,248,)) -> B154 | P24: =IF(VLOOKUP($AA$1,INDUK40015000!$A$6:$RL$1005,249,)=0,"-",VLOOKUP($AA$1,INDUK40015000!$A$6:$RL$1005,249,)) -> B155 | R24: =IF(VLOOKUP($AA$1,INDUK40015000!$A$6:$RL$1005,305,)=0,"-",VLOOKUP($AA$1,INDUK40015000!$A$6:$RL$1005,305,)) -> B210 | T24: =IF(VLOOKUP($AA$1,INDUK40015000!$A$6:$RL$1005,306,)=0,"-",VLOOKUP($AA$1,INDUK40015000!$A$6:$RL$1005,306,)) -> B211 | V24: =IF(VLOOKUP($AA$1,INDUK40015000!$A$6:$RL$1005,362,)=0,"-",VLOOKUP($AA$1,INDUK40015000!$A$6:$RL$1005,362,)) -> B266 | X24: =IF(VLOOKUP($AA$1,INDUK40015000!$A$6:$RL$1005,363,)=0,"-",VLOOKUP($AA$1,INDUK40015000!$A$6:$RL$1005,363,)) -> B267 | Z24: =IF(VLOOKUP($AA$1,INDUK40015000!$A$6:$RL$1005,419,)=0,"-",VLOOKUP($AA$1,INDUK40015000!$A$6:$RL$1005,419,)) -> B322 | AB24: =IF(VLOOKUP($AA$1,INDUK40015000!$A$6:$RL$1005,420,)=0,"-",VLOOKUP($AA$1,INDUK40015000!$A$6:$RL$1005,420,)) -> B323 | AF24: 8
A25: 2. | B25: EKSTRA 1 | F25: =IF(VLOOKUP($AA$1,INDUK40015000!$A$6:$RL$1005,136,)=0,"-",VLOOKUP($AA$1,INDUK40015000!$A$6:$RL$1005,136,)) -> B45 | H25: =IF(VLOOKUP($AA$1,INDUK40015000!$A$6:$RL$1005,137,)=0,"-",VLOOKUP($AA$1,INDUK40015000!$A$6:$RL$1005,137,)) -> B46 | J25: =IF(VLOOKUP($AA$1,INDUK40015000!$A$6:$RL$1005,193,)=0,"-",VLOOKUP($AA$1,INDUK40015000!$A$6:$RL$1005,193,)) -> B100 | L25: =IF(VLOOKUP($AA$1,INDUK40015000!$A$6:$RL$1005,194,)=0,"-",VLOOKUP($AA$1,INDUK40015000!$A$6:$RL$1005,194,)) -> B101 | N25: =IF(VLOOKUP($AA$1,INDUK40015000!$A$6:$RL$1005,250,)=0,"-",VLOOKUP($AA$1,INDUK40015000!$A$6:$RL$1005,250,)) -> B156 | P25: =IF(VLOOKUP($AA$1,INDUK40015000!$A$6:$RL$1005,251,)=0,"-",VLOOKUP($AA$1,INDUK40015000!$A$6:$RL$1005,251,)) -> B157 | R25: =IF(VLOOKUP($AA$1,INDUK40015000!$A$6:$RL$1005,307,)=0,"-",VLOOKUP($AA$1,INDUK40015000!$A$6:$RL$1005,307,)) -> B212 | T25: =IF(VLOOKUP($AA$1,INDUK40015000!$A$6:$RL$1005,308,)=0,"-",VLOOKUP($AA$1,INDUK40015000!$A$6:$RL$1005,308,)) -> B213 | V25: =IF(VLOOKUP($AA$1,INDUK40015000!$A$6:$RL$1005,364,)=0,"-",VLOOKUP($AA$1,INDUK40015000!$A$6:$RL$1005,364,)) -> B268 | X25: =IF(VLOOKUP($AA$1,INDUK40015000!$A$6:$RL$1005,365,)=0,"-",VLOOKUP($AA$1,INDUK40015000!$A$6:$RL$1005,365,)) -> B269 | Z25: =IF(VLOOKUP($AA$1,INDUK40015000!$A$6:$RL$1005,421,)=0,"-",VLOOKUP($AA$1,INDUK40015000!$A$6:$RL$1005,421,)) -> B324 | AB25: =IF(VLOOKUP($AA$1,INDUK40015000!$A$6:$RL$1005,422,)=0,"-",VLOOKUP($AA$1,INDUK40015000!$A$6:$RL$1005,422,)) -> B325 | AF25: 9
A26: 3. | B26: EKSTRA 2 | F26: =IF(VLOOKUP($AA$1,INDUK40015000!$A$6:$RL$1005,138,)=0,"-",VLOOKUP($AA$1,INDUK40015000!$A$6:$RL$1005,138,)) -> B47 | H26: =IF(VLOOKUP($AA$1,INDUK40015000!$A$6:$RL$1005,139,)=0,"-",VLOOKUP($AA$1,INDUK40015000!$A$6:$RL$1005,139,)) -> B48 | J26: =IF(VLOOKUP($AA$1,INDUK40015000!$A$6:$RL$1005,195,)=0,"-",VLOOKUP($AA$1,INDUK40015000!$A$6:$RL$1005,195,)) -> B102 | L26: =IF(VLOOKUP($AA$1,INDUK40015000!$A$6:$RL$1005,196,)=0,"-",VLOOKUP($AA$1,INDUK40015000!$A$6:$RL$1005,196,)) -> B103 | N26: =IF(VLOOKUP($AA$1,INDUK40015000!$A$6:$RL$1005,252,)=0,"-",VLOOKUP($AA$1,INDUK40015000!$A$6:$RL$1005,252,)) -> B158 | P26: =IF(VLOOKUP($AA$1,INDUK40015000!$A$6:$RL$1005,253,)=0,"-",VLOOKUP($AA$1,INDUK40015000!$A$6:$RL$1005,253,)) -> B159 | R26: =IF(VLOOKUP($AA$1,INDUK40015000!$A$6:$RL$1005,309,)=0,"-",VLOOKUP($AA$1,INDUK40015000!$A$6:$RL$1005,309,)) -> B214 | T26: =IF(VLOOKUP($AA$1,INDUK40015000!$A$6:$RL$1005,310,)=0,"-",VLOOKUP($AA$1,INDUK40015000!$A$6:$RL$1005,310,)) -> B215 | V26: =IF(VLOOKUP($AA$1,INDUK40015000!$A$6:$RL$1005,366,)=0,"-",VLOOKUP($AA$1,INDUK40015000!$A$6:$RL$1005,366,)) -> B270 | X26: =IF(VLOOKUP($AA$1,INDUK40015000!$A$6:$RL$1005,367,)=0,"-",VLOOKUP($AA$1,INDUK40015000!$A$6:$RL$1005,367,)) -> B271 | Z26: =IF(VLOOKUP($AA$1,INDUK40015000!$A$6:$RL$1005,423,)=0,"-",VLOOKUP($AA$1,INDUK40015000!$A$6:$RL$1005,423,)) -> B326 | AB26: =IF(VLOOKUP($AA$1,INDUK40015000!$A$6:$RL$1005,424,)=0,"-",VLOOKUP($AA$1,INDUK40015000!$A$6:$RL$1005,424,)) -> B327 | AF26: 10
A27: Jumlah Nilai | F27: =IF(VLOOKUP($AA$1,INDUK40015000!$A$6:$RL$1005,122,)=0,"-",VLOOKUP($AA$1,INDUK40015000!$A$6:$RL$1005,122,)) -> B31 | H27: =IF(VLOOKUP($AA$1,INDUK40015000!$A$6:$RL$1005,123,)=0,"-",VLOOKUP($AA$1,INDUK40015000!$A$6:$RL$1005,123,)) -> B32 | J27: =IF(VLOOKUP($AA$1,INDUK40015000!$A$6:$RL$1005,179,)=0,"-",VLOOKUP($AA$1,INDUK40015000!$A$6:$RL$1005,179,)) -> B86 | L27: =IF(VLOOKUP($AA$1,INDUK40015000!$A$6:$RL$1005,180,)=0,"-",VLOOKUP($AA$1,INDUK40015000!$A$6:$RL$1005,180,)) -> B87 | N27: =IF(VLOOKUP($AA$1,INDUK40015000!$A$6:$RL$1005,236,)=0,"-",VLOOKUP($AA$1,INDUK40015000!$A$6:$RL$1005,236,)) -> B142 | P27: =IF(VLOOKUP($AA$1,INDUK40015000!$A$6:$RL$1005,237,)=0,"-",VLOOKUP($AA$1,INDUK40015000!$A$6:$RL$1005,237,)) -> B143 | R27: =IF(VLOOKUP($AA$1,INDUK40015000!$A$6:$RL$1005,293,)=0,"-",VLOOKUP($AA$1,INDUK40015000!$A$6:$RL$1005,293,)) -> B198 | T27: =IF(VLOOKUP($AA$1,INDUK40015000!$A$6:$RL$1005,294,)=0,"-",VLOOKUP($AA$1,INDUK40015000!$A$6:$RL$1005,294,)) -> B199 | V27: =IF(VLOOKUP($AA$1,INDUK40015000!$A$6:$RL$1005,350,)=0,"-",VLOOKUP($AA$1,INDUK40015000!$A$6:$RL$1005,350,)) -> B254 | X27: =IF(VLOOKUP($AA$1,INDUK40015000!$A$6:$RL$1005,351,)=0,"-",VLOOKUP($AA$1,INDUK40015000!$A$6:$RL$1005,351,)) -> B255 | Z27: =IF(VLOOKUP($AA$1,INDUK40015000!$A$6:$RL$1005,407,)=0,"-",VLOOKUP($AA$1,INDUK40015000!$A$6:$RL$1005,407,)) -> B310 | AB27: =IF(VLOOKUP($AA$1,INDUK40015000!$A$6:$RL$1005,408,)=0,"-",VLOOKUP($AA$1,INDUK40015000!$A$6:$RL$1005,408,)) -> B311 | AF27: 2
A28: Rata - Rata | F28: =IF(VLOOKUP($AA$1,INDUK40015000!$A$6:$RL$1005,124,)=0,"-",VLOOKUP($AA$1,INDUK40015000!$A$6:$RL$1005,124,)) -> B33 | H28: =IF(VLOOKUP($AA$1,INDUK40015000!$A$6:$RL$1005,125,)=0,"-",VLOOKUP($AA$1,INDUK40015000!$A$6:$RL$1005,125,)) -> B34 | J28: =IF(VLOOKUP($AA$1,INDUK40015000!$A$6:$RL$1005,181,)=0,"-",VLOOKUP($AA$1,INDUK40015000!$A$6:$RL$1005,181,)) -> B88 | L28: =IF(VLOOKUP($AA$1,INDUK40015000!$A$6:$RL$1005,182,)=0,"-",VLOOKUP($AA$1,INDUK40015000!$A$6:$RL$1005,182,)) -> B89 | N28: =IF(VLOOKUP($AA$1,INDUK40015000!$A$6:$RL$1005,238,)=0,"-",VLOOKUP($AA$1,INDUK40015000!$A$6:$RL$1005,238,)) -> B144 | P28: =IF(VLOOKUP($AA$1,INDUK40015000!$A$6:$RL$1005,239,)=0,"-",VLOOKUP($AA$1,INDUK40015000!$A$6:$RL$1005,239,)) -> B145 | R28: =IF(VLOOKUP($AA$1,INDUK40015000!$A$6:$RL$1005,295,)=0,"-",VLOOKUP($AA$1,INDUK40015000!$A$6:$RL$1005,295,)) -> B200 | T28: =IF(VLOOKUP($AA$1,INDUK40015000!$A$6:$RL$1005,296,)=0,"-",VLOOKUP($AA$1,INDUK40015000!$A$6:$RL$1005,296,)) -> B201 | V28: =IF(VLOOKUP($AA$1,INDUK40015000!$A$6:$RL$1005,352,)=0,"-",VLOOKUP($AA$1,INDUK40015000!$A$6:$RL$1005,352,)) -> B256 | X28: =IF(VLOOKUP($AA$1,INDUK40015000!$A$6:$RL$1005,353,)=0,"-",VLOOKUP($AA$1,INDUK40015000!$A$6:$RL$1005,353,)) -> B257 | Z28: =IF(VLOOKUP($AA$1,INDUK40015000!$A$6:$RL$1005,409,)=0,"-",VLOOKUP($AA$1,INDUK40015000!$A$6:$RL$1005,409,)) -> B312 | AB28: =IF(VLOOKUP($AA$1,INDUK40015000!$A$6:$RL$1005,410,)=0,"-",VLOOKUP($AA$1,INDUK40015000!$A$6:$RL$1005,410,)) -> B313 | AF28: 3
A29: Peringkat Kelas Ke : | F29: =IF(VLOOKUP($AA$1,INDUK40015000!$A$6:$RL$1005,126,)=0,"-",VLOOKUP($AA$1,INDUK40015000!$A$6:$RL$1005,126,)) -> B35 | H29: =IF(VLOOKUP($AA$1,INDUK40015000!$A$6:$RL$1005,127,)=0,"-",VLOOKUP($AA$1,INDUK40015000!$A$6:$RL$1005,127,)) -> B36 | J29: =IF(VLOOKUP($AA$1,INDUK40015000!$A$6:$RL$1005,183,)=0,"-",VLOOKUP($AA$1,INDUK40015000!$A$6:$RL$1005,183,)) -> B90 | L29: =IF(VLOOKUP($AA$1,INDUK40015000!$A$6:$RL$1005,184,)=0,"-",VLOOKUP($AA$1,INDUK40015000!$A$6:$RL$1005,184,)) -> B91 | N29: =IF(VLOOKUP($AA$1,INDUK40015000!$A$6:$RL$1005,240,)=0,"-",VLOOKUP($AA$1,INDUK40015000!$A$6:$RL$1005,240,)) -> B146 | P29: =IF(VLOOKUP($AA$1,INDUK40015000!$A$6:$RL$1005,241,)=0,"-",VLOOKUP($AA$1,INDUK40015000!$A$6:$RL$1005,241,)) -> B147 | R29: =IF(VLOOKUP($AA$1,INDUK40015000!$A$6:$RL$1005,297,)=0,"-",VLOOKUP($AA$1,INDUK40015000!$A$6:$RL$1005,297,)) -> B202 | T29: =IF(VLOOKUP($AA$1,INDUK40015000!$A$6:$RL$1005,298,)=0,"-",VLOOKUP($AA$1,INDUK40015000!$A$6:$RL$1005,298,)) -> B203 | V29: =IF(VLOOKUP($AA$1,INDUK40015000!$A$6:$RL$1005,354,)=0,"-",VLOOKUP($AA$1,INDUK40015000!$A$6:$RL$1005,354,)) -> B258 | X29: =IF(VLOOKUP($AA$1,INDUK40015000!$A$6:$RL$1005,355,)=0,"-",VLOOKUP($AA$1,INDUK40015000!$A$6:$RL$1005,355,)) -> B259 | Z29: =IF(VLOOKUP($AA$1,INDUK40015000!$A$6:$RL$1005,411,)=0,"-",VLOOKUP($AA$1,INDUK40015000!$A$6:$RL$1005,411,)) -> B314 | AB29: =IF(VLOOKUP($AA$1,INDUK40015000!$A$6:$RL$1005,412,)=0,"-",VLOOKUP($AA$1,INDUK40015000!$A$6:$RL$1005,412,)) -> B315 | AF29: 4
A30: Perilaku Kepribadian
A31: 1. | B31: Kelakuan | F31: =IF(VLOOKUP($AA$1,INDUK40015000!$A$6:$RL$1005,140,)=0,"-",VLOOKUP($AA$1,INDUK40015000!$A$6:$RL$1005,140,)) -> B49 | H31: =IF(VLOOKUP($AA$1,INDUK40015000!$A$6:$RL$1005,141,)=0,"-",VLOOKUP($AA$1,INDUK40015000!$A$6:$RL$1005,141,)) -> B50 | J31: =IF(VLOOKUP($AA$1,INDUK40015000!$A$6:$RL$1005,197,)=0,"-",VLOOKUP($AA$1,INDUK40015000!$A$6:$RL$1005,197,)) -> B104 | L31: =IF(VLOOKUP($AA$1,INDUK40015000!$A$6:$RL$1005,198,)=0,"-",VLOOKUP($AA$1,INDUK40015000!$A$6:$RL$1005,198,)) -> B105 | N31: =IF(VLOOKUP($AA$1,INDUK40015000!$A$6:$RL$1005,254,)=0,"-",VLOOKUP($AA$1,INDUK40015000!$A$6:$RL$1005,254,)) -> B160 | P31: =IF(VLOOKUP($AA$1,INDUK40015000!$A$6:$RL$1005,255,)=0,"-",VLOOKUP($AA$1,INDUK40015000!$A$6:$RL$1005,255,)) -> B161 | R31: =IF(VLOOKUP($AA$1,INDUK40015000!$A$6:$RL$1005,311,)=0,"-",VLOOKUP($AA$1,INDUK40015000!$A$6:$RL$1005,311,)) -> B216 | T31: =IF(VLOOKUP($AA$1,INDUK40015000!$A$6:$RL$1005,312,)=0,"-",VLOOKUP($AA$1,INDUK40015000!$A$6:$RL$1005,312,)) -> B217 | V31: =IF(VLOOKUP($AA$1,INDUK40015000!$A$6:$RL$1005,368,)=0,"-",VLOOKUP($AA$1,INDUK40015000!$A$6:$RL$1005,368,)) -> B272 | X31: =IF(VLOOKUP($AA$1,INDUK40015000!$A$6:$RL$1005,369,)=0,"-",VLOOKUP($AA$1,INDUK40015000!$A$6:$RL$1005,369,)) -> B273 | Z31: =IF(VLOOKUP($AA$1,INDUK40015000!$A$6:$RL$1005,425,)=0,"-",VLOOKUP($AA$1,INDUK40015000!$A$6:$RL$1005,425,)) -> B328 | AB31: =IF(VLOOKUP($AA$1,INDUK40015000!$A$6:$RL$1005,426,)=0,"-",VLOOKUP($AA$1,INDUK40015000!$A$6:$RL$1005,426,)) -> B329 | AF31: 11
A32: 2. | B32: Kerajinan | F32: =IF(VLOOKUP($AA$1,INDUK40015000!$A$6:$RL$1005,142,)=0,"-",VLOOKUP($AA$1,INDUK40015000!$A$6:$RL$1005,142,)) -> B51 | H32: =IF(VLOOKUP($AA$1,INDUK40015000!$A$6:$RL$1005,143,)=0,"-",VLOOKUP($AA$1,INDUK40015000!$A$6:$RL$1005,143,)) -> B52 | J32: =IF(VLOOKUP($AA$1,INDUK40015000!$A$6:$RL$1005,199,)=0,"-",VLOOKUP($AA$1,INDUK40015000!$A$6:$RL$1005,199,)) -> B106 | L32: =IF(VLOOKUP($AA$1,INDUK40015000!$A$6:$RL$1005,200,)=0,"-",VLOOKUP($AA$1,INDUK40015000!$A$6:$RL$1005,200,)) -> B107 | N32: =IF(VLOOKUP($AA$1,INDUK40015000!$A$6:$RL$1005,256,)=0,"-",VLOOKUP($AA$1,INDUK40015000!$A$6:$RL$1005,256,)) -> B162 | P32: =IF(VLOOKUP($AA$1,INDUK40015000!$A$6:$RL$1005,257,)=0,"-",VLOOKUP($AA$1,INDUK40015000!$A$6:$RL$1005,257,)) -> B163 | R32: =IF(VLOOKUP($AA$1,INDUK40015000!$A$6:$RL$1005,313,)=0,"-",VLOOKUP($AA$1,INDUK40015000!$A$6:$RL$1005,313,)) -> B218 | T32: =IF(VLOOKUP($AA$1,INDUK40015000!$A$6:$RL$1005,314,)=0,"-",VLOOKUP($AA$1,INDUK40015000!$A$6:$RL$1005,314,)) -> B219 | V32: =IF(VLOOKUP($AA$1,INDUK40015000!$A$6:$RL$1005,370,)=0,"-",VLOOKUP($AA$1,INDUK40015000!$A$6:$RL$1005,370,)) -> B274 | X32: =IF(VLOOKUP($AA$1,INDUK40015000!$A$6:$RL$1005,371,)=0,"-",VLOOKUP($AA$1,INDUK40015000!$A$6:$RL$1005,371,)) -> B275 | Z32: =IF(VLOOKUP($AA$1,INDUK40015000!$A$6:$RL$1005,427,)=0,"-",VLOOKUP($AA$1,INDUK40015000!$A$6:$RL$1005,427,)) -> B330 | AB32: =IF(VLOOKUP($AA$1,INDUK40015000!$A$6:$RL$1005,428,)=0,"-",VLOOKUP($AA$1,INDUK40015000!$A$6:$RL$1005,428,)) -> B331 | AF32: 12
A33: 3. | B33: Kebersihan dan Kerapian | F33: =IF(VLOOKUP($AA$1,INDUK40015000!$A$6:$RL$1005,144,)=0,"-",VLOOKUP($AA$1,INDUK40015000!$A$6:$RL$1005,144,)) -> B53 | H33: =IF(VLOOKUP($AA$1,INDUK40015000!$A$6:$RL$1005,145,)=0,"-",VLOOKUP($AA$1,INDUK40015000!$A$6:$RL$1005,145,)) -> B54 | J33: =IF(VLOOKUP($AA$1,INDUK40015000!$A$6:$RL$1005,201,)=0,"-",VLOOKUP($AA$1,INDUK40015000!$A$6:$RL$1005,201,)) -> B108 | L33: =IF(VLOOKUP($AA$1,INDUK40015000!$A$6:$RL$1005,202,)=0,"-",VLOOKUP($AA$1,INDUK40015000!$A$6:$RL$1005,202,)) -> B109 | N33: =IF(VLOOKUP($AA$1,INDUK40015000!$A$6:$RL$1005,258,)=0,"-",VLOOKUP($AA$1,INDUK40015000!$A$6:$RL$1005,258,)) -> B164 | P33: =IF(VLOOKUP($AA$1,INDUK40015000!$A$6:$RL$1005,259,)=0,"-",VLOOKUP($AA$1,INDUK40015000!$A$6:$RL$1005,259,)) -> B165 | R33: =IF(VLOOKUP($AA$1,INDUK40015000!$A$6:$RL$1005,315,)=0,"-",VLOOKUP($AA$1,INDUK40015000!$A$6:$RL$1005,315,)) -> B220 | T33: =IF(VLOOKUP($AA$1,INDUK40015000!$A$6:$RL$1005,316,)=0,"-",VLOOKUP($AA$1,INDUK40015000!$A$6:$RL$1005,316,)) -> B221 | V33: =IF(VLOOKUP($AA$1,INDUK40015000!$A$6:$RL$1005,372,)=0,"-",VLOOKUP($AA$1,INDUK40015000!$A$6:$RL$1005,372,)) -> B276 | X33: =IF(VLOOKUP($AA$1,INDUK40015000!$A$6:$RL$1005,373,)=0,"-",VLOOKUP($AA$1,INDUK40015000!$A$6:$RL$1005,373,)) -> B277 | Z33: =IF(VLOOKUP($AA$1,INDUK40015000!$A$6:$RL$1005,429,)=0,"-",VLOOKUP($AA$1,INDUK40015000!$A$6:$RL$1005,429,)) -> B332 | AB33: =IF(VLOOKUP($AA$1,INDUK40015000!$A$6:$RL$1005,430,)=0,"-",VLOOKUP($AA$1,INDUK40015000!$A$6:$RL$1005,430,)) -> B333 | AF33: 13
A34: Ketidakhadiran
A35: 1. | B35: Sakit | E35: ( Hari ) | F35: =IF(VLOOKUP($AA$1,INDUK40015000!$A$6:$RL$1005,128,)=0,"-",VLOOKUP($AA$1,INDUK40015000!$A$6:$RL$1005,128,)) -> B37 | H35: =IF(VLOOKUP($AA$1,INDUK40015000!$A$6:$RL$1005,129,)=0,"-",VLOOKUP($AA$1,INDUK40015000!$A$6:$RL$1005,129,)) -> B38 | J35: =IF(VLOOKUP($AA$1,INDUK40015000!$A$6:$RL$1005,185,)=0,"-",VLOOKUP($AA$1,INDUK40015000!$A$6:$RL$1005,185,)) -> B92 | L35: =IF(VLOOKUP($AA$1,INDUK40015000!$A$6:$RL$1005,186,)=0,"-",VLOOKUP($AA$1,INDUK40015000!$A$6:$RL$1005,186,)) -> B93 | N35: =IF(VLOOKUP($AA$1,INDUK40015000!$A$6:$RL$1005,242,)=0,"-",VLOOKUP($AA$1,INDUK40015000!$A$6:$RL$1005,242,)) -> B148 | P35: =IF(VLOOKUP($AA$1,INDUK40015000!$A$6:$RL$1005,243,)=0,"-",VLOOKUP($AA$1,INDUK40015000!$A$6:$RL$1005,243,)) -> B149 | R35: =IF(VLOOKUP($AA$1,INDUK40015000!$A$6:$RL$1005,299,)=0,"-",VLOOKUP($AA$1,INDUK40015000!$A$6:$RL$1005,299,)) -> B204 | T35: =IF(VLOOKUP($AA$1,INDUK40015000!$A$6:$RL$1005,300,)=0,"-",VLOOKUP($AA$1,INDUK40015000!$A$6:$RL$1005,300,)) -> B205 | V35: =IF(VLOOKUP($AA$1,INDUK40015000!$A$6:$RL$1005,356,)=0,"-",VLOOKUP($AA$1,INDUK40015000!$A$6:$RL$1005,356,)) -> B260 | X35: =IF(VLOOKUP($AA$1,INDUK40015000!$A$6:$RL$1005,357,)=0,"-",VLOOKUP($AA$1,INDUK40015000!$A$6:$RL$1005,357,)) -> B261 | Z35: =IF(VLOOKUP($AA$1,INDUK40015000!$A$6:$RL$1005,413,)=0,"-",VLOOKUP($AA$1,INDUK40015000!$A$6:$RL$1005,413,)) -> B316 | AB35: =IF(VLOOKUP($AA$1,INDUK40015000!$A$6:$RL$1005,414,)=0,"-",VLOOKUP($AA$1,INDUK40015000!$A$6:$RL$1005,414,)) -> B317 | AD35: Catatan : | AF35: 5
A36: 2. | B36: Izin | E36: ( Hari ) | F36: =IF(VLOOKUP($AA$1,INDUK40015000!$A$6:$RL$1005,130,)=0,"-",VLOOKUP($AA$1,INDUK40015000!$A$6:$RL$1005,130,)) -> B39 | H36: =IF(VLOOKUP($AA$1,INDUK40015000!$A$6:$RL$1005,131,)=0,"-",VLOOKUP($AA$1,INDUK40015000!$A$6:$RL$1005,131,)) -> B40 | J36: =IF(VLOOKUP($AA$1,INDUK40015000!$A$6:$RL$1005,187,)=0,"-",VLOOKUP($AA$1,INDUK40015000!$A$6:$RL$1005,187,)) -> B94 | L36: =IF(VLOOKUP($AA$1,INDUK40015000!$A$6:$RL$1005,188,)=0,"-",VLOOKUP($AA$1,INDUK40015000!$A$6:$RL$1005,188,)) -> B95 | N36: =IF(VLOOKUP($AA$1,INDUK40015000!$A$6:$RL$1005,244,)=0,"-",VLOOKUP($AA$1,INDUK40015000!$A$6:$RL$1005,244,)) -> B150 | P36: =IF(VLOOKUP($AA$1,INDUK40015000!$A$6:$RL$1005,245,)=0,"-",VLOOKUP($AA$1,INDUK40015000!$A$6:$RL$1005,245,)) -> B151 | R36: =IF(VLOOKUP($AA$1,INDUK40015000!$A$6:$RL$1005,301,)=0,"-",VLOOKUP($AA$1,INDUK40015000!$A$6:$RL$1005,301,)) -> B206 | T36: =IF(VLOOKUP($AA$1,INDUK40015000!$A$6:$RL$1005,302,)=0,"-",VLOOKUP($AA$1,INDUK40015000!$A$6:$RL$1005,302,)) -> B207 | V36: =IF(VLOOKUP($AA$1,INDUK40015000!$A$6:$RL$1005,358,)=0,"-",VLOOKUP($AA$1,INDUK40015000!$A$6:$RL$1005,358,)) -> B262 | X36: =IF(VLOOKUP($AA$1,INDUK40015000!$A$6:$RL$1005,359,)=0,"-",VLOOKUP($AA$1,INDUK40015000!$A$6:$RL$1005,359,)) -> B263 | Z36: =IF(VLOOKUP($AA$1,INDUK40015000!$A$6:$RL$1005,415,)=0,"-",VLOOKUP($AA$1,INDUK40015000!$A$6:$RL$1005,415,)) -> B318 | AB36: =IF(VLOOKUP($AA$1,INDUK40015000!$A$6:$RL$1005,416,)=0,"-",VLOOKUP($AA$1,INDUK40015000!$A$6:$RL$1005,416,)) -> B319 | AF36: 6
A37: 3. | B37: Tanpa Keterangan | E37: ( Hari ) | F37: =IF(VLOOKUP($AA$1,INDUK40015000!$A$6:$RL$1005,132,)=0,"-",VLOOKUP($AA$1,INDUK40015000!$A$6:$RL$1005,132,)) -> B41 | H37: =IF(VLOOKUP($AA$1,INDUK40015000!$A$6:$RL$1005,133,)=0,"-",VLOOKUP($AA$1,INDUK40015000!$A$6:$RL$1005,133,)) -> B42 | J37: =IF(VLOOKUP($AA$1,INDUK40015000!$A$6:$RL$1005,189,)=0,"-",VLOOKUP($AA$1,INDUK40015000!$A$6:$RL$1005,189,)) -> B96 | L37: =IF(VLOOKUP($AA$1,INDUK40015000!$A$6:$RL$1005,190,)=0,"-",VLOOKUP($AA$1,INDUK40015000!$A$6:$RL$1005,190,)) -> B97 | N37: =IF(VLOOKUP($AA$1,INDUK40015000!$A$6:$RL$1005,246,)=0,"-",VLOOKUP($AA$1,INDUK40015000!$A$6:$RL$1005,246,)) -> B152 | P37: =IF(VLOOKUP($AA$1,INDUK40015000!$A$6:$RL$1005,247,)=0,"-",VLOOKUP($AA$1,INDUK40015000!$A$6:$RL$1005,247,)) -> B153 | R37: =IF(VLOOKUP($AA$1,INDUK40015000!$A$6:$RL$1005,303,)=0,"-",VLOOKUP($AA$1,INDUK40015000!$A$6:$RL$1005,303,)) -> B208 | T37: =IF(VLOOKUP($AA$1,INDUK40015000!$A$6:$RL$1005,304,)=0,"-",VLOOKUP($AA$1,INDUK40015000!$A$6:$RL$1005,304,)) -> B209 | V37: =IF(VLOOKUP($AA$1,INDUK40015000!$A$6:$RL$1005,360,)=0,"-",VLOOKUP($AA$1,INDUK40015000!$A$6:$RL$1005,360,)) -> B264 | X37: =IF(VLOOKUP($AA$1,INDUK40015000!$A$6:$RL$1005,361,)=0,"-",VLOOKUP($AA$1,INDUK40015000!$A$6:$RL$1005,361,)) -> B265 | Z37: =IF(VLOOKUP($AA$1,INDUK40015000!$A$6:$RL$1005,417,)=0,"-",VLOOKUP($AA$1,INDUK40015000!$A$6:$RL$1005,417,)) -> B320 | AB37: =IF(VLOOKUP($AA$1,INDUK40015000!$A$6:$RL$1005,418,)=0,"-",VLOOKUP($AA$1,INDUK40015000!$A$6:$RL$1005,418,)) -> B321 | AF37: 7
A38: NAIK / TIDAK NAIK KELAS | F38: =IF(VLOOKUP($AA$1,INDUK40015000!$A$6:$RL$1005,146,)=0,"-",VLOOKUP($AA$1,INDUK40015000!$A$6:$RL$1005,146,)) -> B55 | J38: =IF(VLOOKUP($AA$1,INDUK40015000!$A$6:$RL$1005,203,)=0,"-",VLOOKUP($AA$1,INDUK40015000!$A$6:$RL$1005,203,)) -> B110 | N38: =IF(VLOOKUP($AA$1,INDUK40015000!$A$6:$RL$1005,260,)=0,"-",VLOOKUP($AA$1,INDUK40015000!$A$6:$RL$1005,260,)) -> B166 | R38: =IF(VLOOKUP($AA$1,INDUK40015000!$A$6:$RL$1005,317,)=0,"-",VLOOKUP($AA$1,INDUK40015000!$A$6:$RL$1005,317,)) -> B222 | V38: =IF(VLOOKUP($AA$1,INDUK40015000!$A$6:$RL$1005,374,)=0,"-",VLOOKUP($AA$1,INDUK40015000!$A$6:$RL$1005,374,)) -> B278 | Z38: =IF(VLOOKUP($AA$1,INDUK40015000!$A$6:$RL$1005,431,)=0,"-",VLOOKUP($AA$1,INDUK40015000!$A$6:$RL$1005,431,)) -> LOELOES | AF38: 14
A39: VI. | B39: STTB / IJAZAH :
B40: 21. | C40: Nomor : | D40: =IF(VLOOKUP($AA$1,INDUK40015000!$A$6:$RL$1005,434,)=0,"-",VLOOKUP($AA$1,INDUK40015000!$A$6:$RL$1005,434,)) -> B336 | N40: Tempat | Q40: =IF(VLOOKUP($AA$1,INDUK40015000!$A$6:$RL$1005,435,)=0,"-",VLOOKUP($AA$1,INDUK40015000!$A$6:$RL$1005,435,)) -> B337 | W40: 22. Diberikan Tanggal : | AC40: =IF(VLOOKUP($AA$1,INDUK40015000!$A$6:$RL$1005,436,)=0,"-",VLOOKUP($AA$1,INDUK40015000!$A$6:$RL$1005,436,)) -> B338
A41: VII. | B41: PENGHARGAAN
B42: 23. | C42: Piagam Penghargaan yang pernah diterima :
C44: a. Bidang | D44: =IF(VLOOKUP($AA$1,INDUK40015000!$A$6:$RL$105,437,)=0,"-",VLOOKUP($AA$1,INDUK40015000!$A$6:$RL$105,437,)) -> B339 | N44: Nomor | P44: : | Q44: =IF(VLOOKUP($AA$1,INDUK40015000!$A$6:$RL$105,438,)=0,"-",VLOOKUP($AA$1,INDUK40015000!$A$6:$RL$105,438,)) -> B340 | Y44: Tanggal | AA44: : | AB44: =IF(VLOOKUP($AA$1,INDUK40015000!$A$6:$RL$105,439,)=0,"-",VLOOKUP($AA$1,INDUK40015000!$A$6:$RL$105,439,)) -> B341
C46: b. Bidang | D46: =IF(VLOOKUP($AA$1,INDUK40015000!$A$6:$RL$105,440,)=0,"-",VLOOKUP($AA$1,INDUK40015000!$A$6:$RL$105,440,)) -> B342 | N46: Nomor | P46: : | Q46: =IF(VLOOKUP($AA$1,INDUK40015000!$A$6:$RL$105,441,)=0,"-",VLOOKUP($AA$1,INDUK40015000!$A$6:$RL$105,441,)) -> B343 | Y46: Tanggal | AA46: : | AB46: =IF(VLOOKUP($AA$1,INDUK40015000!$A$6:$RL$105,442,)=0,"-",VLOOKUP($AA$1,INDUK40015000!$A$6:$RL$105,442,)) -> B344
A48: VIII. | B48: KETERANGAN
B49: 24. | C49: Surat Keterangan yang pernah diberikan oleh Madrasah ini :
C51: a. Tentang | D51: : | E51: =IF(VLOOKUP($AA$1,INDUK40015000!$A$6:$RL$105,443,)=0,"-",VLOOKUP($AA$1,INDUK40015000!$A$6:$RL$105,443,)) -> B345 | N51: Nomor | P51: : | Q51: =IF(VLOOKUP($AA$1,INDUK40015000!$A$6:$RL$105,444,)=0,"-",VLOOKUP($AA$1,INDUK40015000!$A$6:$RL$105,444,)) -> B346 | Y51: Tanggal | AA51: : | AB51: =IF(VLOOKUP($AA$1,INDUK40015000!$A$6:$RL$105,445,)=0,"-",VLOOKUP($AA$1,INDUK40015000!$A$6:$RL$105,445,)) -> B347
C53: b. Tentang | D53: : | E53: =IF(VLOOKUP($AA$1,INDUK40015000!$A$6:$RL$105,446,)=0,"-",VLOOKUP($AA$1,INDUK40015000!$A$6:$RL$105,446,)) -> B348 | N53: Nomor | P53: : | Q53: =IF(VLOOKUP($AA$1,INDUK40015000!$A$6:$RL$105,447,)=0,"-",VLOOKUP($AA$1,INDUK40015000!$A$6:$RL$105,447,)) -> B349 | Y53: Tanggal | AA53: : | AB53: =IF(VLOOKUP($AA$1,INDUK40015000!$A$6:$RL$105,448,)=0,"-",VLOOKUP($AA$1,INDUK40015000!$A$6:$RL$105,448,)) -> B350
